Workbook

Sheet Resumo
H1: SICRO: | I1: 2025-07-01
H2: SINAPI: | I2: 2025-09-01
H3: DATA BASE: | I3: 2025-10-01 | N3: 73km por área
A4: RESUMO DO ORÇAMENTO REFERENCIAL | N4: 3 áreas
N5: =3*73 -> 219
A6: PROJETO: | H6: CONTRATANTE:
A7: CONTRATAÇÃO DE SERVIÇOS DE ENGENHARIA PARA APOIO E SUPERVISÃO TÉCNICO ADMINISTRATIVO NA GESTÃO DE CONTRATOS E CONVÊNIOS DE QUALIFICAÇÃO VIÁRIA NA ÁREA DE ATUAÇÃO 14ª SUPERINTENDÊNCIA REGIONAL DA CODEVASF, NO ESTADO DO CEARÁ. | H7: CODEVASF (14ª/SR)
A8: GRUPO 1 - ITEM | B8: DESCRIÇÃO | C8: UNIDADE | D8: QDE | E8: R$ UNITÁRIO POR EQUIPE | F8: FREQUENCIA | G8: QDE / PRAZO | H8: VALORES - R$
H9: UNITÁRIO (SRP) | I9: TOTAL
A10: 1 | B10: ='PFP1'!E9 -> APOIO À FISCALIZAÇÃO 1 | C10: UNID. | D10: 1 | E10: =TRUNC(H10/D10,2) -> 46198.78 | F10: MENSAL | G10: 12 | H10: =SUM('PFP1'!L10,'PFP1'!L15,'PFP1'!L17) -> 46198.78 | I10: =G10*H10 -> 554385.36
A11: 2 | B11: APOIO À FISCALIZAÇÃO 2 | C11: UNID. | D11: 3 | E11: =TRUNC(H11/D11,2) -> 35986.14 | F11: MENSAL | G11: 12 | H11: =SUM('PFP1'!L20,'PFP1'!L23) -> 107958.42 | I11: =G11*H11 -> 1295501.04
A12: 3 | B12: CONTROLE EXECUTIVO | C12: UNID. | D12: 1 | E12: =TRUNC(H12/D12,2) -> 9926.2 | F12: MENSAL | G12: 12 | H12: ='PFP1'!L27 -> 9926.2 | I12: =G12*H12 -> 119114.4
A13: 4 | B13: CONTROLE TECNOLÓGICO | C13: UNID. | D13: 2 | E13: 38676.7 | F13: MENSAL | G13: 12 | H13: ='PFP1'!L30 -> 77353.4 | I13: =G13*H13 -> 928240.8
A15: TOTAL ANUAL DO ORÇAMENTO REFERENCIAL: | H15: =TRUNC(SUM(I10:I13),2) -> 2897241.6
G17: ANUAL | H17: =H15 -> 2897241.6
G18: MENSAL | H18: =TRUNC(H17/12,2) -> 241436.8

Sheet PFP1
K1: SICRO: | L1: 2025-07-01
K2: SINAPI: | L2: 2025-09-01
K3: DATA BASE: | L3: 2025-10-01
A4: PROPOSTA FINANCEIRA DO PROJETO | K4: CODIGO:
K5: PFP-1
A6: PROJETO: | G6: CONTRATANTE: | K6: EDITAL:
A7: =Resumo!A7 -> CONTRATAÇÃO DE SERVIÇOS DE ENGENHARIA PARA APOIO E SUPERVISÃO TÉCNICO ADMINISTRATIVO NA GESTÃO DE CONTRATOS E CONVÊNIOS DE QUALIFICAÇÃO VIÁRIA NA ÁREA DE ATUAÇÃO 14ª SUPERINTENDÊNCIA REGIONAL DA CODEVASF, NO ESTADO DO CEARÁ. | G7: CODEVASF (14ª/SR)
A8: Base | B8: Código | C8: Cod. | D8: Item | E8: Categoria / Insumo | F8: Uni | G8: Qde | H8: CUD | I8: PU | J8: FatorK | K8: CT | L8: PT
C9: MO | D9: 1 | E9: APOIO À FISCALIZAÇÃO 1 | F9: unid | G9: 12 | K9: =SUM(K10,K15,K17) -> 25498.53 | L9: =TRUNC(SUM(L10,L15,L17)*G9,2) -> 554385.36 | N9: Encargos Comp e Adicionais
A10: CO | B10: CO | C10: DP | D10: 1.1 | E10: Pessoal | K10: =SUM(K11:K14) -> 19026.48 | L10: =TRUNC(SUM(L11:L14),2) -> 38469.86 | N10: =VLOOKUP(B11,'DNIT Rel. Consolidação de M.O.'!$A:$Z,26,0) -> 1123.07
A11: SICRO | B11: P8066 | C11: P2 | D11: 1.1.1 | E11: Engenheiro Pleno | F11: mês | G11: 1 | H11: =TRUNC(VLOOKUP(B11,'DNIT Rel. Consolidação de M.O.'!$A$5:$D$105,4,0),2) -> 14698.04 | I11: =TRUNC(H11*J11,2) -> 31433.22 | J11: ='PFP2.1_FatorKa'!$E$38 -> 2.1386 | K11: =TRUNC(G11*H11,2) -> 14698.04 | L11: =TRUNC(I11*G11,2) -> 31433.22 | N11: =VLOOKUP(B21,'DNIT Rel. Consolidação de M.O.'!$A:$Z,26,0) -> 1123.07
A12: SICRO | B12: SICRO | C12: EC | D12: 1.1.4 | E12: Encargos Complementares (Eng. Pleno) | F12: mês | G12: =SUM(G9:G11) -> 1 | H12: =TRUNC(N10,2) -> 1123.07 | I12: =TRUNC(H12*J12,2) -> 1341.17 | J12: =PFP3_FatorKc!$E$20 -> 1.1942 | K12: =TRUNC(G12*H12,2) -> 1123.07 | L12: =TRUNC(I12*G12,2) -> 1341.17 | N12: =VLOOKUP(B13,'DNIT Rel. Consolidação de M.O.'!$A:$Z,26,0) -> 1227.79
A13: SICRO | B13: P8026 | C13: A2 | D13: 1.1.3 | E13: Ajudante Administrativo | F13: mês | G13: 1 | H13: =TRUNC(VLOOKUP(B13,'DNIT Rel. Consolidação de M.O.'!$A$5:$D$105,4,0),2) -> 1977.58 | I13: =TRUNC(H13*J13,2) -> 4229.25 | J13: ='PFP2.1_FatorKa'!$E$38 -> 2.1386 | K13: =TRUNC(G13*H13,2) -> 1977.58 | L13: =TRUNC(I13*G13,2) -> 4229.25
A14: SICRO | B14: SICRO | C14: EC | D14: 1.1.4 | E14: Encargos Complementares (Ajud. Administrativo) | F14: mês | G14: =G13 -> 1 | H14: =TRUNC(N12,2) -> 1227.79 | I14: 1466.22 | J14: =PFP3_FatorKc!$E$20 -> 1.1942 | K14: =TRUNC(G14*H14,2) -> 1227.79 | L14: =TRUNC(I14*G14,2) -> 1466.22
A15: DP | B15: DP | C15: DP | D15: 1.2 | E15: Diárias | K15: =SUM(K16:K16) -> 767.36 | L15: =TRUNC(SUM(L16:L16),2) -> 916.38
A16: V1 | B16: V1 | C16: V1 | D16: 1.2.2 | E16: Diárias (deslocamento + alimentação) | F16: dia | G16: 2 | H16: =TRUNC('CPU HOSPEDAGEM'!C40,2) -> 383.68 | I16: =TRUNC(H16*J16,2) -> 458.19 | J16: =PFP3_FatorKc!$E$20 -> 1.1942 | K16: =TRUNC(G16*H16,2) -> 767.36 | L16: =TRUNC(I16*G16,2) -> 916.38 | N16: BDI PARA SERVIÇO | S16: =S20/12 -> 7.5 | T16: =T20/12 -> 4.5 | U16: =U20/12 -> 3.75 | V16: =V20/12 -> 2.5
A17: EM | B17: EM | C17: EM | D17: 1.3 | E17: Elaboração de Projeto | K17: =SUM(K18:K18) -> 5704.69 | L17: =TRUNC(SUM(L18:L18),2) -> 6812.54 | N17: =COMPOSIÇÕES!O32 -> 0.2073
A18: M3 | B18: M3 | C18: M3 | D18: 1.3.1 | E18: Elaboração de Projeto (sob demanda) | F18: un | G18: 0.25 | H18: =TRUNC(COMPOSIÇÕES!I15,2) -> 22818.77 | I18: =TRUNC(H18*J18,2) -> 27250.17 | J18: =PFP3_FatorKc!$E$20 -> 1.1942 | K18: =TRUNC(G18*H18,2) -> 5704.69 | L18: =TRUNC(I18*G18,2) -> 6812.54 | R18: aproximação n° de ensaios
C19: MO | D19: 2 | E19: APOIO À FISCALIZAÇÃO 2 | F19: unid | G19: 12 | K19: =SUM(K20,K23) -> 60880.39 | L19: =TRUNC(SUM(L20,L23)*G19,2) -> 1295501.04 | S19: Recap | T19: TSD | U19: CBUQ | V19: Intertravado | W19: Total | X19: qnt/mês
A20: CO | B20: CO | C20: DP | D20: 2.1 | E20: Pessoal | K20: =SUM(K21:K22) -> 40699.92 | L20: =TRUNC(SUM(L21:L22),2) -> 83858.94 | R20: km | S20: 90 | T20: 54 | U20: 45 | V20: 30 | W20: =SUM(S20:V20) -> 219 | X20: =SUM(S16:V16) -> 18.25
A21: SICRO | B21: P8065 | C21: P3 | D21: 2.1.2 | E21: Engenheiro Junior | F21: mês | G21: 3 | H21: =TRUNC(VLOOKUP(B21,'DNIT Rel. Consolidação de M.O.'!$A$5:$D$105,4,0),2) -> 12443.57 | I21: =TRUNC(H21*J21,2) -> 26611.81 | J21: ='PFP2.1_FatorKa'!$E$38 -> 2.1386 | K21: =TRUNC(G21*H21,2) -> 37330.71 | L21: =TRUNC(I21*G21,2) -> 79835.43 | R21: m² | S21: =S20*7*1000 -> 630000 | T21: =T20*7*1000 -> 378000 | U21: =U20*7*1000 -> 315000 | V21: =V20*7*1000 -> 210000 | W21: =SUM(S21:V21) -> 1533000
A22: SICRO | B22: SICRO | C22: EC | D22: 2.1.3 | E22: Encargos Complementares (Eng. Jr.) | F22: mês | G22: =SUM(G21:G21) -> 3 | H22: =TRUNC(N11,2) -> 1123.07 | I22: =TRUNC(H22*J22,2) -> 1341.17 | J22: =PFP3_FatorKc!$E$20 -> 1.1942 | K22: =TRUNC(G22*H22,2) -> 3369.21 | L22: =TRUNC(I22*G22,2) -> 4023.51 | Q22: Ensaio/Critério
A23: DP | B23: DP | C23: DP | D23: 2.2 | E23: Diárias e Passagens | K23: =SUM(K24:K25) -> 20180.47 | L23: =TRUNC(SUM(L24:L25),2) -> 24099.48 | R23: Teor | S23: =(3*25200)/150 -> 504 | T23: 0 | U23: =(3*12600)/150 -> 252 | V23: 0 | W23: =SUM(S23:V23) -> 756 | X23: =INT(W23/12) -> 63 | Y23: =W23*0.3 -> 226.8 | Z23: =Y23/24 -> 9.45 | AB23: =INT(W23/36) -> 21
A24: B4 | B24: B4 | C24: B4 | D24: 2.2.1 | E24: Veículo leve sem motorista | F24: mês | G24: 3 | H24: ='CPU-VEICULO_Leve'!D7 -> 2122.666571 | I24: =TRUNC(H24*J24,2) -> 2534.88 | J24: =PFP3_FatorKc!$E$20 -> 1.1942 | K24: =TRUNC(G24*H24,2) -> 6367.99 | L24: =TRUNC(I24*G24,2) -> 7604.64 | R24: Marshal | S24: =S23 -> 504 | T24: 0 | U24: =U23 -> 252 | V24: 0 | W24: =SUM(S24:V24) -> 756 | X24: =INT(W24/12) -> 63 | Y24: =W24*0.3 -> 226.8 | Z24: =Y24/24 -> 9.45 | AB24: =INT(W24/36) -> 21
A25: V1 | B25: V1 | C25: V1 | D25: 2.2.2 | E25: Diárias (deslocamento + alimentação) | F25: dia | G25: 36 | H25: =TRUNC('CPU HOSPEDAGEM'!C40,2) -> 383.68 | I25: =TRUNC(H25*J25,2) -> 458.19 | J25: =PFP3_FatorKc!$E$20 -> 1.1942 | K25: =TRUNC(G25*H25,2) -> 13812.48 | L25: =TRUNC(I25*G25,2) -> 16494.84 | R25: C. Diam | S25: =S24 -> 504 | T25: 0 | U25: =U24 -> 252 | V25: 0 | W25: 756 | X25: 63 | Y25: 226.8 | Z25: 9.45 | AB25: 21
C26: MO | D26: 3 | E26: CONTROLE EXECUTIVO | F26: unid | G26: 12 | K26: =TRUNC(K27,2) -> 8271.83 | L26: =TRUNC(L27*G26,2) -> 119114.4 | R26: C. Concreto | S26: 0 | T26: 0 | U26: 0 | V26: =(V21*0.08)/50 -> 336 | W26: 336 | X26: 28 | Y26: 100.8 | Z26: 4.2 | AB26: 9
A27: TOP | B27: TOP | C27: EN. | D27: 3.1 | E27: Controle Executivo | K27: =SUM(K28) -> 8271.83 | L27: =TRUNC(SUM(L28),2) -> 9926.2 | R27: Ligante | S27: =ROUNDUP((S21/5000),0) -> 126 | T27: =ROUNDUP((T21/5000),0) -> 76 | U27: =U20 -> 45 | V27: 0 | W27: 247 | X27: 20 | Y27: 74.1 | Z27: 3.0875 | AB27: 6
A28: =COMPOSIÇÕES!A18 -> ORSE | B28: =COMPOSIÇÕES!C18 -> 9346 | D28: 3.1.1 | E28: Levantamento Topográfico (pós-obra) | F28: m² | G28: =3475.561*6.8 -> 23633.8148 | H28: =TRUNC(COMPOSIÇÕES!I18,2) -> 0.35 | I28: =COMPOSIÇÕES!J18 -> 0.42 | J28: - | K28: =TRUNC(G28*H28,2) -> 8271.83 | L28: =TRUNC(I28*G28,2) -> 9926.2 | N28: % contraprova | R28: Normal | S28: =S29 -> 0 | T28: =(54000/200)+T20 -> 324 | U28: =(45000/200)+U20 -> 270 | V28: =30000/200+V20 -> 180 | W28: 774 | X28: 64 | Y28: 232.2 | Z28: 9.675 | AB28: 21
C29: MO | D29: 4 | E29: CONTROLE TECNOLÓGICO | F29: unid | G29: 12 | K29: =TRUNC(K30,2) -> 64072.35 | L29: =TRUNC(L30*G29,2) -> 928240.8 | R29: Modif | S29: 0 | T29: =IF((T21/2000)>(T28-T20),T21/2000,T28-T20) -> 270 | U29: =IF((ROUNDUP(U21/2000,0))>(U28-U20),ROUNDUP(U21/2000,0),U28-U20) -> 225 | V29: =IF(V21/2000 > V28,V21/2000,V28-V20) -> 150 | W29: 645 | X29: 53 | Y29: 193.5 | Z29: 8.0625 | AB29: =INT(W29/36) -> 17
A30: EN. | B30: EN. | C30: EN. | D30: 4.1 | E30: Controle Tecnológico | K30: =SUM(K31:K46) -> 64072.35 | L30: =TRUNC(SUM(L31:L46),2) -> 77353.4 | R30: N amos solo | S30: 0 | T30: =T29+T28 -> 594 | U30: =U29+U28 -> 495 | V30: =V29+V28 -> 330 | W30: 1419 | X30: 118 | Y30: 425.7 | Z30: 17.7375 | AB30: =INT(#REF!/36) -> 
A31: COMPESA | B31: 01.07.05U | C31: 2024-07-01 | D31: 4.1.1 | E31: Ensaio de determinação do teor de betume - cimento asfáltico | F31: un | G31: 20 | H31: 127.22 | I31: =TRUNC(H31*(1+$N$17),2) -> 153.59 | J31: Utilização em caso de necessidade de realização de contraprova. A execução segue as orientações do IBRAOP, sendo admissível a redução do número de ensaios, mediante aprovação da fiscalização. | K31: =TRUNC(G31*H31,2) -> 2544.4 | L31: =TRUNC(I31*G31,2) -> 3071.8 | M31: =G31*$G$29 -> 240 | N31: =M31/W23 -> 0.3174603175 | R31: granu | S31: 0 | T31: =T30 -> 594 | U31: 495 | V31: 330 | W31: 1419 | X31: 118 | Y31: 425.7 | Z31: 17.7375 | AB31: =INT(W30/36) -> 39
A32: COMPESA | B32: 01.07.15U | C32: 2024-07-01 | D32: 4.1.2 | E32: Ensaio Marshall - Mistura betuminosa a quente | F32: un | G32: 20 | H32: 254.45 | I32: =TRUNC(H32*(1+$N$17),2) -> 307.19 | K32: =TRUNC(G32*H32,2) -> 5089 | L32: =TRUNC(I32*G32,2) -> 6143.8 | M32: =G32*$G$29 -> 240 | N32: =M32/W24 -> 0.3174603175 | R32: carac solo | S32: =S31 -> 0 | T32: 594 | U32: 495 | V32: 330 | W32: 1419 | X32: 118 | Y32: 425.7 | Z32: 17.7375 | AB32: 39
A33: SETOP | B33: ED-49547 | C33: 2025-04-01 | D33: 4.1.3 | E33: Ensaio de resistência à tração por compressão diametral | F33: un | G33: 20 | H33: 100.69 | I33: 121.56 | K33: 2013.8 | L33: 2431.2 | M33: 240 | N33: 0.3174603175 | R33: LL | S33: 0 | T33: 594 | U33: 495 | V33: 330 | W33: 1419 | X33: 118 | Y33: 425.7 | Z33: 17.7375 | AB33: 39
A34: SETOP | B34: ED-49546 | C34: 2025-04-01 | D34: 4.1.4 | E34: Ensaio de resistência à compressão simples concreto | F34: un | G34: 20 | H34: 100.21 | I34: 120.98 | K34: 2004.2 | L34: 2419.6 | M34: 240 | N34: 0.7142857143 | R34: LP | S34: 0 | T34: 594 | U34: 495 | V34: 330 | W34: 1419 | X34: 118 | Y34: 425.7 | Z34: 17.7375 | AB34: 39
A35: EMOP | B35: 01.001.0300-0 | C35: 2025-08-01 | D35: 4.1.5 | E35: Determinação da taxa de ligante (serviços de escritório, laboratório e campo) | F35: un | G35: 20 | H35: 417.32 | I35: 503.83 | K35: 8346.4 | L35: 10076.6 | M35: 240 | N35: 0.971659919 | R35: miniCBR | S35: 0 | T35: 594 | U35: 495 | V35: 330 | W35: 1419 | X35: 118 | Y35: 425.7 | Z35: 17.7375 | AB35: 39
A36: EMBASA | B36: 34.01.25 | C36: 2025-06-01 | D36: 4.1.6 | E36: Ensaio de compactação - proctor normal (NBR - 07182) | F36: un | G36: 15 | H36: 300 | I36: 362.19 | K36: 4500 | L36: 5432.85 | M36: 180 | N36: 0.2325581395 | R36: visc | S36: =S23 -> 504 | T36: =T29 -> 270 | U36: =U23 -> 252 | V36: 0 | W36: 1026 | X36: 85 | Y36: 307.8 | Z36: 12.825 | AB36: 39
A37: EMBASA | B37: 34.01.31 | C37: 2025-06-01 | D37: 4.1.7 | E37: Ensaio de compactação - proctor modificado (NBR - 07182) | F37: un | G37: 15 | H37: 157.86 | I37: 190.58 | K37: 2367.9 | L37: 2858.7 | M37: 180 | N37: 0.2790697674 | R37: Los Angeles | S37: =S23 -> 504 | T37: =T29 -> 270 | U37: =U24 -> 252 | V37: 0 | W37: 1026 | X37: 85 | Y37: 307.8 | Z37: 12.825 | AB37: 28
A38: EMOP | B38: 01.001.0060-0 | C38: 2025-08-01 | D38: 4.1.9 | E38: Amostra de solo - preparação para ensaios de compactação e ensaios de caracterização (serviços de escritório, laboratório e campo) | F38: un | G38: 20 | H38: 632.24 | I38: 763.3 | K38: 12644.8 | L38: 15266 | M38: 240 | N38: 0.1691331924 | R38: Comp. MF | S38: =ROUNDUP((18000/(40/0.1025)),0) -> 47 | T38: =ROUNDUP((108000/(40/0.1025)),0) -> 277 | U38: =ROUNDUP((90000/(40/0.1025)),0) -> 231 | V38: =ROUNDUP((60000/(40/0.1025)),0) -> 154 | W38: 709 | X38: 59 | Y38: 212.7 | Z38: 8.8625 | AB38: 28
A39: COMPESA | B39: 01.07.06U | C39: 2024-07-01 | D39: 4.1.10 | E39: Ensaio de granulometria por peneiramento - solos | F39: un | G39: 20 | H39: 116.31 | I39: 140.42 | K39: 2326.2 | L39: 2808.4 | M39: 240 | N39: 0.1691331924 | AB39: 19
A40: EMBASA | B40: 34.97.04 | C40: 2025-06-01 | D40: 4.1.11 | E40: Ensaio de caracterização do solo | F40: un | G40: 20 | H40: 333.81 | I40: 403 | K40: 6676.2 | L40: 8060 | M40: 240 | N40: 0.1691331924
A41: COMPESA | B41: 01.07.09U | C41: 2024-07-01 | D41: 4.1.12 | E41: Ensaio de Limite de Liquidez - Solos | F41: un | G41: 20 | H41: 81.47 | I41: 98.35 | K41: 1629.4 | L41: 1967 | M41: 240 | N41: 0.1691331924
A42: COMPESA | B42: 01.07.08U | C42: 2024-07-01 | D42: 4.1.13 | E42: Ensaio de Limite de Plasticidade - Solos | F42: un | G42: 20 | H42: 65.42 | I42: 78.98 | K42: 1308.4 | L42: 1579.6 | M42: 240 | N42: 0.1691331924
A43: EMOP | B43: 01.001.0052-0 | C43: 2025-08-01 | D43: 4.1.14 | E43: Mini-CBR e expansão do solo compactado em equipamento miniatura (Serviços de escritório, Laboratório e Campo) | F43: un | G43: 20 | H43: 126.44 | I43: 152.65 | K43: 2528.8 | L43: 3053 | M43: 240 | N43: 0.1691331924
A44: COMPESA | B44: 01.07.O2U | C44: 2024-07-01 | D44: 4.1.15 | E44: Ensaio de Viscosidade Saybolt-Furol - MATERIAL BETUMINIOSO | F44: un | G44: 20 | H44: 159.93 | I44: 193.08 | K44: 3198.6 | L44: 3861.6 | M44: 240 | N44: 0.2339181287
A45: COMPESA | B45: 01.07.13U | C45: 2024-07-01 | D45: 4.1.16 | E45: Ensaio de Abrasão Los Angeles - Agregados | F45: un | G45: 20 | H45: 305.33 | I45: 368.62 | K45: 6106.6 | L45: 7372.4 | M45: 240 | N45: 0.2339181287
A46: EMOP | B46: 01.001.0123-0 | C46: 2025-08-01 | D46: 4.1.17 | E46: Resistência à compressão de corpo de prova cilíndrico de 15 x 30cm, por corpo de prova (serviços de escritório, laboratório e campo) | F46: un | G46: 15 | H46: 52.51 | I46: 63.39 | K46: 787.65 | L46: 950.85 | M46: 180 | N46: 0.2538787024
A47: TOTAL DOS CUSTOS DIRETOS | I47: =SUM(K9,K26,K19,K29) -> 158723.1
A48: TOTAL DOS ENCARGOS E DISPESAS DIVERSAS | I48: =I49-I47 -> 82713.7
A49: PREÇO TOTAL MENSAL | I49: =SUM(L10,L15,L17,L27,L30,L20,L23) -> 241436.8
A50: NOME DO INFORMANTE: | K50: QUALIFICAÇÃO
A52: ASSINATURA: | K52: DATA:
A54: OBSERVAÇÃO:
A55: Uni - unidade de medição do insumo;
A56: Qde - Quantidade do Insumo (não pode ocorrer alteração pela Licitante)
A57: CUD - Custo Unitário Direto do Insumo (sem encargos, taxas e impostos, valor não pode ser maior que o Orçado pela Codevasf)
A58: CT - Custo Total (sem encargos, taxas e impostos) - CT = Qde x CUD
A59: FatorK - Taxa de Ressarcimento de Despesas e Encargos (detalhar composição nas Planilhas "FCON2.1", "FCON2.2", "FCON3")
A60: PU - Preço Unitário (incluído encargos, taxas e impostos) - PU = CUD x FatorK
A61: PT - Preço Total (incluído encargos, taxas e impostos) - PT = Qde x PU

Sheet CRFF
A1: CRONOGRAMA FÍSICO FINANCEIRO
A2: =Resumo!A6 -> PROJETO:
A4: =Resumo!A7 -> CONTRATAÇÃO DE SERVIÇOS DE ENGENHARIA PARA APOIO E SUPERVISÃO TÉCNICO ADMINISTRATIVO NA GESTÃO DE CONTRATOS E CONVÊNIOS DE QUALIFICAÇÃO VIÁRIA NA ÁREA DE ATUAÇÃO 14ª SUPERINTENDÊNCIA REGIONAL DA CODEVASF, NO ESTADO DO CEARÁ. | H4: =Resumo!H7 -> CODEVASF (14ª/SR)
A8: Item | B8: Descrição | C8: Total Por Etapa | D8: 30 DIAS | E8: 60 DIAS | F8: 30 DIAS | G8: 60 DIAS | H8: 90 DIAS | I8: 120 DIAS | J8: 150 DIAS | K8: 180 DIAS | L8: 210 DIAS | M8: 240 DIAS | N8: 270 DIAS | O8: 300 DIAS | P8: 330 DIAS | Q8: 360 DIAS | R8: 30 DIAS | S8: 60 DIAS | T8: 90 DIAS
B9: EMISSÃO OS | D9: Limite máx
A10: 1.0 | B10: APOIO À FISCALIZAÇÃO 1 | C10: =SUM(F10:T10) -> 1 | F10: 0.0833 | G10: 0.0833 | H10: 0.0833 | I10: 0.0833 | J10: 0.0833 | K10: 0.0833 | L10: 0.0833 | M10: 0.0833 | N10: 0.0834 | O10: 0.0834 | P10: 0.0834 | Q10: 0.0834
C11: ='PFP1'!L9 -> 554385.36 | F11: =ROUND($C$11*F10,2) -> 46180.3 | G11: =ROUND($C$11*G10,2) -> 46180.3 | H11: 46180.3 | I11: 46180.3 | J11: 46180.3 | K11: 46180.3 | L11: 46180.3 | M11: 46180.3 | N11: 46235.74 | O11: 46235.74 | P11: 46235.74 | Q11: 46235.74
A12: 2.0 | B12: APOIO Á FISCALIZAÇÃO 2 | C12: =SUM(F12:T12) -> 1 | F12: 0.0833 | G12: 0.0833 | H12: 0.0833 | I12: 0.0833 | J12: 0.0833 | K12: 0.0833 | L12: 0.0833 | M12: 0.0833 | N12: 0.0834 | O12: 0.0834 | P12: 0.0834 | Q12: 0.0834
C13: ='PFP1'!L19 -> 1295501.04 | F13: =ROUND($C$13*F12,2) -> 107915.24 | G13: =ROUND($C$13*G12,2) -> 107915.24 | H13: 107915.24 | I13: 107915.24 | J13: 107915.24 | K13: 107915.24 | L13: 107915.24 | M13: 107915.24 | N13: =TRUNC($C$13*N12,2) -> 108044.78 | O13: =TRUNC($C$13*O12,2) -> 108044.78 | P13: 108044.78 | Q13: 108044.78
A14: 3.0 | B14: CONTROLE EXECUTIVO | C14: =SUM(F14:T14) -> 1 | F14: 0.0833 | G14: 0.0833 | H14: 0.0833 | I14: 0.0833 | J14: 0.0833 | K14: 0.0833 | L14: 0.0833 | M14: 0.0833 | N14: 0.0834 | O14: 0.0834 | P14: 0.0834 | Q14: 0.0834
C15: ='PFP1'!L26 -> 119114.4 | F15: =ROUND($C$15*F14,2) -> 9922.23 | G15: =ROUND($C$15*G14,2) -> 9922.23 | H15: 9922.23 | I15: 9922.23 | J15: 9922.23 | K15: 9922.23 | L15: 9922.23 | M15: 9922.23 | N15: 9934.14 | O15: 9934.14 | P15: 9934.14 | Q15: 9934.14
A16: 4.0 | B16: CONTROLE TECNOLÓGIO | C16: =SUM(F16:T16) -> 1 | F16: 0.0833 | G16: 0.0833 | H16: 0.0833 | I16: 0.0833 | J16: 0.0833 | K16: 0.0833 | L16: 0.0833 | M16: 0.0833 | N16: 0.0834 | O16: 0.0834 | P16: 0.0834 | Q16: 0.0834
C17: ='PFP1'!L29 -> 928240.8 | F17: =ROUND($C$17*F16,2) -> 77322.46 | G17: =ROUND($C$17*G16,2) -> 77322.46 | H17: 77322.46 | I17: 77322.46 | J17: 77322.46 | K17: 77322.46 | L17: 77322.46 | M17: 77322.46 | N17: 77415.28 | O17: 77415.28 | P17: 77415.28 | Q17: 77415.28
B18: MEDIÇÕES
B19: EMISSÃO DO TEF | S19: Limite máx
A20: Porcentagem | F20: =ROUND(F21/$P$25,4) -> 0.0833 | G20: =ROUND(G21/$P$25,4) -> 0.0833 | H20: 0.0833 | I20: 0.0833 | J20: 0.0833 | K20: 0.0833 | L20: 0.0833 | M20: 0.0833 | N20: 0.0834 | O20: 0.0834 | P20: 0.0834 | Q20: 0.0834
A21: Custo | F21: =F11+F13+F17+F15 -> 241340.23 | G21: =G11+G13+G17+G15 -> 241340.23 | H21: 241340.23 | I21: 241340.23 | J21: 241340.23 | K21: 241340.23 | L21: 241340.23 | M21: 241340.23 | N21: 241629.94 | O21: 241629.94 | P21: 241629.94 | Q21: 241629.94
A22: Porcentagem Acumulada | F22: =ROUND(F23/$P$25,4) -> 0.0833 | G22: =ROUND(G23/$P$25,4) -> 0.1666 | H22: 0.2499 | I22: 0.3332 | J22: 0.4165 | K22: 0.4998 | L22: 0.5831 | M22: 0.6664 | N22: 0.7498 | O22: 0.8332 | P22: 0.9166 | Q22: 1
A23: Custo Acumulado | F23: =F21 -> 241340.23 | G23: =F23+G21 -> 482680.46 | H23: =G23+H21 -> 724020.69 | I23: 965360.92 | J23: 1206701.15 | K23: 1448041.38 | L23: 1689381.61 | M23: 1930721.84 | N23: 2172351.78 | O23: 2413981.72 | P23: 2655611.66 | Q23: 2897241.6
A25: Total Geral | P25: =Q23 -> 2897241.6
D28: 30 | E28: 60 | F28: 90 | G28: 120 | H28: 150 | I28: 180 | J28: 210 | K28: 240 | L28: 270 | M28: 300 | N28: 330 | O28: 360 | P28: 390 | Q28: 420 | R28: 450 | S28: 480 | T28: 510

Sheet PFP2.1_FatorKa
A4: DETALHAMENTO DOS ENCARGOS SOCIAIS: Ka | F4: CODIGO:
F5: PFP-2.1
A6: PROJETO: | C6: CONTRATANTE: | F6: EDITAL:
A7: ='PFP1'!A7 -> CONTRATAÇÃO DE SERVIÇOS DE ENGENHARIA PARA APOIO E SUPERVISÃO TÉCNICO ADMINISTRATIVO NA GESTÃO DE CONTRATOS E CONVÊNIOS DE QUALIFICAÇÃO VIÁRIA NA ÁREA DE ATUAÇÃO 14ª SUPERINTENDÊNCIA REGIONAL DA CODEVASF, NO ESTADO DO CEARÁ. | C7: CODEVASF (14ª/SR)
A8: DISCRIMINAÇÃO | E8: VALORES
E9: % | F9: R$ | J9: =SUM(J10:J13) -> 0 | K9: =SUM(K10:K13) -> 0
A10: A | B10: ENCARGOS SOCIAIS BÁSICOS | E10: =ROUND(SUM(E11:E19),4) -> 0.368 | F10: =E10*'PFP1'!$K$9 -> 9383.45904
A11: A1 | B11: INSS | E11: 0.2 | F11: =E11*'PFP1'!$K$9 -> 5099.706
A12: A2 | B12: SESI | E12: 0.015 | F12: =E12*'PFP1'!$K$9 -> 382.47795
A13: A3 | B13: SENAI | E13: 0.01 | F13: =E13*'PFP1'!$K$9 -> 254.9853
A14: A4 | B14: INCRA | E14: 0.002 | F14: =E14*'PFP1'!$K$9 -> 50.99706 | K14: =SUM(K15:K16) -> 0
A15: A5 | B15: SEBRAE | E15: 0.006 | F15: =E15*'PFP1'!$K$9 -> 152.99118
A16: A6 | B16: Salário Educação | E16: 0.025 | F16: =E16*'PFP1'!$K$9 -> 637.46325
A17: A7 | B17: Seguro Contra Acidentes de Trabalho | E17: 0.03 | F17: =E17*'PFP1'!$K$9 -> 764.9559 | K17: =SUM(K18:K19) -> 0
A18: A8 | B18: FGTS | E18: 0.08 | F18: =E18*'PFP1'!$K$9 -> 2039.8824
A19: A9 | B19: SECONCI | E19: 0 | F19: =E19*'PFP1'!$K$9 -> 0
A20: B | B20: ENCARGOS SOCIAIS QUE RECEBEM INCIDÊNCIA DE "A" | E20: =ROUND(SUM(E21:E27),4) -> 0.1946 | F20: =E20*'PFP1'!$K$9 -> 4962.013938 | K20: =SUM(K21:K22) -> 0
A21: B3 | B21: Auxílio Enfermidade | E21: 0.0065 | F21: =E21*'PFP1'!$K$9 -> 165.740445
A22: B4 | B22: 13º Salário | E22: 0.0833 | F22: =E22*'PFP1'!$K$9 -> 2124.027549
A23: B5 | B23: Licença Paternidade | E23: 0.0005 | F23: =E23*'PFP1'!$K$9 -> 12.749265 | J23: =SUM(J24:J29) -> 0 | K23: =SUM(K24:K29) -> 0
A24: B6 | B24: Faltas Justificadas | E24: 0.0056 | F24: =E24*'PFP1'!$K$9 -> 142.791768
A25: B8 | B25: Auxílio Acidente de Trabalho | E25: 0.0007 | F25: =E25*'PFP1'!$K$9 -> 17.848971
A26: B9 | B26: Férias Gozadas | E26: 0.0977 | F26: =E26*'PFP1'!$K$9 -> 2491.206381
A27: B10 | B27: Salário Maternidade | E27: 0.0003
A28: C | B28: ENCARGOS SOCIAIS QUE NÃO RECEBEM INCIDÊNCIA DE "A" | E28: =ROUND(SUM(E29:E33),4) -> 0.0805 | F28: =E28*'PFP1'!$K$9 -> 2052.631665
A29: C1 | B29: Aviso Prévio Indenizado | E29: 0.0417 | F29: =E29*'PFP1'!$K$9 -> 1063.288701
A30: C2 | B30: Aviso Prévio Trabalhado | E30: 0.001 | F30: =E30*'PFP1'!$K$9 -> 25.49853
A31: C3 | B31: Férias Indenizadas | E31: 0.0136 | F31: =E31*'PFP1'!$K$9 -> 346.780008
A32: C4 | B32: Depósito Rescisão Sem Justa Causa | E32: 0.0207 | F32: =E32*'PFP1'!$K$9 -> 527.819571 | H32: =K9+K14+K20+K17+K23 -> 0
A33: C5 | B33: Indenização Adicional | E33: 0.0035 | F33: =E33*'PFP1'!$K$9 -> 89.244855
A34: D | B34: REINCIDÊNCIAS | E34: =ROUND(SUM(E35:E36),4) -> 0.0753 | F34: =E34*'PFP1'!$K$9 -> 1920.039309
A35: D1 | B35: Reincidência de "A" sobre "B" | E35: =ROUND(E10*E20,4) -> 0.0716 | F35: =E35*'PFP1'!$K$9 -> 1825.694748
A36: D2 | B36: Reincidência de "A" sobre Aviso Prévio Trabalhado e reincidência do FGTS sobre aviso prévio indenizado | E36: 0.0037 | F36: =E36*'PFP1'!$K$9 -> 94.344561
A37: K1 | B37: ENCARGOS SOCIAIS | E37: =ROUND(E10+E20+E28+E34,4) -> 0.7184 | F37: =E37*'PFP1'!$K$9 -> 18318.14395
A38: Ka | B38: TAXA DE RESSARCIMENTO DE DESPESAS E ENCARGOS SOBRE M.O. | E38: =TRUNC((1+E37+PFP3_FatorKc!E16)*(1+PFP3_FatorKc!E15)*(1+PFP3_FatorKc!E11),4) -> 2.1386
A39: NOME DO INFORMANTE: | E39: QUALIFICAÇÃO
A41: ASSINATURA: | E41: DATA:
A43: OBSERVAÇÃO:
A44: 1 - DISCRIMINAR OS ENCARGOS SOCIAIS COM SEUS RESPECTIVOS PERCENTUAS TOTALIZANDO OS MESMOS.
A45: 2 - APLICAR O % TOTAL P/ CALCULAR OS E. SOCIAIS INCIDENTES NA MÃO-DE-OBRA COM VÍNCULO PERMANENTE
A46: Ka - Taxa de Ressarcimento de Despesas e Encargos sobre a Mão de Obra COM VINCULO (incide apenas no Insumo Codigo M.O.)
A47: Ka = (1 + K1 + K2) x (1 + K3) x (1 + K4)

Sheet PFP2.2_FatorKb
A4: DETALHAMENTO DOS ENCARGOS SOCIAIS: Kb | F4: CODIGO:
F5: PFP-2.2
A6: PROJETO: | C6: CONTRATANTE: | F6: EDITAL:
A7: ='PFP1'!A7 -> CONTRATAÇÃO DE SERVIÇOS DE ENGENHARIA PARA APOIO E SUPERVISÃO TÉCNICO ADMINISTRATIVO NA GESTÃO DE CONTRATOS E CONVÊNIOS DE QUALIFICAÇÃO VIÁRIA NA ÁREA DE ATUAÇÃO 14ª SUPERINTENDÊNCIA REGIONAL DA CODEVASF, NO ESTADO DO CEARÁ. | C7: CODEVASF (14ª/SR)
A8: DISCRIMINAÇÃO | E8: VALORES
E9: % | F9: R$
A10: A | B10: ENCARGOS SOCIAIS BÁSICOS | E10: =ROUND(SUM(E11:E19),4) -> 0.2 | F10: =ROUND(SUM(F11:F19),4) -> 0.2
A11: A1 | B11: INSS | E11: 0.2 | F11: 0.2
A12: A2 | B12: SESI | E12: 0 | F12: 0
A13: A3 | B13: SENAI | E13: 0 | F13: 0
A14: A4 | B14: INCRA | E14: 0 | F14: 0
A15: A5 | B15: SEBRAE | E15: 0 | F15: 0
A16: A6 | B16: Salário Educação | E16: 0 | F16: 0
A17: A7 | B17: Seguro Contra Acidentes de Trabalho | E17: 0 | F17: 0
A18: A8 | B18: FGTS | E18: 0 | F18: 0
A19: A9 | B19: SECONCI | E19: 0 | F19: 0
A20: B | B20: ENCARGOS SOCIAIS QUE RECEBEM INCIDÊNCIA DE "A" | E20: =ROUND(SUM(E21:E27),4) -> 0 | F20: =ROUND(SUM(F21:F27),4) -> 0
A21: B3 | B21: Auxílio Enfermidade | E21: 0 | F21: 0
A22: B4 | B22: 13º Salário | E22: 0 | F22: 0
A23: B5 | B23: Licença Paternidade | E23: 0 | F23: 0
A24: B6 | B24: Faltas Justificadas | E24: 0 | F24: 0
A25: B8 | B25: Auxílio Acidente de Trabalho | E25: 0 | F25: 0
A26: B9 | B26: Férias Gozadas | E26: 0 | F26: 0
A27: B10 | B27: Salário Maternidade | E27: 0 | F27: 0
A28: C | B28: ENCARGOS SOCIAIS QUE NÃO RECEBEM INCIDÊNCIA DE "A" | E28: =ROUND(SUM(E29:E33),4) -> 0 | F28: =ROUND(SUM(F29:F33),4) -> 0
A29: C1 | B29: Aviso Prévio Indenizado | E29: 0 | F29: 0
A30: C2 | B30: Aviso Prévio Trabalhado | E30: 0 | F30: 0
A31: C3 | B31: Férias Indenizadas | E31: 0 | F31: 0
A32: C4 | B32: Depósito Rescisão Sem Justa Causa | E32: 0 | F32: 0 | H32: =K9+K14+K20+K17+K23 -> 0
A33: C5 | B33: Indenização Adicional | E33: 0 | F33: 0
A34: D | B34: REINCIDÊNCIAS | E34: =ROUND(SUM(E35:E36),4) -> 0 | F34: =ROUND(SUM(F35:F36),4) -> 0
A35: D1 | B35: Reincidência de "A" sobre "B" | E35: =ROUND(E10*E20,4) -> 0 | F35: 0
A36: D2 | B36: Reincidência de "A" sobre Aviso Prévio Trabalhado e reincidência do FGTS sobre aviso prévio indenizado | E36: =ROUND(E10*E30,4)+ROUND(E29*E13,4) -> 0 | F36: 0
A37: K1 | B37: ENCARGOS SOCIAIS | E37: =ROUND(E10+E20+E28+E34,4) -> 0.2 | F37: =F34+F28+F20+F10 -> 0.2
A38: Kb | B38: TAXA DE RESSARCIMENTO DE DESPESAS E ENCARGOS SOBRE M.O. | E38: =TRUNC((1+E37+PFP3_FatorKc!E16)*(1+PFP3_FatorKc!E15)*(1+PFP3_FatorKc!E11),4) -> 1.5195
A39: NOME DO INFORMANTE: | E39: QUALIFICAÇÃO
A41: ASSINATURA: | E41: DATA:
A43: OBSERVAÇÃO:
A44: 1 - DISCRIMINAR OS ENCARGOS SOCIAIS COM SEUS RESPECTIVOS PERCENTUAS TOTALIZANDO OS MESMOS.
A45: 2 - APLICAR O % TOTAL P/ CALCULAR OS E. SOCIAIS INCIDENTES NA MÃO-DE-OBRA SEM VÍNCULO PERMANENTE
A46: Kb - Taxa de Ressarcimento de Despesas e Encargos sobre a Mão de Obra SEM VINCULO (incide apenas no Insumo Codigo M.O.)
A47: Kb = (1 + K1 + K2) x (1 + K3) x (1 + K4)

Sheet PFP3_FatorKc
A4: DESPESAS FISCAIS E CUSTOS DIVERSOS: Kc | F4: CODIGO:
F5: PFP-3
A6: PROJETO: | C6: CONTRATANTE: | F6: EDITAL:
A7: ='PFP1'!A7 -> CONTRATAÇÃO DE SERVIÇOS DE ENGENHARIA PARA APOIO E SUPERVISÃO TÉCNICO ADMINISTRATIVO NA GESTÃO DE CONTRATOS E CONVÊNIOS DE QUALIFICAÇÃO VIÁRIA NA ÁREA DE ATUAÇÃO 14ª SUPERINTENDÊNCIA REGIONAL DA CODEVASF, NO ESTADO DO CEARÁ. | C7: CODEVASF (14ª/SR)
A8: DISCRIMINAÇÃO 1 | D8: VALORES
D9: % preço | E9: % custo | I9: =SUM(I10:I13) -> 0 | J9: =SUM(J10:J13) -> 0
A10: K4 | B10: DESPESAS FISCAIS | D10: K' (%)2 | E10: K (%)3
D11: =ROUND(D12+D13+D14,4) -> 0.104 | E11: =ROUND(E12+E13+E14,4) -> 0.1161
A12: 1 | B12: ISS | D12: 0.03 | E12: =ROUND((1/(1-$D$11))*D12,4) -> 0.0335
A13: 2 | B13: PIS - aliquota efetiva com percentual-desconto de 20% | D13: =ROUND(1.65%*0.8,4) -> 0.0132 | E13: =ROUND((1/(1-$D$11))*D13,4) -> 0.0147
A14: 3 | B14: COFINS - aliquota efetiva com percentual-desconto de 20% | D14: =ROUND(7.6%*0.8,4) -> 0.0608 | E14: 0.0679 | J14: =SUM(J15:J16) -> 0
A15: K3 | B15: REMUNERAÇÃO DA EMPRESA (LUCRO) | E15: 0.07
A16: K2 | B16: CUSTOS DA ADMINISTRAÇÃO CENTRAL | E16: =ROUND(SUM(E17:E19),4) -> 0.0724
A17: 4 | B17: Custos da administração central da empresa (diretoria, pessoal técnico de apoio e pessoal administrativo não diretamente vinculado à prestação dos serviços) | E17: 0.04 | J17: =SUM(J18:J19) -> 0
A18: 5 | B18: Outras despesas que afetam o custo de produção como treinamento, biblioteca, programa de qualidade, programa de benefícios, auditoria interna e externa | E18: 0.02
A19: 6 | B19: Despesas fixas e variaveis com patrimônio, aluguéis, comunicação, manutenção e transporte não diretamente relacionados com o custo direto dos serviços | E19: 0.0124
A20: Kc | B20: TAXA RESSARCIMENTO DE DESPESAS SOBRE CUSTOS DIVERSOS | E20: =TRUNC((1+E15)*(1+E11),4) -> 1.1942 | J20: =SUM(K21:K22) -> 0
A21: NOME DO INFORMANTE: | E21: QUALIFICAÇÃO:
A23: ASSINATURA: | E23: DATA: | J23: =SUM(J24:J29) -> 0 | K23: =SUM(K24:K29) -> 0
A25: Observação:
A26: 1 - RELACIONAR OS CUSTOS DE ADMINISTRAÇÃO COM RESPECTIVOS PERCENTUAIS INCIDENTES NA MÃO -DE-OBRA
A27: 1 - DISCRIMINAR OS TRIBUTOS QUE INCIDEM SOBRE OS CUSTOS DA PRESTAÇÃO DOS SERVIÇOS
A28: 2 - K4 = INDICAR % DE CADA TRIBUTO E A SOMA DOS MESMOS (ex: ISS 5% + PIS 1,65% + COFINS 7,60% = 14,25%)
A29: 3 - PIS e COFINS, Regime de Incidencia Acumulativa (0,65% e 3,00% - sem percentual de desconto) ou em Regime de Incidencia Não Acumulativa (1,65% e 7,60% - aplicável percentual de desconto) de acordo com a forma de apuração do lucro no IRPJ. APRESENTAR COMPROVANTES de aproveitamento de créditos tributários dos últimos 12 meses em caso de aplicação de "percentual de desconto".
A30: 4 - AS DESPESAS FISCAIS (K4) INCIDEM SOBRE O TOTAL DA FATURA E NÃO SOBRE OS CUSTOS INCORRIDOS,
A31: DEVENDO SER CALCULADO O K4' APLICANDO-SE A SEGUINTE FÓRMULA:
A32: K4' = { [ 1 / ( 1 - K4) ] - 1 } x 100 | H32: =J9+J14+J20+J17+K23 -> 0
A33: =CONCATENATE(" K4' = { [ 1 / ( 1 - ",D11," ) ] - 1 } x 100") -> K4' = { [ 1 / ( 1 - 0,104 ) ] - 1 } x 100
A34: Kc - Taxa de Ressarcimento de Despesas sobre Custos Diversos (incide sobre os Insumos Codigo DP e EQ)
A35: Kc = (1 + K3) x (1 + K4)
A36: K2 - Incide sobre o Custo Total (CT) da Mão de Obra (MO)
A37: K3 - Incide sobre o Custo Total (CT) Mão de Obra com encargos (MO x Ka ou Kb), demais Custos (DP e EQ), e Custos da Administração Central (K2)
A38: K4 - Incide sobre o Custo Total (CT) Mão de Obra com encargos (MO x Ka ou Kb), demais Custos (DP e EQ), e Custos da Administração Central (K2) e Lucro (K3)

Sheet COMPOSIÇÕES
A2: =PFP3_FatorKc!A7 -> CONTRATAÇÃO DE SERVIÇOS DE ENGENHARIA PARA APOIO E SUPERVISÃO TÉCNICO ADMINISTRATIVO NA GESTÃO DE CONTRATOS E CONVÊNIOS DE QUALIFICAÇÃO VIÁRIA NA ÁREA DE ATUAÇÃO 14ª SUPERINTENDÊNCIA REGIONAL DA CODEVASF, NO ESTADO DO CEARÁ.
A3: COMPOSIÇÃO 4 | D3: DESCRIÇÃO | E3: UNIDADE | F3: QUANTIDADE | G3: CUSTO UNITÁRIO | H3: PREÇO UNITÁRIO | I3: CUSTO TOTAL | J3: PREÇO TOTAL
A4: ORIGEM | B4: CÓDIGO 1 | C4: CÓDIGO 2 | D4: Projeto Executivo | E4: [un] | F4: 1 | G4: CUSTO UNITÁRIO | I4: - | J4: -
A5: DNIT | C5: P9949 | D5: Topógrafo | E5: mês | F5: 0.5 | G5: =TRUNC(VLOOKUP(C5,'SICRO PESSOAL'!$A$6:$G$106,4,0),2) -> 9354.42 | H5: =TRUNC(G5*PFP3_FatorKc!$E$20,2) -> 11171.04 | I5: =TRUNC(G5*F5,2) -> 4677.21 | J5: =TRUNC(H5*F5,2) -> 5585.52
A6: DNIT | C6: P9950 | D6: Auxiliar de topógrafo | E6: mês | F6: 0.5 | G6: =TRUNC(VLOOKUP(C6,'SICRO PESSOAL'!$A$6:$G$106,4,0),2) -> 6069.37 | H6: =TRUNC(G6*PFP3_FatorKc!$E$20,2) -> 7248.04 | I6: =TRUNC(G6*F6,2) -> 3034.68 | J6: =TRUNC(H6*F6,2) -> 3624.02
A7: DNIT | C7: P9903 | D7: Auxiliar Técnico/Assistente de Engenharia | E7: mês | F7: 1 | G7: =TRUNC(VLOOKUP(C7,'SICRO PESSOAL'!$A$6:$G$106,4,0),2) -> 4888.98 | H7: =TRUNC(G7*PFP3_FatorKc!$E$20,2) -> 5838.41 | I7: 4888.98 | J7: 5838.41
A8: - | C8: - | D8: C.1 - MATERIAIS DE CONSUMO | E8: Estimativa % como referência de equipe técnica com encargos sociais | F8: 0.03 | G8: =TRUNC(SUM(G5:G7),2) -> 20312.77 | H8: =TRUNC(G8*PFP3_FatorKc!$E$20,2) -> 24257.5 | I8: 609.38 | J8: 727.72
A9: Codevasf | C9: - | D9: VEÍCULOS (Veículo tipo pick-up, cabine dupla - 2.0 16V 4x4 diesel Aut.) | E9: h | F9: 120 | G9: =TRUNC('CPU-VEICULO_PickUp'!C12,2) -> 23.05 | H9: =TRUNC(G9*PFP3_FatorKc!$E$20,2) -> 27.52 | I9: 2766 | J9: 3302.4
A10: DNIT | C10: E9553 | D10: C.3 - Estação total eletrônica com alcance máximo de 3.000 m | E10: h | F10: 120 | G10: =TRUNC(VLOOKUP(C10,'SICRO EQUIPAMENTOS'!$A$4:$K$541,10,0),2) -> 8.09 | H10: =TRUNC(G10*PFP3_FatorKc!$E$20,2) -> 9.66 | I10: 970.8 | J10: 1159.2
A11: DNIT | C11: P9858 | D11: Laboratorista | E11: mês | F11: 0.25 | G11: =TRUNC(VLOOKUP(C11,'SICRO PESSOAL'!$A$6:$G$106,4,0),2) -> 7960.14 | H11: =TRUNC(G11*PFP3_FatorKc!$E$20,2) -> 9505.99 | I11: 1990.03 | J11: 2376.49 | M11: MEMÓRIA DE CALCULO DO BDI DOS SERVIÇOS (ENVOLVENDO A CONSTRUÇÃO DE VIAS)
A12: DNIT | C12: P9833 | D12: Auxiliar de Laboratório | E12: mês | F12: 0.25 | G12: =TRUNC(VLOOKUP(C12,'SICRO PESSOAL'!$A$6:$G$106,4,0),2) -> 6049.92 | H12: =TRUNC(G12*PFP3_FatorKc!$E$20,2) -> 7224.81 | I12: 1512.48 | J12: 1806.2 | M12: ITEM | N12: DISCRIMINAÇÃO | O12: PERC. (%)
A13: DNIT | C13: B8959 | D13: Laboratório de solos | E13: mês | F13: 0.25 | G13: =TRUNC('DNIT Rel. Consolidação de C.G.'!F18,2) -> 3597.39 | H13: =TRUNC(G13*PFP3_FatorKc!$E$20,2) -> 4296 | I13: 899.34 | J13: 1074
A14: DNIT | C14: B8959 | D14: Laboratório de asfalto | E14: mês | F14: 0.25 | G14: =TRUNC('DNIT Rel. Consolidação de C.G.'!F16,2) -> 5879.5 | H14: =TRUNC(G14*PFP3_FatorKc!$E$20,2) -> 7021.29 | I14: 1469.87 | J14: 1755.32
I15: =TRUNC(SUM(I5:I14),2) -> 22818.77 | J15: =TRUNC(SUM(J5:J14),2) -> 27249.28 | M15: 1.00 | N15: Despesas Indiretas
M16: A1 | N16: Seguro e Garantia | O16: 0.0032
A17: COMPOSIÇÃO 5 | D17: DESCRIÇÃO | E17: UNIDADE | F17: QUANTIDADE | G17: CUSTO UNITÁRIO | H17: PREÇO UNITÁRIO | I17: CUSTO TOTAL | J17: PREÇO TOTAL | M17: A2 | N17: Riscos e Imprevistos | O17: 0.005
A18: ORSE | B18: CÓDIGO 1 | C18: 9346 | D18: LEVANTAMENTO TOPOGRÁFICO | E18: m2 | F18: 1 | G18: =J25 -> 0.35 | H18: =TRUNC(G18*(1+$O$32),2) -> 0.42 | I18: =TRUNC(G18*F18,2) -> 0.35 | J18: =TRUNC(H18*F18,2) -> 0.42 | M18: A3 | N18: Despesas Financeiras | O18: 0.0102
A19: ORSE | C19: 48 | D19: Auxiliar de Topografia | E19: H | F19: 0.0055 | G19: 21.66 | J19: =ROUND(F19*G19,2) -> 0.12 | M19: A4 | N19: Administração Central | O19: 0.038
A20: ORSE | C20: 6694 | D20: Desenhista Junior | E20: H | F20: 0.001 | G20: 27.5 | J20: =ROUND(F20*G20,2) -> 0.03 | M20: Total do Grupo A = | O20: =SUM(O16:O19) -> 0.0564
A21: ORSE | C21: 6443 | D21: Teodolito | E21: H | F21: 0.0027 | G21: 2.25 | J21: 0.01 | M21: 2.00 | N21: Benefício
A22: ORSE | C22: 5931 | D22: Tecnico Cadastro | E22: H | F22: 0.002 | G22: 35.97 | J22: 0.07 | M22: B1 | N22: LUCRO | O22: 0.0664
A23: ORSE | C23: 70 | D23: Topografo | E23: H | F23: 0.0027 | G23: 36.76 | J23: 0.1 | M23: Total do Grupo B = | O23: =O22 -> 0.0664
A24: ORSE | C24: 4415 | D24: Veículo Leve | E24: H | F24: 0.0016 | G24: 13.18 | J24: 0.02 | M24: 3.00 | N24: Impostos
I25: =TRUNC(SUM(I19:I24),2) -> 0 | J25: =TRUNC(SUM(J19:J24),2) -> 0.35 | M25: C1 | N25: PIS / PASEP | O25: 0.0065
M26: C2 | N26: COFINS | O26: 0.03
M27: C3 | N27: ISS (PONDERADO) | O27: 0.03
M28: Total do Grupo C = | O28: =SUM(O25:O27) -> 0.0665
M29: Fórmula Para Cálculo do B.D.I
M30: BDI =(((1+A4+A1+A2)*(1+A3)*(1+B))/(1-C))-1
M32: Bonificação Sobre Despesas indiretas (B.D.I) = | O32: =TRUNC((((1+O19+O16+O17)*(1+O18)*(1+O23))/(1-O28))-1,4) -> 0.2073

Sheet CPU-VEICULO_PickUp
A5: Composição de Preços de Locação de Veículo tipo pick-up
B6: Data de atualização: | C6: 2025-09-18 | E6: CV | F6: Média | G6: Mediana | L6: CV | M6: Média | N6: Mediana | W6: CV | X6: Média | Y6: Mediana
A7: CODEVASF | E7: =_xlfn.STDEV.S(I9:I17)/AVERAGE(I9:I17) -> 0.1202241887 | F7: =AVERAGE(I9:I17) -> 188340 | G7: =MEDIAN(I9:I17) -> 188325 | L7: =_xlfn.STDEV.S(M9:T9)/AVERAGE(M9:T9) -> 0.3100463916 | M7: =AVERAGE(M9:T9) -> 42.15875 | N7: =MEDIAN(M9:T9) -> 37.42 | W7: =_xlfn.STDEV.S(X9:AE9)/AVERAGE(X9:AE9) -> 0.2142616923 | X7: =AVERAGE(X9:AE9,X10:AE10,X11:AE11,X12:AE12,X13:AE13,X14:AE14) -> 556.9366667 | Y7: =MEDIAN(X9:AE9,X10:AE10,X11:AE11,X12:AE12,X13:AE13,X14:AE14) -> 513.575
A8: OBS: Preço sem BDI e sem motorista BDI= | E8: PREÇO FIPE - ref. Ago/2025 (Modelo 2024) | K8: PRODUTO | L8: MENOR (MÉDIA, MEDIANA) | M8: COT. 1 | N8: COT. 2 | O8: COT. 3 | P8: COT. 4 | Q8: COT. 5 | R8: COT. 6 | S8: COT. 7 | T8: COT. 8 | V8: PRODUTO | W8: MENOR (MÉDIA, MEDIANA) | X8: COT. 1 | Y8: COT. 2 | Z8: COT. 3 | AA8: COT. 4 | AB8: COT. 5 | AC8: COT. 6 | AD8: COT. 7 | AE8: COT. 8
A9: Veículo tipo pick-up, cabine dupla - 2.0 16V 4x4 diesel Aut. | E9: Pick up cabine dupla | F9: VW | G9: AMAROK Comfor. 3.0 V6 TDI 4x4 Dies. Aut. | H9: =(8.6+9)/2 -> 8.8 | I9: 204854 | K9: Lubrificante 5W30 Diesel 1L | L9: =SMALL(M7:N7,1) -> 37.42 | M9: 59.99 | N9: 34.1 | O9: 53.76 | P9: 34.9 | Q9: 23.9 | R9: 33.78 | S9: 39.94 | T9: 56.9 | V9: Pneu 225/65 R17 | W9: =SMALL(X7:Y7,1) -> 513.575 | X9: 659.9 | Y9: 497.94 | Z9: 619.2 | AA9: 778.91 | AB9: 478.8 | AC9: 749 | AD9: 459.9 | AE9: 497.94
B10: Custo Mensal (R$): | C10: =ROUND(C51,2) -> 4056.05 | F10: Toyota | G10: Hilux CD SR 4x4 2.8 TDI Diesel Aut. | H10: =(10.5+11.3)/2 -> 10.9 | I10: 230948 | V10: Pneu 225/60R18 | X10: 1088.7 | Y10: 622.25 | Z10: 965.2 | AA10: 493.41 | AB10: 799.9 | AC10: 514.75 | AD10: 688 | AE10: 498.67
B11: Custo Diária (R$): | C11: =ROUND(C10/22,2) -> 184.37 | F11: Nissan | G11: Frontier SE CD 4x4 2.3 Bi-TB Diesel Aut. | H11: =(10.1+10.9)/2 -> 10.5 | I11: 178978 | K11: https://www.google.com/search?udm=28&q=lubrificante+5w30+diesel&shoprs=CAEYFyoYbHVicmlmaWNhbnRlIDV3MzAgZGllc2VsMhcIFxILUmVsZXbDom5jaWEqBBABGAFQBGACiAEE&sa=X&ved=2ahUKEwjRzuWw3uKPAxXhE7kGHVS2AAUQ268JKAB6BAgiEAY&biw=1920&bih=945&dpr=1 | V11: Pneu 255/60R18 | X11: 482.9 | Y11: 488.63 | Z11: 569 | AA11: 585.25 | AB11: 589.5 | AC11: 592.82 | AD11: 593.34 | AE11: 599
B12: Custo Horário (R$): | C12: =ROUND(C10/176,2) -> 23.05 | F12: Nissan | G12: Frontier XE CD 4x4 2.3 Bi-TB Diesel Aut. | H12: =(10.5+11)/2 -> 10.75 | I12: 207177 | V12: Pneu 265/60R18 | X12: 448.32 | Y12: 479.94 | Z12: 512.4 | AA12: 512.4 | AB12: 512.4 | AC12: 556.18 | AD12: 559 | AE12: 574
A13: A | B13: Depreciação mensal do equipamento | F13: Mitsubishi | G13: L200 Tri. Outdo. GLS 2.4 CD 4x4 Die. Aut | H13: =(10.2+13.2)/2 -> 11.7 | I13: 188325 | V13: Pneu 265/65R17 | X13: 437.94 | Y13: 455 | Z13: 465.49 | AA13: 488.63 | AB13: 529.74 | AC13: 539 | AD13: 545.99 | AE13: 549
A14: A1 | B14: Preço de Aquisição | C14: =SMALL(F7:G7,1) -> 188325 | F14: Mitsubishi | G14: L200 Triton Sport GLS 2.4 CD Diesel Aut. | H14: =(10.2+13.2)/2 -> 11.7 | I14: 188377 | L14: =SUM(L15:L16) -> 0 | V14: Pneu 265/70R16 | X14: 394.17 | Y14: 400 | Z14: 439 | AA14: 450.89 | AB14: 469.28 | AC14: 479.94 | AD14: 500 | AE14: 521.34
A15: A2 | B15: Tempo previsto de vida útil (meses) | C15: 36 | F15: FIAT | G15: Toro Ultra 2.0 16V 4x4 TB Diesel Aut. | H15: 12.3 | I15: 166216
A16: A3 | B16: Previsão de recup. Na venda do bem usado | C16: 0.75 | F16: FIAT | G16: Toro Volcano 2.0 16V 4x4 TB Diesel Aut. | H16: =(12.9+13)/2 -> 12.95 | I16: 164521 | V16: 225/65 R17 | W16: https://www.google.com/search?q=%22225%2F65+R17+NOVO%22&sca_esv=0552b0ba02155725&udm=28&biw=1920&bih=945&sxsrf=AE3TifPefSyzeksfhlyRmLz63JM6Q2Z1cg%3A1758211622526&shoprs=&ei=Ji7MaLfzH5jD5OUPyd-CyQk&ved=0ahUKEwi3ns3Z2OKPAxWYIbkGHcmvIJkQ4dUDCBA&uact=5&oq=%22225%2F65+R17+NOVO%22&gs_lp=Ehlnd3Mtd2l6LW1vZGVsZXNzLXNob3BwaW5nIhEiMjI1LzY1IFIxNyBOT1ZPIkjuM1AAWNEvcAB4AZABAJgB7wGgAdcZqgEGMC4xNC4zuAEDyAEA-AEBmAINoALXE8ICChAAGIAEGEMYigXCAgUQABiABMICBxAjGLQEGCfCAgQQABgewgIGEAAYFhgewgIHEAAYgAQYDcICCRAAGIAEGBMYDcICCxAAGBMY1gUYDRgewgIJEAAY1gUYDRgemAMAkgcGMC4xMi4xoAe1U7IHBjAuMTIuMbgH1xPCBwUwLjguNcgHJg&sclient=gws-wiz-modeless-shopping
A17: A4 | B17: Custo mensal [A1-(A3xA1)]/A2 | C17: =(C14-(C16*C14))/C15 -> 1307.8125 | F17: FIAT | G17: Toro Ranch 2.0 16V 4x4 TB Diesel Aut. | H17: 13 | I17: 165664 | L17: =SUM(L18:L19) -> 0
A18: B | B18: Juros pelo Capital empregado | H18: estimativa km/L na estrada
A19: B1 | B19: Taxa mensal de Juros * | C19: =POWER(1+C56,1/12)-1 -> 0.01171491692
A20: B2 | B20: Juros s/depreciação/aluguel (B1xA4) | C20: =C19*C17 -> 15.32091478 | L20: =SUM(L21:L22) -> 0
A21: C | B21: Conservação e manutenção ** | C21: 0.75
A22: C1 | B22: Taxa de gastos s/a deprec. Inc. seguros (%) | C22: =C21 -> 0.75
A23: C2 | B23: Incidência mensal (C1xA4) | C23: =C22*C17 -> 980.859375 | K23: =SUM(K24:K29) -> 0 | L23: =SUM(L24:L29) -> 0
A24: D | B24: Combustível
A25: D1 | B25: Média mensal de quilômetro por veículo | C25: 3000
A26: D2 | B26: Preço do litro de combustível | C26: 5.85
A27: D3 | B27: Quilômetros rodados com um litro combustivel | C27: =AVERAGE(H9:H17) -> 11.4
A28: D4 | B28: Combustivel (D1/D3)*D2 | C28: =(C25/C27)*C26 -> 1539.473684
A29: E | B29: Lubrificantes
A30: E1 | B30: Quilometragem do Contrato (D1*12) | C30: =C25*C15 -> 108000
A31: E2 | B31: Franquia por troca de óleo (km) | C31: 10000
A32: E3 | B32: Preço do litro de óleo | C32: =L9 -> 37.42
A33: E4 | B33: Quantidade de litros de óleo por troca | C33: 7
A34: E5 | B34: Quantidade de dias do Contrato | C34: =365*(C15/12) -> 1095
A35: E6 | B35: Lubrificantes E = (E1*E3*E4*30)/E2*E5 | C35: =(C30*C32*C33*30)/(C31*C34) -> 77.50553425
A36: F | B36: Pneus
A37: F1 | B37: Quilometragem do Contrato | C37: =C30 -> 108000
A38: F2 | B38: Vida do Pneu em quilômetros | C38: 45000
A39: F3 | B39: Quantidade de pneus | C39: 4
A40: F4 | B40: Preço do Pneu | C40: =W9 -> 513.575 | F40: https://precos.petrobras.com.br/w/diesel/ce
A41: F5 | B41: Quantidade de dias do contrato | C41: =C34 -> 1095
A42: F6 | B42: Pneus = (F1*F3*F4*30)/(F2*F5) | C42: =(C37*C39*C40*30)/(C38*C41) -> 135.0772603 | K42: 129,90 LUBRAX 3L
A43: G | B43: Motorista | K43: 129,90 UNI 4L
A44: G1 | B44: Salário com encargos sociais | C44: 0
A45: H | B45: Custo Mensal
B46: Sem Motorista (A4+B2+C2+D4+E6+F6) | C46: =C17+C20+C23+C28+C35+C42 -> 4056.049269 | V46: 225/60R18 | W46: https://www.google.com/search?q=225+60+r18+novo&udm=28&shoprs=CAEYFyoPMjI1IDYwIHIxOCBub3ZvMikIFxIdUHJlw6dvOiBkbyBtZW5vciBwYXJhIG8gbWFpb3IqBBABGAFQAWACiAEB&sa=X&ved=2ahUKEwj7pOnQ2uKPAxWtK7kGHQi1LqcQ268JKAF6BAgrEAo&biw=1920&bih=945&dpr=1
B47: Com Motorista (A4+B2+C2+D4+E6+F6+G1) | C47: =C17+C20+C23+C28+C35+C42+C44 -> 4056.049269
A48: I | B48: Custo Direto p/ km Rodado
B49: Sem Motorista | C49: =C46/C25 -> 1.352016423
B50: Com Motorista | C50: =C47/C25 -> 1.352016423
A51: J | B51: Preço cobrado sem BDI | C51: =C46*(1+C8) -> 4056.049269
A52: J1 | B52: Sem Motorista | C52: =ROUND(C51,2) -> 4056.05
A53: J2 | B53: Com Motorista | C53: =ROUND(C47,2) -> 4056.05
B55: OBSERVAÇÕES:
A56: * | B56: Calculado com base na taxa SELIC AGOSTO/2025 a.a.: | C56: 0.15
B57: Taxa de Juros Selic — Português (Brasil) (www.gov.br)
A58: ** | B58: Conservação e manutenção - é calculado com o uso de um coeficiente multiplicador "k", conforme tabela abaixo, sobre a
B59: depreciação mensal do equipamento (Item A da planilha de composição de preços). Os valores de K são fornecidos por
B60: fabricantes.
B61: Metodologia conforme a bibliografia "Como Preparar Orçamentos de Obras", 3 edição, Aldo Dórea Mattos, 2019.
V64: 255/60R18 | W64: https://www.google.com/search?q=255+60+r18+novo&udm=28&shoprs=CAEYFyoPMjU1IDYwIHIxOCBub3ZvMikIFxIdUHJlw6dvOiBkbyBtZW5vciBwYXJhIG8gbWFpb3IqBBABGAFQAWACiAEB&sa=X&ved=2ahUKEwichvz02uKPAxU1FbkGHbppA5YQ268JKAF6BAgnEAc&biw=1920&bih=945&dpr=1
V101: 265/60R18 | W101: https://www.google.com/search?q=265+60+r18+novo&udm=28&shoprs=CAEYFyoPMjY1IDYwIHIxOCBub3ZvMikIFxIdUHJlw6dvOiBkbyBtZW5vciBwYXJhIG8gbWFpb3IqBBABGAFQAWACiAEB&sa=X&ved=2ahUKEwjU1s_G2-KPAxXEELkGHVuYEg8Q268JKAF6BAghEAc&biw=1920&bih=945&dpr=1
V137: 265/65R17 | W137: https://www.google.com/search?q=265+65+r17+novo&udm=28&shoprs=CAEYFyoPMjY1IDY1IHIxNyBub3ZvMikIFxIdUHJlw6dvOiBkbyBtZW5vciBwYXJhIG8gbWFpb3IqBBABGAFQAWACiAEB&sa=X&ved=2ahUKEwi6sKz02-KPAxWjDbkGHRd5ETkQ268JKAF6BAgWEAc&biw=1920&bih=945&dpr=1
V175: 265/70R16 | W175: https://www.google.com/search?q=265+70+r16+novo&udm=28&shoprs=CAEYFyoPMjY1IDcwIHIxNiBub3ZvMikIFxIdUHJlw6dvOiBkbyBtZW5vciBwYXJhIG8gbWFpb3IqBBABGAFQAWACiAEB&sa=X&ved=2ahUKEwj594eW3OKPAxVXK7kGHQrPAWIQ268JKAF6BAgiEAc&biw=1920&bih=945&dpr=1

Sheet CPU-VEICULO_Leve
A2: ='PFP1'!A7 -> CONTRATAÇÃO DE SERVIÇOS DE ENGENHARIA PARA APOIO E SUPERVISÃO TÉCNICO ADMINISTRATIVO NA GESTÃO DE CONTRATOS E CONVÊNIOS DE QUALIFICAÇÃO VIÁRIA NA ÁREA DE ATUAÇÃO 14ª SUPERINTENDÊNCIA REGIONAL DA CODEVASF, NO ESTADO DO CEARÁ.
B3: 2023-08-23 | C3: Data de atualização: | D3: 2025-01-22 | F3: CV | G3: Média | H3: Mediana | L3: CV | M3: Média | N3: Mediana | Y3: CV | Z3: Média | AA3: Mediana
A4: CODEVASF | F4: =_xlfn.STDEV.S(F7:I7)/AVERAGE(F7:I7) -> 0.1360977798 | G4: =AVERAGE(F7:I7) -> 64114.5 | H4: =MEDIAN(F7:I7) -> 65537.5 | L4: =_xlfn.STDEV.S(M6:V6)/AVERAGE(M6:V6) -> 0.4136735823 | M4: =AVERAGE(M6:V6) -> 29.0119 | N4: =MEDIAN(M6:V6) -> 27.925 | Y4: =_xlfn.STDEV.S(Z6:AI6)/AVERAGE(Z6:AI6) -> 0.2330882224 | Z4: =AVERAGE(Z6:AI9) -> 311.645625 | AA4: =MEDIAN(Z6:AI9) -> 316.95
A5: OBS: Preço sem BDI e sem motorista BDI= | F5: Preço FIPE - ref ago/2025 Modelo 2024 | K5: PRODUTO | L5: MENOR | M5: COT. 1 | N5: COT. 2 | O5: COT. 3 | P5: COT. 4 | Q5: COT. 5 | R5: COT. 6 | S5: COT. 7 | T5: COT. 8 | U5: COT. 9 | V5: COT. 10 | X5: PRODUTO | Y5: MENOR | Z5: COT. 1 | AA5: COT. 2 | AB5: COT. 3 | AC5: COT. 4 | AD5: COT. 5 | AE5: COT. 6 | AF5: COT. 7 | AG5: COT. 8 | AH5: COT. 9 | AI5: COT. 10
A6: Veículo Leve 1.0 T. Flex 12V 5p | F6: Renault Kwid Zen 1.0 | G6: Hyndai HB20 Sense 1.0 | H6: ONIX HATCH LT 1.0 12V Flex 5p Mec. | I6: MOBI TREKKING 1.0 Flex 5p. | K6: LUBRIFICANTE 15W40 | L6: =SMALL(M4:N4,1) -> 27.925 | M6: 59.9 | N6: 23 | O6: =364.8/20 -> 18.24 | P6: 20.9 | Q6: =385.38/20 -> 19.269 | R6: 29.06 | S6: 28.95 | T6: 33.9 | U6: 30 | V6: 26.9 | X6: Pneu 165/70 R14 | Y6: =SMALL(Z4:AA4,1) -> 311.645625 | Z6: 160.13 | AA6: 299.9 | AB6: 379 | AC6: 396.57 | AD6: 299.9 | AE6: 271.18 | AF6: 409 | AG6: 279 | AH6: 319 | AI6: 299
C7: Custo Mensal (R$): | D7: =D48 -> 2122.666571 | F7: 52829 | G7: 69128 | H7: 72554 | I7: 61947 | X7: Pneu 175/70 R14 | Z7: 398.91 | AA7: 269.9 | AB7: 373.69 | AC7: 339.9 | AD7: 368.5 | AE7: 454.9 | AF7: 217.74 | AG7: 229 | AH7: 329.9 | AI7: 362.81
C8: Custo Diário (R$): | D8: =D7/30 -> 70.75555236 | F8: estimativa consumo km/L estrada | K8: https://www.google.com/search?sca_esv=a1feb94103ceaa7e&sxsrf=AE3TifNEdg8vmg60OrJvtXO4M5WmausTMA:1758222014837&udm=28&fbs=AIIjpHydJdUtNKrM02hj0s4nbm4yRBEFyiFuxYYrR6QBOf_jD75Zzpf7Nr8v4hr8rOZhrL53GZEw1YDwfPusr5Oqk12e6GOo0mHb68W2RmSTW2dLiF1jW58LxwSrkZzG9BLyLCsLN_o-LR28Y7wcqdrZPNYZh4uAD25oA_KlmWz-nDBQoQ3XEOAtDKdJEdsEs3LexLdtt3Ckwq_xR5gNyPGJaoIw4-bByg&q=%22lubrificante+15w40+gasolina%22&ved=1t:220175&ictx=111&biw=1920&bih=945&dpr=1 | X8: Pneu 185/65 R15 | Z8: 137.89 | AA8: 436.91 | AB8: 249 | AC8: 369.9 | AD8: 349 | AE8: 259.9 | AF8: =1164.9/4 -> 291.225 | AG8: 188.19 | AH8: 509.9 | AI8: 319
C9: Custo Horário (R$): | D9: =D7/176 -> 12.06060552 | F9: 15.6 | G9: 14.6 | H9: 16.7 | I9: 15 | X9: Pneu 175/65 R14 | Z9: 183.22 | AA9: 332.41 | AB9: 385.5 | AC9: 279.9 | AD9: 262.9 | AE9: 228.45 | AF9: 314.9 | AG9: 379.9 | AH9: 199.9 | AI9: 329.9
A10: A | C10: Depreciação mensal do equipamento
A11: A1 | C11: Preço de Aquisição | D11: =SMALL(G4:H4,1) -> 64114.5
A12: A2 | C12: Tempo previsto de vida útil (meses) | D12: 36 | X12: 165/70 R14 | Y12: https://www.google.com/search?sca_esv=a1feb94103ceaa7e&sxsrf=AE3TifOUkDA3ITuMIZMDoAM_9Su7xeUNuQ:1758223587812&udm=28&fbs=AIIjpHydJdUtNKrM02hj0s4nbm4yRBEFyiFuxYYrR6QBOf_jD75Zzpf7Nr8v4hr8rOZhrL5x6p0yafChnpS6YQv0Z8dZdP5NVgwXIB4Bv2q-aZ_9j7Y31p_7ZsRrm56KpH4DJ9s9FnYRumf4Dyt80tYPUW0x42tM3w1bUprS1waxCKVriX4Q0RicySmluUgYhbT1jy6gSpwcyUhbPusHaFCM9Bw7ieoobQ&q=%22PNEU+165/70+R14%22+NOVO&ved=1t:220175&ictx=111&biw=1920&bih=945&dpr=1
A13: A3 | C13: Previsão de recup. Na venda do bem usado | D13: 0.75
A14: A4 | C14: Custo mensal [A1-(A3xA1)]/A2 | D14: =(D11-(D13*D11))/D12 -> 445.2395833
A15: B | C15: Juros pelo Capital empregado
A16: B1 | C16: Taxa mensal de Juros * | D16: =POWER(1+D53,1/12)-1 -> 0.01171491692
A17: B2 | C17: Juros s/depreciação/aluguel (B1xA4) | D17: =D16*D14 -> 5.215944728
A18: C | C18: Conservação e manutenção ** | D18: 0.75
A19: C1 | C19: Taxa de gastos s/a deprec. Inc. seguros (%) | D19: =D18 -> 0.75
A20: C2 | C20: Incidência mensal (C1xA4) | D20: =D19*D14 -> 333.9296875
A21: D | C21: Combustível
A22: D1 | C22: Média mensal de quilômetro por veículo | D22: 3000
A23: D2 | C23: Preço do litro de combustível | D23: 6.31
A24: D3 | C24: Quilômetros rodados com um litro combustivel | D24: =AVERAGE(F9:I9) -> 15.475
A25: D4 | C25: Combustivel (D1/D3)*D2 | D25: =(D22/D24)*D23 -> 1223.263328
A26: E | C26: Lubrificantes
A27: E1 | C27: Quilometragem do Contrato (D1*12) | D27: =D22*36 -> 108000
A28: E2 | C28: Franquia por troca de óleo (km) | D28: 10000
A29: E3 | C29: Preço do litro de óleo | D29: =L6 -> 27.925
A30: E4 | C30: Quantidade de litros de óleo por troca | D30: 4
A31: E5 | C31: Quantidade de dias do Contrato | D31: =365*3 -> 1095 | F31: https://precos.petrobras.com.br/w/gasolina/ce
A32: E6 | C32: Lubrificantes E = (E1*E3*E4*30)/E2*E5 | D32: =(D27*D29*D30*30)/(D28*D31) -> 33.0509589
A33: F | C33: Pneus
A34: F1 | C34: Quilometragem do Contrato | D34: =D27 -> 108000
A35: F2 | C35: Vida do Pneu em quilômetros | D35: 45000
A36: F3 | C36: Quantidade de pneus | D36: 4
A37: F4 | C37: Preço do Pneu | D37: =Y6 -> 311.645625
A38: F5 | C38: Quantidade de dias do contrato | D38: =D31 -> 1095
A39: F6 | C39: Pneus = (F1*F3*F4*30)/(F2*F5) | D39: =(D34*D36*D37*30)/(D35*D38) -> 81.96706849
A40: G | C40: Motorista | K40: Delvac MX Power e Lubrax TOP Turbo contém 20L.
A41: G1 | C41: Salário com encargos sociais | D41: 0 | X41: 175/70 R14 | Y41: https://www.google.com/search?q=%22PNEU+175%2F70+R14%22+NOVO&sca_esv=a1feb94103ceaa7e&udm=28&biw=1920&bih=945&sxsrf=AE3TifNWSA32-bu-HPS1Ra5rm4l2KE6umQ%3A1758223589466&ei=5VzMaK6eHPa55OUP0tOe2AU&ved=0ahUKEwjupPGjheOPAxX2HLkGHdKpB1sQ4dUDCBA&uact=5&oq=%22PNEU+175%2F70+R14%22+NOVO&gs_lp=Ehlnd3Mtd2l6LW1vZGVsZXNzLXNob3BwaW5nIhYiUE5FVSAxNzUvNzAgUjE0IiBOT1ZPMgQQABgeSM0tUOEKWO0pcAF4AZABAJgBzAGgAcIOqgEFMC45LjG4AQPIAQD4AQGYAgqgAqoNwgIKEAAYsAMY1gQYR8ICBhAAGAcYHsICCBAAGAcYCBgewgIGEAAYCBgemAMAiAYBkAYIkgcFMS43LjKgB4wUsgcFMC43LjK4B6YNwgcFMC43LjPIBxU&sclient=gws-wiz-modeless-shopping
A42: H | C42: Custo Mensal
C43: Sem Motorista (A4+B2+C2+D4+E6+F6) | D43: =D14+D17+D20+D25+D32+D39 -> 2122.666571
C44: Com Motorista (A4+B2+C2+D4+E6+F6+G1) | D44: =D14+D17+D20+D25+D32+D39+D41 -> 2122.666571
A45: I | C45: Custo Direto p/ km Rodado
C46: Sem Motorista | D46: =D43/D22 -> 0.7075555236
C47: Com Motorista | D47: =D44/D22 -> 0.7075555236
A48: J | C48: Preço cobrado sem BDI | D48: =D43*(1+D5) -> 2122.666571
A49: J1 | C49: Sem Motorista | D49: =D48 -> 2122.666571
A50: J2 | C50: Com Motorista | D50: =D44 -> 2122.666571
A53: * | C53: Calculado com base na taxa SELIC AGOSTO/2025: | D53: 0.15
A55: ** | C55: Conservação e manutenção - é calculado com o uso de um coeficiente multiplicador "k", conforme tabela abaixo, sobre a
C56: depreciação mensal do equipamento (Item A da planilha de composição de preços). Os valores de K são fornecidos por
C57: fabricantes.
C58: Metodologia conforme a bibliografia "Como Preparar Orçamentos de Obras", 3 edição, Aldo Dórea Mattos, 2019.
X77: 185/65 R15 | Y77: https://www.google.com/search?q=%22PNEU+185%2F65+R15%22+NOVO&sca_esv=a1feb94103ceaa7e&udm=28&biw=1920&bih=945&sxsrf=AE3TifPgbmmk2zlx6wq1eWc4oqonkn4nuw%3A1758223680242&ei=QF3MaO_HDvPO5OUPi6yQ8AM&ved=0ahUKEwjv55XPheOPAxVzJ7kGHQsWBD4Q4dUDCBA&uact=5&oq=%22PNEU+185%2F65+R15%22+NOVO&gs_lp=Ehlnd3Mtd2l6LW1vZGVsZXNzLXNob3BwaW5nIhYiUE5FVSAxODUvNjUgUjE1IiBOT1ZPMgUQABiABEihMlDEB1jDLnABeAGQAQCYAc4BoAGWDKoBBTAuNi4yuAEDyAEA-AEBmAIFoAL9BcICChAAGLADGNYEGEfCAgQQABgewgIGEAAYBxgemAMAiAYBkAYIkgcDMS40oAeWBbIHAzAuNLgH-wXCBwMxLjTIBwg&sclient=gws-wiz-modeless-shopping
X118: 175/65 R14 | Y118: https://www.google.com/search?q=%22PNEU+175%2F65+R14%22+NOVO&sca_esv=a1feb94103ceaa7e&udm=28&biw=1920&bih=945&sxsrf=AE3TifNb8s_9HAiB5AobBx_-GnVFrdji4g%3A1758223751532&ei=h13MaOqeIKyc5OUPqPHA2QU&ved=0ahUKEwiq_pTxheOPAxUsDrkGHag4MFsQ4dUDCBA&uact=5&oq=%22PNEU+175%2F65+R14%22+NOVO&gs_lp=Ehlnd3Mtd2l6LW1vZGVsZXNzLXNob3BwaW5nIhYiUE5FVSAxNzUvNjUgUjE0IiBOT1ZPMgUQABiABEifN1CjBFjSK3ABeAGQAQCYAcwBoAGTBqoBBTAuMy4xuAEDyAEA-AEBmAIDoAKKA8ICChAAGLADGNYEGEfCAgYQABgHGB6YAwCIBgGQBgiSBwMxLjKgB8kCsgcDMC4yuAeHA8IHAzAuM8gHBQ&sclient=gws-wiz-modeless-shopping

Sheet CPU HOSPEDAGEM
B40: Diária Total (alimentação + hospedagem): | C40: 383.68

Sheet SICRO PESSOAL (hidden)
A1: Código | B1: Descrição | C1: Unidade | D1: Custo (R$)
A2: P9801 | B2: Ajudante | C2: h | D2: 23.7557
A3: P9802 | B3: Ajudante especializado | C3: h | D3: 27.4929
A4: P9803 | B4: Almoxarife | C4: mês | D4: 6550.9483
A5: P9804 | B5: Apontador | C5: mês | D5: 5914.3533
A6: P9805 | B6: Armador | C6: h | D6: 32.9732
A7: P9806 | B7: Auxiliar administrativo | C7: mês | D7: 4613.0829
A8: P9807 | B8: Bombeiro hidráulico | C8: h | D8: 33.5253
A9: P9808 | B9: Carpinteiro | C9: h | D9: 32.0578
A10: P9809 | B10: Encarregado administrativo | C10: mês | D10: 7797.4523
A11: P9810 | B11: Eletricista | C11: h | D11: 32.6939
A12: P9811 | B12: Encarregado especializado | C12: mês | D12: 8598.791
A13: P9812 | B13: Engenheiro | C13: mês | D13: 27149.371
A14: P9814 | B14: Operacional | C14: mês | D14: 4267.0177
A15: P9815 | B15: Jardineiro | C15: h | D15: 29.5016
A16: P9819 | B16: Engenheiro supervisor | C16: mês | D16: 27149.371
A17: P9821 | B17: Pedreiro | C17: h | D17: 32.0141
A18: P9822 | B18: Pintor | C18: h | D18: 32.9543
A19: P9823 | B19: Serralheiro | C19: h | D19: 29.3904
A20: P9824 | B20: Servente | C20: h | D20: 23.7422
A21: P9825 | B21: Soldador | C21: h | D21: 36.4158
A22: P9826 | B22: Chefe setor de finanças | C22: mês | D22: 25017.2203
A23: P9827 | B23: Vigia | C23: mês | D23: 5596.4942
A24: P9830 | B24: Montador | C24: h | D24: 33.5697
A25: P9833 | B25: Auxiliar de laboratório | C25: mês | D25: 6049.9254
A26: P9837 | B26: Oceanógrafo | C26: mês | D26: 13314.3975
A27: P9840 | B27: Encarregado geral | C27: mês | D27: 11808.2597
A28: P9842 | B28: Faxineiro | C28: mês | D28: 4367.0008
A29: P9843 | B29: Operador de equipamento leve | C29: h | D29: 31.8603
A30: P9845 | B30: Operador de equipamento pesado | C30: h | D30: 39.1681
A31: P9846 | B31: Operador de equipamento especial | C31: h | D31: 46.3206
A32: P9847 | B32: Perfurador de tubulão | C32: h | D32: 23.7355
A33: P9848 | B33: Desenhista | C33: mês | D33: 8131.517
A34: P9849 | B34: Condutor maquinista fluvial | C34: mês | D34: 5820.8436
A35: P9850 | B35: Copeiro | C35: mês | D35: 4489.8379
A36: P9851 | B36: Médico do trabalho | C36: mês | D36: 18686.2559
A37: P9852 | B37: Blaster | C37: h | D37: 42.5141
A38: P9853 | B38: Pré-marcador | C38: h | D38: 23.6217
A39: P9854 | B39: Recepcionista | C39: mês | D39: 4324.6685
A40: P9855 | B40: Marinheiro de máquinas | C40: mês | D40: 5466.9425
A41: P9856 | B41: Marinheiro de convés | C41: h | D41: 29.463
A42: P9857 | B42: Marinheiro de convés - mensalista | C42: mês | D42: 5419.4888
A43: P9858 | B43: Laboratorista | C43: mês | D43: 7960.1497
A44: P9859 | B44: Trabalhador de via | C44: h | D44: 23.7653
A45: P9861 | B45: Selecionador de material pétreo | C45: h | D45: 23.6668
A46: P9864 | B46: Engenheiro de segurança do trabalho | C46: mês | D46: 24969.6419
A47: P9866 | B47: Motorista de caminhão | C47: h | D47: 39.0772
A48: P9867 | B48: Técnico especializado - mensalista | C48: mês | D48: 7372.2691
A49: P9869 | B49: Encarregado de obras de artes especiais | C49: mês | D49: 8598.791
A50: P9870 | B50: Motorista de veículo leve | C50: h | D50: 32.6432
A51: P9871 | B51: Motorista de veículo especial | C51: h | D51: 42.9052
A52: P9875 | B52: Encarregado de turma | C52: mês | D52: 7937.5958
A53: P9876 | B53: Técnico de segurança do trabalho | C53: mês | D53: 7805.8767
A54: P9878 | B54: Secretária | C54: mês | D54: 6844.6084
A55: P9880 | B55: Piloto fluvial | C55: mês | D55: 7686.6716
A56: P9882 | B56: Técnico especializado | C56: h | D56: 39.906
A57: P9883 | B57: Chefe do setor administrativo | C57: mês | D57: 7797.5352
A58: P9884 | B58: Encarregado de terraplenagem | C58: mês | D58: 8598.791
A59: P9885 | B59: Frentista de túnel | C59: h | D59: 24.115
A60: P9889 | B60: Técnico da qualidade | C60: mês | D60: 8103.007
A61: P9892 | B61: Auxiliar de blaster | C61: h | D61: 37.1817
A62: P9893 | B62: Encarregado de pavimentação | C62: mês | D62: 8598.791
A63: P9896 | B63: Porteiro | C63: mês | D63: 4357.8278
A64: P9897 | B64: Técnico de meio ambiente | C64: mês | D64: 8062.3048
A65: P9900 | B65: Comprador | C65: mês | D65: 7533.4464
A66: P9901 | B66: Encarregado de superestrutura ferroviária | C66: mês | D66: 8598.791
A67: P9903 | B67: Auxiliar técnico | C67: mês | D67: 4888.9863
A68: P9907 | B68: Comandante de longo curso | C68: mês | D68: 20335.0586
A69: P9908 | B69: Imediato | C69: mês | D69: 16623.3997
A70: P9909 | B70: Oficial de náutica | C70: mês | D70: 6857.484
A71: P9910 | B71: Oficial de máquinas | C71: mês | D71: 6653.343
A72: P9913 | B72: Draguista | C72: mês | D72: 6435.4692
A73: P9915 | B73: Maquinista | C73: h | D73: 35.093
A74: P9916 | B74: Encarregado de conservação rodoviária | C74: mês | D74: 8598.791
A75: P9920 | B75: Mestre fluvial | C75: mês | D75: 8372.6355
A76: P9921 | B76: Mergulhador raso autônomo de emergência | C76: h | D76: 40.5389
A77: P9922 | B77: Mergulhador raso dependente de emergência | C77: h | D77: 42.3701
A78: P9924 | B78: Mergulhador raso dependente | C78: h | D78: 58.1127
A79: P9925 | B79: Mergulhador raso autônomo | C79: h | D79: 54.1204
A80: P9926 | B80: Mergulhador raso auxiliar de superfície | C80: h | D80: 37.5205
A81: P9927 | B81: Frentista de túnel com periculosidade | C81: h | D81: 28.9743
A82: P9930 | B82: Eletricista com periculosidade | C82: h | D82: 40.1073
A83: P9931 | B83: Operador de equipamento de mergulho | C83: h | D83: 57.7437
A84: P9932 | B84: Operador de equipamento pesado com periculosidade | C84: h | D84: 48.6825
A85: P9933 | B85: Supervisor de mergulho raso | C85: mês | D85: 10647.4163
A86: P9934 | B86: Motorista de veículo especial com periculosidade | C86: h | D86: 53.5671
A87: P9938 | B87: Operador de equipamento leve com periculosidade | C87: h | D87: 39.1781
A88: P9939 | B88: Operador de equipamento leve com insalubridade | C88: h | D88: 40.0279
A89: P9942 | B89: Marinheiro de convés com periculosidade | C89: h | D89: 36.3415
A90: P9944 | B90: Operador de equipamento especial com periculosidade | C90: h | D90: 58.0063
A91: P9946 | B91: Engenheiro auxiliar | C91: mês | D91: 24888.4583
A92: P9947 | B92: Técnico florestal | C92: mês | D92: 8062.3048
A93: P9948 | B93: Motorista de veículo leve - mensalista | C93: mês | D93: 6021.6512
A94: P9949 | B94: Topógrafo | C94: mês | D94: 9354.4223
A95: P9950 | B95: Auxiliar de topografia | C95: mês | D95: 6069.371
A96: P9951 | B96: Médico de câmara hiperbárica | C96: mês | D96: 21275.9318
A97: P9952 | B97: Pedreiro - mensalista | C97: mês | D97: 5921.2742
A98: P9953 | B98: Eletricista - mensalista | C98: mês | D98: 6030.6793
A99: P9954 | B99: Servente - mensalista | C99: mês | D99: 4394.5436
A100: P9955 | B100: Engenheiro chefe | C100: mês | D100: 34486.9424
A101: P9956 | B101: Motorista de caminhão com periculosidade | C101: h | D101: 48.5907
A102: P9957 | B102: Motorista de ônibus | C102: h | D102: 35.5541
A103: P9958 | B103: Motorista de ônibus - mensalista | C103: mês | D103: 6697.9909
A104: P9959 | B104: Motorista de veículo especial com periculosidade - mensalista | C104: mês | D104: 9920.5248
A105: P9972 | B105: Técnico de batimetria | C105: mês | D105: 6693.6238

Sheet SICRO EQUIPAMENTOS (hidden)
A1: Código | B1: Descrição | C1: Valor de Aquisição (R$) | D1: Depreciação (R$/h) | E1: Oportunidade de Capital (R$/h) | F1: Seguros e Impostos (R$/h) | G1: Manutenção (R$/h) | H1: Operação (R$/h) | I1: Mão de Obra de Operação (R$/h) | J1: Custo Produtivo (R$/h) | K1: Custo Improdutivo (R$/h)
A2: E9001 | B2: Conjunto vibratório para tubos de concreto com encaixe PB e 3 jogos de fôrmas - D = 0,60 m - 2,20 kW | C2: 72356.4423 | D2: 9.6475 | E2: 1.4881 | F2: 0 | G2: 7.2356 | H2: 0 | I2: 0 | J2: 18.3712 | K2: 11.1356
A3: E9002 | B3: Conjunto vibratório para tubos de concreto com encaixe PB e 3 jogos de fôrmas - D = 0,80 m - 2,20 kW | C3: 94837.0323 | D3: 12.6449 | E3: 1.9505 | F3: 0 | G3: 9.4837 | H3: 0 | I3: 0 | J3: 24.0791 | K3: 14.5954
A4: E9003 | B4: Conjunto vibratório para tubos de concreto com encaixe PB e 3 jogos de fôrmas - D = 1,00 m - 2,20 kW | C4: 99174.3681 | D4: 13.2232 | E4: 2.0397 | F4: 0 | G4: 9.9174 | H4: 0 | I4: 0 | J4: 25.1803 | K4: 15.2629
A5: E9004 | B5: Conjunto vibratório para tubos de concreto com encaixe PB e 3 jogos de fôrmas - D = 1,20 m - 2,20 kW | C5: 124977.2038 | D5: 16.6636 | E5: 2.5704 | F5: 0 | G5: 12.4977 | H5: 0 | I5: 0 | J5: 31.7317 | K5: 19.234
A6: E9005 | B6: Conjunto vibratório para tubos de concreto com encaixe PB e 3 jogos de fôrmas - D = 1,50 m - 2,20 kW | C6: 147902.6769 | D6: 19.7204 | E6: 3.0419 | F6: 0 | G6: 14.7903 | H6: 0 | I6: 0 | J6: 37.5526 | K6: 22.7623
A7: E9006 | B7: Equipamento para sondagem manual | C7: 5069.3332 | D7: 0.8618 | E7: 0.1095 | F7: 0 | G7: 0.5069 | H7: 0 | I7: 0 | J7: 1.4782 | K7: 0.9713
A8: E9007 | B8: Bomba de pistão triplex com capacidade de 7,80 m³/h (130 l/min) - 8,20 kW | C8: 166912.8014 | D8: 16.6913 | E8: 3.2183 | F8: 0 | G8: 14.6049 | H8: 8.4771 | I8: 0 | J8: 42.9916 | K8: 19.9096
A9: E9008 | B9: Transportador manual de tubos de concreto com capacidade de 1 t | C9: 1733.0522 | D9: 1.5597 | E9: 0.0802 | F9: 0 | G9: 0.8665 | H9: 0 | I9: 0 | J9: 2.5064 | K9: 1.6399
A10: E9009 | B10: Embarcação rebocadora - 268 kW | C10: 671983.0606 | D10: 7.6921 | E10: 3.8627 | F10: 0 | G10: 17.0936 | H10: 277.0557 | I10: 137.197 | J10: 442.9011 | K10: 148.7518
A11: E9010 | B11: Balança plataforma digital à bateria, com mesa de 75 x 75 cm e capacidade de 500 kg | C11: 5026.4221 | D11: 0.754 | E11: 0.1034 | F11: 0 | G11: 0.4189 | H11: 0 | I11: 0 | J11: 1.2763 | K11: 0.8574
A12: E9011 | B12: Carro manual modelo plataforma de 200 x 80 cm com capacidade de 800 kg | C12: 1889.8486 | D12: 0.3402 | E12: 0.0408 | F12: 0 | G12: 0.189 | H12: 0 | I12: 0 | J12: 0.57 | K12: 0.381
A13: E9014 | B13: Deflectômetro de impacto (FWD) instalado em picape com reboque e faixa de carga de 7 a 120 kN - 147 kW | C13: 2296757.399 | D13: 183.7406 | E13: 42.513 | F13: 0 | G13: 114.8379 | H13: 0 | I13: 42.9052 | J13: 383.9967 | K13: 269.1588
A14: E9015 | B14: Elevador de obra com capacidade de 1.000 kg - 9 kW | C14: 68159.6855 | D14: 5.4528 | E14: 1.2616 | F14: 0 | G14: 4.7712 | H14: 0 | I14: 31.8603 | J14: 43.3459 | K14: 38.5747
A15: E9016 | B15: Usina misturadora móvel de reciclagem a frio com sistema de espuma de asfalto - 129,40 kW | C15: 10331133.52 | D15: 1446.3587 | E15: 223.1008 | F15: 0 | G15: 1859.604 | H15: 98.5692 | I15: 46.3206 | J15: 3673.9533 | K15: 1715.7801
A16: E9017 | B16: Escavadeira hidráulica sobre esteira com capacidade de 0,4 m³ - 64 kW | C16: 722729.4311 | D16: 59.5189 | E16: 13.7712 | F16: 0 | G16: 59.5189 | H16: 45.2691 | I16: 39.1681 | J16: 217.2462 | K16: 112.4582
A17: E9020 | B17: Recicladora a frio - 455 kW | C17: 5772446.359 | D17: 808.1425 | E17: 124.656 | F17: 0 | G17: 1154.4893 | H17: 495.131 | I17: 46.3206 | J17: 2628.7394 | K17: 979.1191
A18: E9021 | B18: Grupo gerador - 456 kVA | C18: 355931.1553 | D18: 24.9152 | E18: 6.5883 | F18: 0 | G18: 17.7966 | H18: 377.3334 | I18: 0 | J18: 426.6335 | K18: 31.5035
A19: E9022 | B19: Pórtico metálico rolante com capacidade de 25 t - 30 kW | C19: 757951.0221 | D19: 37.8976 | E19: 12.9904 | F19: 0 | G19: 29.4759 | H19: 0 | I19: 31.8603 | J19: 112.2242 | K19: 82.7483
A20: E9023 | B20: Guindaste móvel sobre esteiras com dragline com capacidade de 1,9 a 2,3 m³ - 270 kW | C20: 4033813.407 | D20: 156.8705 | E20: 69.1351 | F20: 0 | G20: 224.1007 | H20: 73.4535 | I20: 46.3206 | J20: 569.8804 | K20: 272.3262
A21: E9024 | B21: Misturador de nata cimento - 1,50 kW | C21: 9841.1029 | D21: 1.5746 | E21: 0.2125 | F21: 0 | G21: 1.3778 | H21: 0 | I21: 31.8603 | J21: 35.0252 | K21: 33.6474
A22: E9025 | B22: Conjunto bomba e macaco hidráulico para protensão com capacidade de 7.000 kN - 15 kW | C22: 106149.0796 | D22: 6.0657 | E22: 1.8713 | F22: 0 | G22: 6.0657 | H22: 0 | I22: 46.3206 | J22: 60.3233 | K22: 54.2576
A23: E9026 | B23: Bomba para injeção de nata de cimento com capacidade de 2 MPa - 2,20 kW | C23: 34345.4302 | D23: 3.4345 | E23: 0.6622 | F23: 0 | G23: 3.0052 | H23: 0 | I23: 0 | J23: 7.1019 | K23: 4.0967
A24: E9028 | B24: Bomba de alta pressão para hidrojateamento com capacidade de 18 MPa - 5,20 kW | C24: 5662.1648 | D24: 1.1324 | E24: 0.131 | F24: 0 | G24: 1.274 | H24: 9.8957 | I24: 31.8603 | J24: 44.2934 | K24: 33.1237
A25: E9029 | B25: Conjunto bomba e macaco hidráulico para protensão com capacidade de 8.000 kN - 20 kW | C25: 134980.5378 | D25: 7.7132 | E25: 2.3795 | F25: 0 | G25: 7.7132 | H25: 0 | I25: 46.3206 | J25: 64.1265 | K25: 56.4133
A26: E9030 | B26: Bomba de protensão com leitura digital para tensionamento de estais - 3 kW | C26: 14564.8795 | D26: 0.8323 | E26: 0.2568 | F26: 0 | G26: 0.8323 | H26: 0 | I26: 0 | J26: 1.9214 | K26: 1.0891
A27: E9031 | B27: Elevador de cremalheira com cabine simples, com capacidade de 1.500 kg e altura de até 100 m - 15 kW | C27: 339632.4888 | D27: 27.1706 | E27: 6.2866 | F27: 0 | G27: 23.7743 | H27: 0 | I27: 31.8603 | J27: 89.0918 | K27: 65.3175
A28: E9032 | B28: Equipamento para regulagem final de estais com até 37 cordoalhas - D = 15,7 mm - 20 kW | C28: 78520.6982 | D28: 4.4869 | E28: 1.3842 | F28: 0 | G28: 4.4869 | H28: 0 | I28: 46.3206 | J28: 56.6786 | K28: 52.1917
A29: E9033 | B29: Equipamento para regulagem final de estais de 38 a 55 cordoalhas - D = 15,7 mm - 30 kW | C29: 112152.9625 | D29: 6.4087 | E29: 1.9771 | F29: 0 | G29: 6.4087 | H29: 0 | I29: 46.3206 | J29: 61.1151 | K29: 54.7064
A30: E9034 | B30: Equipamento para regulagem final de estais de 56 a 73 cordoalhas - D = 15,7 mm - 40 kW | C30: 168171.5489 | D30: 9.6098 | E30: 2.9646 | F30: 0 | G30: 9.6098 | H30: 0 | I30: 46.3206 | J30: 68.5048 | K30: 58.895
A31: E9035 | B31: Equipamento para regulagem final de estais de 74 a 91 cordoalhas - D = 15,7 mm - 50 kW | C31: 224191.1397 | D31: 12.8109 | E31: 3.9522 | F31: 0 | G31: 12.8109 | H31: 0 | I31: 46.3206 | J31: 75.8946 | K31: 63.0837
A32: E9036 | B32: Grua fixa para alturas de 60 a 102 m, com alcance de 60 m com capacidade de 1.500 kg na ponta da lança - 37 kW | C32: 3902168.469 | D32: 151.751 | E32: 66.8788 | F32: 0 | G32: 173.4297 | H32: 0 | I32: 46.3206 | J32: 438.3801 | K32: 264.9504
A33: E9038 | B33: Macaco hidráulico monocordoalha para tensionamento de estais - 3 kW | C33: 18311.5316 | D33: 1.0464 | E33: 0.3228 | F33: 0 | G33: 1.0464 | H33: 0 | I33: 46.3206 | J33: 48.7362 | K33: 47.6898
A34: E9039 | B34: Máquina de solda por termofusão para tubos PEAD com gerador de 4 kW | C34: 115665.0921 | D34: 15.422 | E34: 2.3788 | F34: 0 | G34: 15.422 | H34: 4.1352 | I34: 46.3206 | J34: 83.6786 | K34: 64.1214
A35: E9040 | B35: Serra mármore - 1,45 kW | C35: 484.2891 | D35: 0.0436 | E35: 0.009 | F35: 0 | G35: 0.0242 | H35: 0 | I35: 0 | J35: 0.0768 | K35: 0.0526
A36: E9042 | B36: Trator sobre esteiras com lâmina - 97 kW | C36: 1334575.306 | D36: 116.7753 | E36: 25.7323 | F36: 0 | G36: 166.8219 | H36: 73.8888 | I36: 39.1681 | J36: 422.3864 | K36: 181.6757
A37: E9043 | B37: Embarcação de alumínio com comprimento de 6 m e motor de popa - 18,60 kW | C37: 35348.3067 | D37: 0.4046 | E37: 0.2032 | F37: 0 | G37: 0.4496 | H37: 40.4528 | I37: 42.121 | J37: 83.6312 | K37: 42.7288
A38: E9044 | B38: Central de concreto com capacidade de 150 m³/h - dosadora e misturadora | C38: 1931781.927 | D38: 193.1782 | E38: 37.2472 | F38: 0 | G38: 169.0309 | H38: 0 | I38: 46.3206 | J38: 445.7769 | K38: 276.746
A39: E9045 | B39: Conjunto bomba e macaco hidráulico para elevação com capacidade de 496 kN | C39: 68445.8536 | D39: 5.4757 | E39: 1.2669 | F39: 0 | G39: 5.4757 | H39: 6.2637 | I39: 46.3206 | J39: 64.8026 | K39: 53.0632
A40: E9046 | B40: Conjunto bomba e macaco hidráulico para elevação com capacidade de 929 kN | C40: 86545.0602 | D40: 6.9236 | E40: 1.6019 | F40: 0 | G40: 6.9236 | H40: 6.2637 | I40: 46.3206 | J40: 68.0334 | K40: 54.8461
A41: E9047 | B41: Conjunto bomba e macaco hidráulico para elevação com capacidade de 1.390 kN | C41: 119342.5704 | D41: 9.5474 | E41: 2.209 | F41: 0 | G41: 9.5474 | H41: 6.2637 | I41: 46.3206 | J41: 73.8881 | K41: 58.077
A42: E9048 | B42: Conjunto bomba e macaco hidráulico para elevação com capacidade de 1.859 kN | C42: 138157.273 | D42: 11.0526 | E42: 2.5573 | F42: 0 | G42: 11.0526 | H42: 6.2637 | I42: 46.3206 | J42: 77.2468 | K42: 59.9305
A43: E9049 | B43: Bomba de alta pressão para hidrojateamento com capacidade de 250 MPa - 72 kW | C43: 725352.3116 | D43: 145.0705 | E43: 16.7828 | F43: 0 | G43: 163.2043 | H43: 58.7628 | I43: 31.8603 | J43: 415.6807 | K43: 193.7136
A44: E9050 | B44: Guindaste móvel sobre pneus com 2 eixos com capacidade de 18 t - 97 kW | C44: 3245520.495 | D44: 162.276 | E44: 57.2139 | F44: 0 | G44: 208.6406 | H44: 26.3889 | I44: 42.9052 | J44: 497.4246 | K44: 262.3951
A45: E9051 | B45: Máquina levantadora e posicionadora de via - 7,40 kW | C45: 1057740.524 | D45: 84.6192 | E45: 19.5788 | F45: 0 | G45: 74.0418 | H45: 11.2659 | I45: 31.8603 | J45: 221.366 | K45: 136.0583
A46: E9052 | B46: Empilhadeira a diesel com capacidade de 10 t - 82 kW | C46: 783308.3492 | D46: 62.6647 | E46: 14.499 | F46: 0 | G46: 54.8316 | H46: 66.9243 | I46: 31.8603 | J46: 230.7799 | K46: 109.024
A47: E9053 | B47: Perfuratriz hidráulica montada em flutuante - 32 kW | C47: 614863.5159 | D47: 16.4696 | E47: 5.3067 | F47: 0 | G47: 14.6396 | H47: 17.4112 | I47: 39.1781 | J47: 93.0052 | K47: 60.9544
A48: E9054 | B48: Equipamento sobre forma-trilho para execução e acabamento de pavimento de concreto - 13,40 kW | C48: 1821678.461 | D48: 242.8905 | E48: 37.4659 | F48: 0 | G48: 151.8065 | H48: 20.4004 | I48: 31.8603 | J48: 484.4236 | K48: 312.2167
A49: E9055 | B49: Guincho pneumático com capacidade de 2,5 t | C49: 538846.6348 | D49: 53.8847 | E49: 10.1588 | F49: 0 | G49: 29.9359 | H49: 0 | I49: 0 | J49: 93.9794 | K49: 64.0435
A50: E9056 | B50: Plataforma autoelevatória de 12 x 24 m com capacidade de 150 t | C50: 853769.5078 | D50: 9.773 | E50: 4.9077 | F50: 0 | G50: 21.7178 | H50: 0 | I50: 115.1971 | J50: 151.5956 | K50: 129.8778
A51: E9057 | B51: Batelão sem propulsão com capacidade de 66 m³ | C51: 228310.8965 | D51: 9.7848 | E51: 3.8571 | F51: 0 | G51: 16.3079 | H51: 0 | I51: 29.463 | J51: 59.4128 | K51: 43.1049
A52: E9058 | B52: Plataforma flutuante de 12 x 24 x 1,8 m com capacidade de 150 t | C52: 682839.0487 | D52: 7.8164 | E52: 3.9251 | F52: 0 | G52: 13.0273 | H52: 0 | I52: 29.463 | J52: 54.2318 | K52: 41.2045
A53: E9059 | B53: Plataforma autoelevatória de 12 x 24 m montada na obra com capacidade de 150 t | C53: 853769.5078 | D53: 9.773 | E53: 4.9077 | F53: 0 | G53: 21.7178 | H53: 0 | I53: 115.1971 | J53: 151.5956 | K53: 129.8778
A54: E9060 | B54: Perfuratriz pneumática rotopercussiva montada em flutuante com pressão de 0,70 MPa e capacidade de 2.500 gpm | C54: 41053.5132 | D54: 1.0996 | E54: 0.3543 | F54: 0 | G54: 0.9775 | H54: 0 | I54: 78.3562 | J54: 80.7876 | K54: 79.8101
A55: E9061 | B55: Lixadeira elétrica manual angular - 2 kW | C55: 1398.9062 | D55: 0.1865 | E55: 0.0288 | F55: 0 | G55: 0.1166 | H55: 0 | I55: 0 | J55: 0.3319 | K55: 0.2153
A56: E9062 | B56: Soprador de ar quente manual - 1,60 kW | C56: 5699.4324 | D56: 0.7599 | E56: 0.1172 | F56: 0 | G56: 0.475 | H56: 0 | I56: 0 | J56: 1.3521 | K56: 0.8771
A57: E9063 | B57: Equipamento de estabilização dinâmica da via - 300 kW | C57: 30083693.89 | D57: 1203.3478 | E57: 510.4451 | F57: 0 | G57: 1203.3478 | H57: 195.876 | I57: 46.3206 | J57: 3159.3373 | K57: 1760.1135
A58: E9064 | B58: Transportador manual gerica com capacidade de 180 l | C58: 1103.6502 | D58: 1.1037 | E58: 0.0511 | F58: 0 | G58: 0.5518 | H58: 0 | I58: 0 | J58: 1.7066 | K58: 1.1548
A59: E9065 | B59: Carro controle ferroviário - 186 kW | C59: 32877210.58 | D59: 1315.0884 | E59: 557.8441 | F59: 0 | G59: 1150.7024 | H59: 121.4431 | I59: 46.3206 | J59: 3191.3986 | K59: 1919.2531
A60: E9066 | B60: Grupo gerador - 14 kVA | C60: 65762.6444 | D60: 4.6034 | E60: 1.2173 | F60: 0 | G60: 3.2881 | H60: 11.3717 | I60: 0 | J60: 20.4805 | K60: 5.8207
A61: E9067 | B61: Veículo ferroviário para capina química com capacidade de 12.000 l - 115 kW | C61: 1705438.797 | D61: 68.2176 | E61: 28.937 | F61: 0 | G61: 42.636 | H61: 75.0858 | I61: 31.8603 | J61: 246.7367 | K61: 129.0149
A62: E9068 | B62: Perfuratriz hidráulica rotopercussiva para CCPH - 123 kW | C62: 5684750.534 | D62: 454.78 | E62: 105.2247 | F62: 0 | G62: 454.78 | H62: 100.3865 | I62: 39.1681 | J62: 1154.3393 | K62: 599.1728
A63: E9069 | B63: Vibrador de imersão para concreto - 4,10 kW | C63: 4346.1437 | D63: 0.8692 | E63: 0.1006 | F63: 0 | G63: 0.5433 | H63: 7.8024 | I63: 0 | J63: 9.3155 | K63: 0.9698
A64: E9070 | B64: Ponte rolante com capacidade de 5 t e vão de até 15 m - 10 kW | C64: 417916.5554 | D64: 18.5741 | E64: 7.1626 | F64: 0 | G64: 11.6088 | H64: 0 | I64: 31.8603 | J64: 69.2058 | K64: 57.597
A65: E9071 | B65: Transportador manual carrinho de mão com capacidade de 80 l | C65: 467.5792 | D65: 0.4676 | E65: 0.0216 | F65: 0 | G65: 0.2338 | H65: 0 | I65: 0 | J65: 0.723 | K65: 0.4892
A66: E9072 | B66: Martelo hidráulico vibratório com unidade hidráulica - 486 kW | C66: 3420483.183 | D66: 456.0644 | E66: 70.3479 | F66: 0 | G66: 399.0564 | H66: 396.6489 | I66: 46.3206 | J66: 1368.4382 | K66: 572.7329
A67: E9073 | B67: Bomba de concreto rebocável com capacidade de 30 m³/h - 74 kW | C67: 504723.3397 | D67: 50.4723 | E67: 9.7317 | F67: 0 | G67: 50.4723 | H67: 76.5005 | I67: 31.8603 | J67: 219.0371 | K67: 92.0643
A68: E9074 | B68: Tanque de estocagem de asfalto com agitadores de 60.000 l | C68: 882876.7421 | D68: 117.7169 | E68: 18.1578 | F68: 0 | G68: 73.5731 | H68: 0 | I68: 0 | J68: 209.4478 | K68: 135.8747
A69: E9075 | B69: Trado cavadeira de 12" | C69: 159.7767 | D69: 0.0799 | E69: 0.0049 | F69: 0 | G69: 0.0399 | H69: 0 | I69: 0 | J69: 0.1247 | K69: 0.0848
A70: E9076 | B70: Equipamento para pintura eletrostática com cabine dupla de 7,00 kW e estufa de 80.000 kCal | C70: 164077.5807 | D70: 10.5478 | E70: 2.8925 | F70: 0 | G70: 5.8599 | H70: 0 | I70: 31.8603 | J70: 51.1605 | K70: 45.3006
A71: E9077 | B71: Perfuratriz de circulação reversa tipo Wirth ou similar com unidade hidráulica (Power Pack) - 273 kW | C71: 4854776.73 | D71: 388.3821 | E71: 89.8619 | F71: 0 | G71: 388.3821 | H71: 148.5393 | I71: 39.1681 | J71: 1054.3335 | K71: 517.4121
A72: E9078 | B72: Treliça lançadeira com capacidade de carga de 100 a 120 t e vão máximo de 45 m - 110 kW | C72: 3550332.331 | D72: 157.7925 | E72: 60.8488 | F72: 0 | G72: 98.6203 | H72: 0 | I72: 46.3206 | J72: 363.5822 | K72: 264.9619
A73: E9079 | B73: Bomba submersível com capacidade de 360 m³/h - 23 kW | C73: 179448.6259 | D73: 17.9449 | E73: 3.46 | F73: 0 | G73: 15.7018 | H73: 0 | I73: 0 | J73: 37.1067 | K73: 21.4049
A74: E9080 | B74: Carrelone com capacidade máxima de 70 t | C74: 1830025.391 | D74: 82.3511 | E74: 31.051 | F74: 0 | G74: 45.7506 | H74: 0 | I74: 31.8603 | J74: 191.013 | K74: 145.2624
A75: E9081 | B75: Fischietti simples com capacidade de 70 t | C75: 108562.4436 | D75: 4.8853 | E75: 1.842 | F75: 0 | G75: 2.7141 | H75: 0 | I75: 0 | J75: 9.4414 | K75: 6.7273
A76: E9083 | B76: Vagão fechado FLT com capacidade de 99 t | C76: 868455.3013 | D76: 13.7505 | E76: 13.8425 | F76: 0 | G76: 7.2371 | H76: 0 | I76: 0 | J76: 34.8301 | K76: 27.593
A77: E9084 | B77: Vagão tanque convencional TCT com capacidade de 97 t e 103.000 l | C77: 1264142.036 | D77: 20.0156 | E77: 20.1494 | F77: 0 | G77: 10.5345 | H77: 0 | I77: 0 | J77: 50.6995 | K77: 40.165
A78: E9085 | B78: Vagão gôndola GDE com capacidade de 93,5 t / 29 m³ | C78: 637209.8068 | D78: 10.0892 | E78: 10.1566 | F78: 0 | G78: 5.3101 | H78: 0 | I78: 0 | J78: 25.5559 | K78: 20.2458
A79: E9086 | B79: Bomba de concreto rebocável com capacidade de 41 m³/h - 74 kW | C79: 524807.4323 | D79: 52.4807 | E79: 10.1189 | F79: 0 | G79: 52.4807 | H79: 76.5005 | I79: 31.8603 | J79: 223.4411 | K79: 94.4599
A80: E9089 | B80: Roçadeira costal - 1,40 kW | C80: 3284.3405 | D80: 0.4927 | E80: 0.0675 | F80: 0 | G80: 0.3832 | H80: 8.3733 | I80: 0 | J80: 9.3167 | K80: 0.5602
A81: E9093 | B81: Veículo leve - 53 kW (sem motorista) | C81: 78842.5828 | D81: 4.7306 | E81: 1.4594 | F81: 0.5913 | G81: 4.7306 | H81: 25.9354 | I81: 0 | J81: 37.4473 | K81: 6.7813
A82: E9094 | B82: Guindaste móvel sobre pneus com 6 eixos com capacidade máxima de 350 t - 450 kW | C82: 21331712.27 | D82: 746.6099 | E82: 361.9458 | F82: 146.6555 | G82: 959.9271 | H82: 122.4225 | I82: 42.9052 | J82: 2380.466 | K82: 1298.1164
A83: E9095 | B83: Guindaste móvel sobre pneus com 8 eixos com capacidade máxima de 500 t - 500 kW | C83: 36310474.85 | D83: 1270.8666 | E83: 616.098 | F83: 249.6345 | G83: 1633.9714 | H83: 136.025 | I83: 42.9052 | J83: 3949.5007 | K83: 2179.5043
A84: E9096 | B84: Minicarregadeira de pneus - 45,50 kW | C84: 407661.0367 | D84: 35.6703 | E84: 7.8602 | F84: 0 | G84: 35.6703 | H84: 61.8914 | I84: 39.1681 | J84: 180.2603 | K84: 82.6986
A85: E9101 | B85: Removedora de faixas de sinalização viária - 9,69 kW | C85: 51051.5462 | D85: 4.0841 | E85: 0.945 | F85: 0 | G85: 3.5736 | H85: 18.4403 | I85: 0 | J85: 27.043 | K85: 5.0291
A86: E9102 | B86: Extrusora para sarjeta de concreto - 10,44 kW | C86: 82995.4973 | D86: 6.6396 | E86: 1.5362 | F86: 0 | G86: 5.8097 | H86: 8.5206 | I86: 31.8603 | J86: 54.3664 | K86: 40.0361
A87: E9103 | B87: Extrusora para meio-fio de concreto - 10,44 kW | C87: 68208.6313 | D87: 5.4567 | E87: 1.2625 | F87: 0 | G87: 4.7746 | H87: 8.5206 | I87: 31.8603 | J87: 51.8747 | K87: 38.5795
A88: E9105 | B88: Embarcação empurradora multipropósito - 2 x 186 kW | C88: 5421155.127 | D88: 62.0553 | E88: 31.1623 | F88: 0 | G88: 137.9008 | H88: 384.5699 | I88: 137.197 | J88: 752.8853 | K88: 230.4146
A89: E9106 | B89: Balsa de convés com capacidade de 200 t | C89: 1954757.005 | D89: 22.3759 | E89: 11.2365 | F89: 0 | G89: 37.2931 | H89: 0 | I89: 29.463 | J89: 100.3685 | K89: 63.0754
A90: E9107 | B90: Compactador manual com soquete vibratório - 2,24 kW | C90: 11618.4273 | D90: 2.3237 | E90: 0.2688 | F90: 0 | G90: 2.3237 | H90: 4.2628 | I90: 0 | J90: 9.179 | K90: 2.5925
A91: E9108 | B91: Soldadora de trilho por caldeamento na via - 400 kW | C91: 10000000 | D91: 160 | E91: 160.42 | F91: 0 | G91: 200 | H91: 261.168 | I91: 92.6412 | J91: 874.2292 | K91: 413.0612
A92: E9110 | B92: Escavadeira hidráulica sobre esteiras para rocha com caçamba com capacidade de 1,56 m³ - 118 kW | C92: 1198637.713 | D92: 119.8638 | E92: 23.7716 | F92: 0 | G92: 119.8638 | H92: 121.9872 | I92: 39.1681 | J92: 424.6545 | K92: 182.8035
A93: E9111 | B93: Jateador abrasivo úmido com capacidade de 350 kg de abrasivo | C93: 341681.6831 | D93: 61.5027 | E93: 7.3786 | F93: 0 | G93: 61.5027 | H93: 0 | I93: 31.8603 | J93: 162.2443 | K93: 100.7416
A94: E9112 | B94: Sinalizador direcional móvel com sistema fotovoltaico de energia e montado em chassi sobre pneus | C94: 22983.553 | D94: 2.5856 | E94: 0.4432 | F94: 0 | G94: 1.4365 | H94: 0 | I94: 0 | J94: 4.4653 | K94: 3.0288
A95: E9113 | B95: Painel de Mensagem Variável - PMV móvel, com sistema fotovoltaico de energia e montado em chassi sobre pneus | C95: 174989.9553 | D95: 19.6864 | E95: 3.374 | F95: 0 | G95: 10.9369 | H95: 0 | I95: 0 | J95: 33.9973 | K95: 23.0604
A96: E9116 | B96: Semáforo móvel com 3 lentes e bateria - D = 200 mm | C96: 8143.2275 | D96: 0.9161 | E96: 0.157 | F96: 0 | G96: 0.509 | H96: 0 | I96: 0 | J96: 1.5821 | K96: 1.0731
A97: E9117 | B97: Carregadeira de pneus para rocha com capacidade de 2,50 m³ - 105 kW | C97: 1004792.918 | D97: 80.2917 | E97: 19.0375 | F97: 0 | G97: 80.2917 | H97: 108.548 | I97: 39.1681 | J97: 327.337 | K97: 138.4973
A98: E9118 | B98: Cortadora de pavimento com disco diamantado de 450 a 1.500 mm - 55,40 kW | C98: 488601.7755 | D98: 65.1469 | E98: 10.0489 | F98: 0 | G98: 65.1469 | H98: 45.2147 | I98: 31.8603 | J98: 217.4177 | K98: 107.0561
A99: E9119 | B99: Minicarregadeira sobre pneus com valetadeira - 55,40 kW | C99: 780381.3601 | D99: 68.2834 | E99: 15.0467 | F99: 0 | G99: 68.2834 | H99: 75.3579 | I99: 39.1681 | J99: 266.1395 | K99: 122.4982
A100: E9120 | B100: Equipamento de cravação sobre esteira para geodreno com haste para profundidade de até 20 m - 258 kW | C100: 2603493.063 | D100: 151.8704 | E100: 46.852 | F100: 0 | G100: 151.8704 | H100: 182.4911 | I100: 31.8603 | J100: 564.9442 | K100: 230.5827
A101: E9122 | B101: Perfuratriz tipo Bottom Feed para coluna de brita - 194 kW | C101: 7331034.473 | D101: 586.4828 | E101: 135.6974 | F101: 0 | G101: 586.4828 | H101: 105.5554 | I101: 39.1681 | J101: 1453.3865 | K101: 761.3483
A102: E9125 | B102: Veículo tipo van furgão com capacidade de 1,38 t - 100 kW | C102: 227098.0365 | D102: 11.3549 | E102: 4.0868 | F102: 1.6559 | G102: 11.3549 | H102: 27.205 | I102: 32.6432 | J102: 88.3007 | K102: 49.7408
A103: E9126 | B103: Draga backhoe com capacidade de 7 m³ - 1.000 kW | C103: 193174186.1 | D103: 5174.3086 | E103: 1667.2197 | F103: 0 | G103: 11498.4635 | H103: 1033.79 | I103: 64.7277 | J103: 19438.5095 | K103: 6906.256
A104: E9127 | B104: Escavadeira hidráulica com martelo hidráulico de 520 kg - 75 kW | C104: 902838.0867 | D104: 103.1815 | E104: 17.9052 | F104: 0 | G104: 128.9769 | H104: 53.0498 | I104: 39.1681 | J104: 342.2815 | K104: 160.2548
A105: E9134 | B105: Miniônibus com capacidade para 30 passageiros - 111 kW | C105: 680942.6167 | D105: 29.1833 | E105: 12.004 | F105: 4.8639 | G105: 43.7749 | H105: 114.7507 | I105: 35.5541 | J105: 240.1309 | K105: 81.6053
A106: E9141 | B106: Rebarbador hidráulico com bomba manual com capacidade de força de 9.000 kgf | C106: 96016.2097 | D106: 7.6813 | E106: 1.7773 | F106: 0 | G106: 4.8008 | H106: 0 | I106: 0 | J106: 14.2594 | K106: 9.4586
A107: E9144 | B107: Pórtico metálico rolante com talha com capacidade de 5 t - 10 kW | C107: 306469.3047 | D107: 13.6209 | E107: 5.2525 | F107: 0 | G107: 8.513 | H107: 0 | I107: 31.8603 | J107: 59.2467 | K107: 50.7337
A108: E9148 | B108: Macaco de protensão de fios com bomba - 3,72 kW | C108: 100945.4063 | D108: 5.7683 | E108: 1.7795 | F108: 0 | G108: 5.7683 | H108: 0 | I108: 46.3206 | J108: 59.6367 | K108: 53.8684
A109: E9149 | B109: Máquina de aplicação e extração de grampo elástico tipo Pandrol - 6,70 kW | C109: 273660.5865 | D109: 21.8928 | E109: 5.0655 | F109: 0 | G109: 21.8928 | H109: 10.2002 | I109: 0 | J109: 59.0513 | K109: 26.9583
A110: E9151 | B110: Britador de mandíbulas móvel sobre esteiras, sem peneira, com capacidade de 140 m³/h - 170 kW | C110: 2980645.374 | D110: 158.9678 | E110: 52.1066 | F110: 0 | G110: 158.9678 | H110: 166.4946 | I110: 46.3206 | J110: 582.8574 | K110: 257.395
A111: E9152 | B111: Ferramenta de fixação à pólvora de ação direta | C111: 1172.4325 | D111: 0.0997 | E111: 0.0217 | F111: 0 | G111: 0.0938 | H111: 0 | I111: 0 | J111: 0.2152 | K111: 0.1214
A112: E9153 | B112: Ferramenta de fixação à pólvora e sistema à pistão | C112: 1081.3533 | D112: 0.0919 | E112: 0.02 | F112: 0 | G112: 0.0865 | H112: 0 | I112: 0 | J112: 0.1984 | K112: 0.1119
A113: E9154 | B113: Equipamento para selagem com material asfáltico rebocável com capacidade de 370 l - 35 kW | C113: 467266.516 | D113: 84.108 | E113: 10.0906 | F113: 0 | G113: 28.036 | H113: 28.5653 | I113: 31.8603 | J113: 182.6602 | K113: 126.0589
A114: E9155 | B114: Caldeira de asfalto rebocável com capacidade de 600 l - 5,20 kW | C114: 152591.0181 | D114: 22.8887 | E114: 3.1383 | F114: 0 | G114: 7.6296 | H114: 3.961 | I114: 0 | J114: 37.6176 | K114: 26.027
A115: E9156 | B115: Soprador de ar costal - 2,6 kW | C115: 2651.8316 | D115: 0.4243 | E115: 0.0573 | F115: 0 | G115: 0.3713 | H115: 4.9479 | I115: 0 | J115: 5.8008 | K115: 0.4816
A116: E9157 | B116: Locomotiva diesel-elétrica CC - bitola métrica - 2.237 kW | C116: 8823659.491 | D116: 141.1786 | E116: 141.5491 | F116: 0 | G116: 176.4732 | H116: 1460.582 | I116: 35.093 | J116: 1954.8759 | K116: 317.8207
A117: E9158 | B117: Locomotiva diesel-elétrica CC - bitola larga - 2.237 kW | C117: 9213768.928 | D117: 147.4203 | E117: 147.8073 | F117: 0 | G117: 184.2754 | H117: 1460.582 | I117: 35.093 | J117: 1975.178 | K117: 330.3206
A118: E9159 | B118: Vagão plataforma PNE com capacidade de 82 t - bitola métrica | C118: 756429.7062 | D118: 11.9768 | E118: 12.0569 | F118: 0 | G118: 6.3036 | H118: 0 | I118: 0 | J118: 30.3373 | K118: 24.0337
A119: E9160 | B119: Vagão plataforma PNT com capacidade de 98 t - bitola larga | C119: 986647.4429 | D119: 15.6219 | E119: 15.7263 | F119: 0 | G119: 8.2221 | H119: 0 | I119: 0 | J119: 39.5703 | K119: 31.3482
A120: E9161 | B120: Vagão fechado com porta para carga e descarga de paletes FLD com capacidade de 64 t - bitola métrica | C120: 750263.1597 | D120: 11.8792 | E120: 11.9586 | F120: 0 | G120: 6.2522 | H120: 0 | I120: 0 | J120: 30.09 | K120: 23.8378
A121: E9162 | B121: Vagão fechado com porta para carga e descarga de paletes FLT com capacidade de 99 t - bitola larga | C121: 868455.3013 | D121: 13.7505 | E121: 13.8425 | F121: 0 | G121: 7.2371 | H121: 0 | I121: 0 | J121: 34.8301 | K121: 27.593
A122: E9163 | B122: Vagão hopper aberto com descarga automática HNE com capacidade de 45 m³ - bitola métrica | C122: 904426.8226 | D122: 14.3201 | E122: 14.4158 | F122: 0 | G122: 7.5369 | H122: 0 | I122: 0 | J122: 36.2728 | K122: 28.7359
A123: E9164 | B123: Vagão hopper aberto com descarga automática HNT com capacidade de 63 m³ - bitola larga | C123: 1162201.389 | D123: 18.4015 | E123: 18.5245 | F123: 0 | G123: 9.685 | H123: 0 | I123: 0 | J123: 46.611 | K123: 36.926
A124: E9167 | B124: Equipamento para carga e descarga de TLS de até 250 m - 90 kW | C124: 2827185.69 | D124: 45.235 | E124: 45.3537 | F124: 0 | G124: 56.5437 | H124: 58.7628 | I124: 46.3206 | J124: 252.2158 | K124: 136.9093
A125: E9168 | B125: Carregadeira de pneus com implemento de garfo - 195 kW | C125: 1501211.127 | D125: 131.356 | E125: 28.9452 | F125: 0 | G125: 131.356 | H125: 84.8796 | I125: 39.1681 | J125: 415.7049 | K125: 199.4693
A126: E9200 | B126: Carregadeira de pneus para rocha com capacidade de 2,50 m³ - 105 kW com periculosidade | C126: 1004792.918 | D126: 80.2917 | E126: 19.0375 | F126: 0 | G126: 80.2917 | H126: 108.548 | I126: 48.6825 | J126: 336.8514 | K126: 148.0117
A127: E9203 | B127: Escavadeira hidráulica com martelo hidráulico de 1.700 kg - 103 kW com periculosidade | C127: 2063936.97 | D127: 235.8785 | E127: 40.9323 | F127: 0 | G127: 294.8481 | H127: 72.855 | I127: 48.6825 | J127: 693.1964 | K127: 325.4933
A128: E9204 | B128: Perfuratriz sobre esteiras - 145 kW com periculosidade | C128: 2039659.982 | D128: 163.1728 | E128: 37.7541 | F128: 0 | G128: 163.1728 | H128: 118.3418 | I128: 48.6825 | J128: 531.124 | K128: 249.6094
A129: E9205 | B129: Equipamento de corte a plasma CNC - 12.000 x 5.500 mm - 19,5 kW | C129: 1051534.831 | D129: 84.1228 | E129: 19.4639 | F129: 0 | G129: 63.0921 | H129: 0 | I129: 0 | J129: 166.6788 | K129: 103.5867
A130: E9206 | B130: Equipamento de solda MIG automática com acessórios - 14,6 kVA | C130: 89127.8273 | D130: 11.8837 | E130: 1.8331 | F130: 0 | G130: 11.8837 | H130: 0 | I130: 0 | J130: 25.6005 | K130: 13.7168
A131: E9207 | B131: Máquina de solda elétrica retificadora 425 A - 18,70 kW | C131: 8149.6838 | D131: 1.0866 | E131: 0.1676 | F131: 0 | G131: 1.0866 | H131: 0 | I131: 0 | J131: 2.3408 | K131: 1.2542
A132: E9209 | B132: Martelete perfurador/rompedor a ar comprimido de 25 kg para rocha, com insalubridade, com capacidade de 2.040 gpm | C132: 25209.1538 | D132: 3.3612 | E132: 0.5185 | F132: 0 | G132: 3.3612 | H132: 0 | I132: 40.0279 | J132: 47.2688 | K132: 43.9076
A133: E9213 | B133: Jumbo eletro-hidráulico com 3 braços - 155 kW/237 kW com periculosidade | C133: 14128162.86 | D133: 807.3236 | E133: 249.0593 | F133: 0 | G133: 1009.1545 | H133: 177.1046 | I133: 58.0063 | J133: 2300.6483 | K133: 1114.3892
A134: E9231 | B134: Maçarico lança-chamas a gás liquefeito de petróleo (GLP) | C134: 85.172 | D134: 0.0114 | E134: 0.0018 | F134: 0 | G134: 0.0114 | H134: 0 | I134: 0 | J134: 0.0246 | K134: 0.0132
A135: E9239 | B135: Miniônibus com capacidade para 30 passageiros - 111 kW (sem motorista) | C135: 680942.6167 | D135: 29.1833 | E135: 12.004 | F135: 4.8639 | G135: 43.7749 | H135: 114.7507 | I135: 0 | J135: 204.5768 | K135: 46.0512
A136: E9240 | B136: Ônibus com capacidade para 80 passageiros - 175 kW (sem motorista) | C136: 1052352.454 | D136: 45.1008 | E136: 18.5515 | F136: 7.5168 | G136: 67.6512 | H136: 180.9133 | I136: 0 | J136: 319.7336 | K136: 71.1691
A137: E9242 | B137: Estação transmissora de superfície para televisionamento | C137: 15638.9611 | D137: 1.0054 | E137: 0.2757 | F137: 0 | G137: 0.5585 | H137: 0 | I137: 0 | J137: 1.8396 | K137: 1.2811
A138: E9243 | B138: Câmara hiperbárica com filtro, serpentina e reservatório de ar para mergulho raso - D = 1,80 m e H = 2,22 m | C138: 631441.3829 | D138: 11.0502 | E138: 10.227 | F138: 0 | G138: 15.786 | H138: 0 | I138: 57.7437 | J138: 94.8069 | K138: 79.0209
A139: E9244 | B139: Estação transmissora de superfície para comunicação sem fio | C139: 39861.4385 | D139: 2.5625 | E139: 0.7027 | F139: 0 | G139: 1.4236 | H139: 0 | I139: 0 | J139: 4.6888 | K139: 3.2652
A140: E9245 | B140: Estação transmissora de superfície para comunicação com fio | C140: 6680.9669 | D140: 0.4295 | E140: 0.1178 | F140: 0 | G140: 0.2386 | H140: 0 | I140: 0 | J140: 0.7859 | K140: 0.5473
A141: E9246 | B141: Painel de controle de ar com manômetros e pneufatômetros | C141: 12820.8993 | D141: 0.8242 | E141: 0.226 | F141: 0 | G141: 0.4579 | H141: 0 | I141: 0 | J141: 1.5081 | K141: 1.0502
A142: E9247 | B142: Sistema de Sino aberto (sinete) para mergulho até 50 m - 33,50 kW | C142: 397855.5084 | D142: 35.3649 | E142: 7.5007 | F142: 0 | G142: 35.3649 | H142: 0 | I142: 57.7437 | J142: 135.9742 | K142: 100.6093
A143: E9248 | B143: Sistema de ar comprimido para mergulho até 30 m com pressão de trabalho de 1,4 MPa - 7,46 kW | C143: 53959.3529 | D143: 4.3167 | E143: 0.9988 | F143: 0 | G143: 4.3167 | H143: 6.9003 | I143: 0 | J143: 16.5325 | K143: 5.3155
A144: E9249 | B144: Sistema de ar comprimido para mergulho até 50 m com pressão de trabalho de 1,7 MPa - 16,18 kW | C144: 81337.6374 | D144: 6.507 | E144: 1.5056 | F144: 0 | G144: 6.507 | H144: 14.966 | I144: 0 | J144: 29.4856 | K144: 8.0126
A145: E9251 | B145: Fonte de plasma para corte manual - 65A - 15 kW | C145: 32641.8204 | D145: 4.3522 | E145: 0.6713 | F145: 0 | G145: 4.3522 | H145: 0 | I145: 0 | J145: 9.3757 | K145: 5.0235
A146: E9252 | B146: Serra de esquadria com braço telescópico - D = 250 mm (10") - 1,80 kW | C146: 4010.3331 | D146: 0.3609 | E146: 0.0742 | F146: 0 | G146: 0.2005 | H146: 0 | I146: 0 | J146: 0.6356 | K146: 0.4351
A147: E9253 | B147: Rebordeadeira diâmetro máximo 3,00 m - 4,85 kW | C147: 71124.2165 | D147: 2.845 | E147: 1.2068 | F147: 0 | G147: 2.4893 | H147: 0 | I147: 0 | J147: 6.5411 | K147: 4.0518
A148: E9254 | B148: Dobradeira viradeira manual comprimento máximo de dobra de até 2.000 mm | C148: 19384.2984 | D148: 0.7754 | E148: 0.3289 | F148: 0 | G148: 0.6785 | H148: 0 | I148: 0 | J148: 1.7828 | K148: 1.1043
A149: E9255 | B149: Fonte de plasma para corte manual - 45A - 10 kW | C149: 21608.8204 | D149: 2.8812 | E149: 0.4444 | F149: 0 | G149: 2.8812 | H149: 0 | I149: 0 | J149: 6.2068 | K149: 3.3256
A150: E9256 | B150: Equipamento para pintura com cal rebocável com dois bicos aplicadores e capacidade de 2.200 l | C150: 62910.7984 | D150: 6.2911 | E150: 1.213 | F150: 0 | G150: 6.2911 | H150: 0 | I150: 31.8603 | J150: 45.6555 | K150: 39.3644
A151: E9259 | B151: Ventilador centrífugo média pressão com capacidade de 38 m³/min - 2,21 kW | C151: 17074.1641 | D151: 1.5367 | E151: 0.316 | F151: 0 | G151: 1.0244 | H151: 0 | I151: 0 | J151: 2.8771 | K151: 1.8527
A152: E9260 | B152: Detector de gases com bomba elétrica para espaço confinado | C152: 4543 | D152: 0.3634 | E152: 0.0841 | F152: 0 | G152: 0.2272 | H152: 0 | I152: 0 | J152: 0.6747 | K152: 0.4475
A153: E9261 | B153: Equipamento de pintura com pistola airless - 0,90 kW | C153: 2291.8173 | D153: 0.4125 | E153: 0.0495 | F153: 0 | G153: 0.2292 | H153: 0 | I153: 0 | J153: 0.6912 | K153: 0.462
A154: E9262 | B154: Escova rotativa com cerdas de aço para tratamento de superfície - 0,91 kW | C154: 20886.6219 | D154: 2.7849 | E154: 0.4296 | F154: 0 | G154: 1.7406 | H154: 0 | I154: 31.8603 | J154: 36.8154 | K154: 35.0748
A155: E9263 | B155: Tripé com guincho para espaço confinado | C155: 10081.9153 | D155: 0.8962 | E155: 0.1901 | F155: 0 | G155: 0.6721 | H155: 0 | I155: 0 | J155: 1.7584 | K155: 1.0863
A156: E9264 | B156: Respirador purificador de ar motorizado | C156: 8816.5598 | D156: 0.7053 | E156: 0.1632 | F156: 0 | G156: 0.4408 | H156: 0 | I156: 0 | J156: 1.3093 | K156: 0.8685
A157: E9265 | B157: Respirador de adução de ar tipo linha de ar comprimido para jateamento | C157: 17997.5491 | D157: 1.4398 | E157: 0.3331 | F157: 0 | G157: 0.8999 | H157: 0 | I157: 0 | J157: 2.6728 | K157: 1.7729
A158: E9267 | B158: Exaustor centrífugo alta pressão com capacidade de 35 m³/min - 1,47 kW | C158: 6298.7355 | D158: 0.5669 | E158: 0.1166 | F158: 0 | G158: 0.3779 | H158: 0 | I158: 0 | J158: 1.0614 | K158: 0.6835
A159: E9501 | B159: Ventilador axial para ventilação forçada com velocidade de saída de 32,8 m/s - D = 1.000 mm - 30 kW | C159: 458531.6319 | D159: 41.2678 | E159: 8.4874 | F159: 0 | G159: 27.5119 | H159: 0 | I159: 0 | J159: 77.2671 | K159: 49.7552
A160: E9502 | B160: Bate-estaca de gravidade para 6 t - 119 kW | C160: 978437.812 | D160: 130.4584 | E160: 20.1232 | F160: 0 | G160: 97.8438 | H160: 84.1723 | I160: 39.1681 | J160: 371.7658 | K160: 189.7497
A161: E9503 | B161: Guilhotina hidráulica 16 x 6.100 mm - 30 kW | C161: 1332350.187 | D161: 53.294 | E161: 22.6067 | F161: 0 | G161: 46.6323 | H161: 0 | I161: 31.8603 | J161: 154.3933 | K161: 107.761
A162: E9505 | B162: Prensa dobradeira capacidade 320 t - comprimento até 3.100 mm - 30 kW | C162: 931751.1206 | D162: 37.27 | E162: 15.8095 | F162: 0 | G162: 32.6113 | H162: 0 | I162: 31.8603 | J162: 117.5511 | K162: 84.9398
A163: E9507 | B163: Plotadora de recorte com computador e programa computacional | C163: 95290.2318 | D163: 14.2935 | E163: 1.9598 | F163: 0 | G163: 9.529 | H163: 0 | I163: 0 | J163: 25.7823 | K163: 16.2533
A164: E9510 | B164: Ventilador centrífugo baixa pressão com capacidade de 58 m³/min - 3,68 kW | C164: 14581.718 | D164: 1.3124 | E164: 0.2699 | F164: 0 | G164: 0.8749 | H164: 0 | I164: 0 | J164: 2.4572 | K164: 1.5823
A165: E9511 | B165: Carregadeira de pneus com capacidade de 3,40 m³ - 195 kW | C165: 2162754.309 | D165: 189.241 | E165: 41.7006 | F165: 0 | G165: 189.241 | H165: 84.8796 | I165: 39.1681 | J165: 544.2303 | K165: 270.1097
A166: E9512 | B166: Veículo leve - 53 kW | C166: 78842.5828 | D166: 4.7306 | E166: 1.4594 | F166: 0.5913 | G166: 4.7306 | H166: 25.9354 | I166: 32.6432 | J166: 70.0905 | K166: 39.4245
A167: E9513 | B167: Compressor de ar portátil de 160,46 l/s (340 PCM) - 81 kW | C167: 340809.1968 | D167: 27.2647 | E167: 6.3084 | F167: 0 | G167: 27.2647 | H167: 74.9226 | I167: 0 | J167: 135.7604 | K167: 33.5731
A168: E9514 | B168: Distribuidor de agregados sobre pneus autopropelido - 130 kW | C168: 986197.9712 | D168: 98.6198 | E168: 19.0151 | F168: 0 | G168: 86.2923 | H168: 134.3927 | I168: 39.1681 | J168: 377.488 | K168: 156.803
A169: E9515 | B169: Escavadeira hidráulica sobre esteiras com caçamba com capacidade de 1,56 m³ - 118 kW | C169: 1198637.713 | D169: 104.8808 | E169: 23.1112 | F169: 0 | G169: 104.8808 | H169: 83.4649 | I169: 39.1681 | J169: 355.5058 | K169: 167.1601
A170: E9516 | B170: Perfuratriz hidráulica sobre esteiras - 283 kW | C170: 8089832.154 | D170: 647.1866 | E170: 149.7428 | F170: 0 | G170: 647.1866 | H170: 153.9803 | I170: 39.1681 | J170: 1637.2644 | K170: 836.0975
A171: E9518 | B171: Grade de 24 discos rebocável de D = 60 cm (24") | C171: 43188.033 | D171: 2.7764 | E171: 0.7613 | F171: 0 | G171: 1.5424 | H171: 0 | I171: 0 | J171: 5.0801 | K171: 3.5377
A172: E9519 | B172: Betoneira com motor a gasolina com capacidade de 600 l - 10 kW | C172: 40321.0029 | D172: 6.4514 | E172: 0.8707 | F172: 0 | G172: 4.8385 | H172: 19.0302 | I172: 31.8603 | J172: 63.0511 | K172: 39.1824
A173: E9521 | B173: Grupo gerador - 3,2 kVA | C173: 3575.3467 | D173: 0.3128 | E173: 0.0689 | F173: 0 | G173: 0.2235 | H173: 4.5238 | I173: 0 | J173: 5.129 | K173: 0.3817
A174: E9522 | B174: Caldeira de asfalto rebocável com capacidade de 1.500 l - 6,5 kW | C174: 213982.3512 | D174: 32.0974 | E174: 4.4009 | F174: 0 | G174: 10.6991 | H174: 4.9513 | I174: 0 | J174: 52.1487 | K174: 36.4983
A175: E9523 | B175: Motoscraper - 304 kW | C175: 6196630.337 | D175: 330.487 | E175: 108.3274 | F175: 0 | G175: 371.7978 | H175: 264.6502 | I175: 39.1681 | J175: 1114.4305 | K175: 477.9825
A176: E9524 | B176: Motoniveladora - 93 kW | C176: 1304892.101 | D176: 91.3424 | E176: 24.1536 | F176: 0 | G176: 117.4403 | H176: 75.902 | I176: 39.1681 | J176: 348.0064 | K176: 154.6641
A177: E9525 | B177: Ponte rolante com capacidade de 15 t e vão de até 15 m - 20 kW | C177: 3646202.178 | D177: 162.0534 | E177: 62.4919 | F177: 0 | G177: 101.2834 | H177: 0 | I177: 63.7206 | J177: 389.5493 | K177: 288.2659
A178: E9526 | B178: Retroescavadeira de pneus - capacidade da caçamba da pá-carregadeira de 0,76 m³ e da retroescavadeira de 0,29 m³ - 58 kW | C178: 486074.5901 | D178: 35.816 | E178: 9.0762 | F178: 0 | G178: 35.816 | H178: 41.0251 | I178: 39.1681 | J178: 160.9014 | K178: 84.0603
A179: E9527 | B179: Martelete perfurador/rompedor a ar comprimido de 25 kg para rocha com capacidade de 2.040 gpm | C179: 25209.1538 | D179: 3.3612 | E179: 0.5185 | F179: 0 | G179: 3.3612 | H179: 0 | I179: 31.8603 | J179: 39.1012 | K179: 35.74
A180: E9528 | B180: Empilhadeira a diesel com capacidade de 4 t - 60 kW | C180: 569934.2173 | D180: 45.5947 | E180: 10.5495 | F180: 0 | G180: 39.8954 | H180: 48.969 | I180: 31.8603 | J180: 176.8689 | K180: 88.0045
A181: E9529 | B181: Jateador para estruturas metálicas com transportador a roletes - 22 kW | C181: 5083802.358 | D181: 813.4084 | E181: 109.7847 | F181: 0 | G181: 610.0563 | H181: 0 | I181: 31.8603 | J181: 1565.1097 | K181: 955.0534
A182: E9530 | B182: Rolo compactador liso vibratório autopropelido por pneus de 11 t - 97 kW | C182: 964184.4574 | D182: 77.1348 | E182: 17.8471 | F182: 0 | G182: 77.1348 | H182: 84.4443 | I182: 39.1681 | J182: 295.7291 | K182: 134.15
A183: E9532 | B183: Equipamento de solda MIG com acessórios - 14,6 kVA | C183: 85536.5168 | D183: 11.4049 | E183: 1.7592 | F183: 0 | G183: 11.4049 | H183: 0 | I183: 0 | J183: 24.569 | K183: 13.1641
A184: E9535 | B184: Serra circular com bancada - D = 30 cm - 4 kW | C184: 7476.9951 | D184: 0.6729 | E184: 0.1384 | F184: 0 | G184: 0.3738 | H184: 0 | I184: 31.8603 | J184: 33.0454 | K184: 32.6716
A185: E9536 | B185: Embarcação de transporte de pessoal e apoio logístico - 30 kW | C185: 154221.7047 | D185: 1.7654 | E185: 0.8865 | F185: 0 | G185: 1.9615 | H185: 65.2464 | I185: 42.121 | J185: 111.9808 | K185: 44.7729
A186: E9538 | B186: Conjunto vibratório para meio tubo de concreto com encaixe PB e 3 jogos de fôrmas - D = 0,30 m - 2,20 kW | C186: 16089.4978 | D186: 2.1453 | E186: 0.3309 | F186: 0 | G186: 1.6089 | H186: 0 | I186: 0 | J186: 4.0851 | K186: 2.4762
A187: E9539 | B187: Equipamento de batimetria monofeixe | C187: 108582.1765 | D187: 4.9707 | E187: 1.8453 | F187: 0 | G187: 2.7615 | H187: 0 | I187: 36.6794 | J187: 46.2569 | K187: 43.4954
A188: E9540 | B188: Trator sobre esteiras com lâmina - 127 kW | C188: 1732208.638 | D188: 121.2546 | E188: 32.0632 | F188: 0 | G188: 173.2209 | H188: 96.741 | I188: 39.1681 | J188: 462.4478 | K188: 192.4859
A189: E9541 | B189: Trator sobre esteiras com lâmina - 259 kW | C189: 4844238.804 | D189: 294.8667 | E189: 87.7176 | F189: 0 | G189: 421.2382 | H189: 197.2907 | I189: 39.1681 | J189: 1040.2813 | K189: 421.7524
A190: E9543 | B190: Compressor de ar respirável com capacidade de até 35 MPa e 3,58 l/s - 5,52 kW | C190: 76106.2417 | D190: 6.0885 | E190: 1.4087 | F190: 0 | G190: 6.0885 | H190: 0 | I190: 0 | J190: 13.5857 | K190: 7.4972
A191: E9544 | B191: Vassoura mecânica rebocável com largura de 2,44 m | C191: 86409.3771 | D191: 9.7211 | E191: 1.6661 | F191: 0 | G191: 6.4807 | H191: 0 | I191: 0 | J191: 17.8679 | K191: 11.3872
A192: E9545 | B192: Vibroacabadora de asfalto sobre esteiras - 97 kW | C192: 1622724.236 | D192: 141.9884 | E192: 31.2882 | F192: 0 | G192: 182.5565 | H192: 100.2776 | I192: 46.3206 | J192: 502.4313 | K192: 219.5972
A193: E9547 | B193: Máquina de solda elétrica transformadora 250 A - 9,20 kW | C193: 1167.7731 | D193: 0.1557 | E193: 0.024 | F193: 0 | G193: 0.1557 | H193: 0 | I193: 0 | J193: 0.3354 | K193: 0.1797
A194: E9548 | B194: Bomba centrífuga com capacidade de 7,1 a 22 m³/h - 1,50 kW | C194: 2619.4558 | D194: 0.2619 | E194: 0.0505 | F194: 0 | G194: 0.2292 | H194: 0 | I194: 0 | J194: 0.5416 | K194: 0.3124
A195: E9551 | B195: Obturador mecânico simples com extensão de 12 m | C195: 4900.6731 | D195: 0.4411 | E195: 0.0907 | F195: 0 | G195: 0.245 | H195: 0 | I195: 0 | J195: 0.7768 | K195: 0.5318
A196: E9552 | B196: Nível ótico com capacidade de aumento de 32x | C196: 15453.4885 | D196: 1.2363 | E196: 0.286 | F196: 0 | G196: 0.7727 | H196: 0 | I196: 0 | J196: 2.295 | K196: 1.5223
A197: E9553 | B197: Estação total eletrônica com alcance máximo de 3.000 m | C197: 51068.6684 | D197: 4.5962 | E197: 0.9453 | F197: 0 | G197: 2.5534 | H197: 0 | I197: 0 | J197: 8.0949 | K197: 5.5415
A198: E9556 | B198: Compactador manual de placa vibratória - 3,00 kW | C198: 10938.3425 | D198: 2.1877 | E198: 0.2531 | F198: 0 | G198: 2.1877 | H198: 5.7091 | I198: 0 | J198: 10.3376 | K198: 2.4408
A199: E9558 | B199: Tanque de estocagem de asfalto com capacidade de 30.000 l | C199: 704448.5594 | D199: 93.9265 | E199: 14.4882 | F199: 0 | G199: 58.704 | H199: 0 | I199: 0 | J199: 167.1187 | K199: 108.4147
A200: E9559 | B200: Aquecedor de fluido térmico - 12 kW | C200: 808820.8438 | D200: 121.3231 | E200: 16.6347 | F200: 0 | G200: 80.8821 | H200: 9.7938 | I200: 0 | J200: 228.6337 | K200: 137.9578
... 342 more rows

Sheet DNIT Rel. Consolidação de M.O. (hidden)
A1: Código | B1: Categoria | C1: Unid. | D1: Salário | E1: Encargos Sociais | G1: Encargos Complementares | Q1: Encargos Adicionais | W1: Encargos Totais | Y1: Valor Total
G2: Alimentação | I2: EPI | K2: Ferramenta | M2: Transporte | O2: Exame Ocupacional | Q2: Cesta Básica | S2: Assistência Médica | U2: Seguro de Vida
D3: R$ | E3: % | F3: R$ | G3: % | H3: R$ | I3: % | J3: R$ | K3: % | L3: R$ | M3: % | N3: R$ | O3: % | P3: R$ | Q3: % | R3: R$ | S3: % | T3: R$ | U3: % | V3: R$ | W3: % | X3: R$ | Y3: R$
A4: P8001 | B4: Advogado júnior | C4: mês | D4: 5064.07 | E4: 78.11 | F4: 3955.55 | G4: 15.33 | H4: 776.57 | I4: 0.52 | J4: 26.49 | K4: 0 | L4: 0 | M4: 0 | N4: 0 | O4: 0.06 | P4: 3.1 | Q4: 0 | R4: 0 | S4: 6.06 | T4: 306.84 | U4: 0.2 | V4: 9.98 | W4: 100.2855 | X4: 5078.53 | Y4: 10142.6 | Z4: =Y4-D4-F4 -> 1122.98
A5: P8002 | B5: Advogado pleno | C5: mês | D5: 6752.09 | E5: 78.11 | F5: 5274.06 | G5: 11.5 | H5: 776.57 | I5: 0.39 | J5: 26.49 | K5: 0 | L5: 0 | M5: 0 | N5: 0 | O5: 0.05 | P5: 3.1 | Q5: 0 | R5: 0 | S5: 4.54 | T5: 306.84 | U5: 0.15 | V5: 9.98 | W5: 94.7416 | X5: 6397.04 | Y5: 13149.14 | Z5: =Y5-D5-F5 -> 1122.99
A6: P8003 | B6: Advogado sênior | C6: mês | D6: 12224.44 | E6: 78.11 | F6: 9548.51 | G6: 6.35 | H6: 776.57 | I6: 0.22 | J6: 26.49 | K6: 0 | L6: 0 | M6: 0 | N6: 0 | O6: 0.03 | P6: 3.1 | Q6: 0 | R6: 0 | S6: 2.51 | T6: 306.84 | U6: 0.08 | V6: 9.98 | W6: 87.2964 | X6: 10671.49 | Y6: 22895.93 | Z6: 1122.98
A7: P8007 | B7: Analista de desenvolvimento de sistemas júnior | C7: mês | D7: 4278.79 | E7: 78.23 | F7: 3347.3 | G7: 18.15 | H7: 776.57 | I7: 0 | J7: 0 | K7: 0 | L7: 0 | M7: 0 | N7: 0 | O7: 0.07 | P7: 3.03 | Q7: 0 | R7: 0 | S7: 7.17 | T7: 306.84 | U7: 0.23 | V7: 9.98 | W7: 103.8545 | X7: 4443.72 | Y7: 8722.5 | Z7: 1096.41
A8: P8008 | B8: Analista de desenvolvimento de sistemas pleno | C8: mês | D8: 5705.05 | E8: 78.23 | F8: 4463.06 | G8: 13.61 | H8: 776.57 | I8: 0 | J8: 0 | K8: 0 | L8: 0 | M8: 0 | N8: 0 | O8: 0.05 | P8: 3.03 | Q8: 0 | R8: 0 | S8: 5.38 | T8: 306.84 | U8: 0.17 | V8: 9.98 | W8: 97.4484 | X8: 5559.48 | Y8: 11264.53 | Z8: 1096.42
A9: P8009 | B9: Analista de desenvolvimento de sistemas sênior | C9: mês | D9: 10184.53 | E9: 78.23 | F9: 7967.36 | G9: 7.62 | H9: 776.57 | I9: 0 | J9: 0 | K9: 0 | L9: 0 | M9: 0 | N9: 0 | O9: 0.03 | P9: 3.03 | Q9: 0 | R9: 0 | S9: 3.01 | T9: 306.84 | U9: 0.1 | V9: 9.98 | W9: 88.9955 | X9: 9063.78 | Y9: 19248.31 | Z9: 1096.42
A10: P8013 | B10: Arquiteto júnior | C10: mês | D10: 12443.57 | E10: 78.15 | F10: 9724.65 | G10: 6.24 | H10: 776.57 | I10: 0.21 | J10: 26.49 | K10: 0 | L10: 0 | M10: 0 | N10: 0 | O10: 0.02 | P10: 2.74 | Q10: 0 | R10: 0 | S10: 2.47 | T10: 306.84 | U10: 0.08 | V10: 9.98 | W10: 87.1717 | X10: 10847.27 | Y10: 23290.84 | Z10: 1122.62
A11: P8014 | B11: Arquiteto pleno | C11: mês | D11: 14617.04 | E11: 78.15 | F11: 11423.22 | G11: 5.31 | H11: 776.57 | I11: 0.18 | J11: 26.49 | K11: 0 | L11: 0 | M11: 0 | N11: 0 | O11: 0.02 | P11: 2.74 | Q11: 0 | R11: 0 | S11: 2.1 | T11: 306.84 | U11: 0.07 | V11: 9.98 | W11: 85.8302 | X11: 12545.84 | Y11: 27162.88 | Z11: 1122.62
A12: P8015 | B12: Arquiteto sênior | C12: mês | D12: 16790.52 | E12: 78.15 | F12: 13121.79 | G12: 4.63 | H12: 776.57 | I12: 0.16 | J12: 26.49 | K12: 0 | L12: 0 | M12: 0 | N12: 0 | O12: 0.02 | P12: 2.74 | Q12: 0 | R12: 0 | S12: 1.83 | T12: 306.84 | U12: 0.06 | V12: 9.98 | W12: 84.836 | X12: 14244.41 | Y12: 31034.92 | Z12: 1122.61
A13: P8019 | B13: Assistente social júnior | C13: mês | D13: 3324.84 | E13: 78.8 | F13: 2619.97 | G13: 23.36 | H13: 776.57 | I13: 0.8 | J13: 26.49 | K13: 0 | L13: 0 | M13: 1.49 | N13: 49.41 | O13: 0.13 | P13: 4.32 | Q13: 0 | R13: 0 | S13: 9.23 | T13: 306.84 | U13: 0.3 | V13: 9.98 | W13: 114.0982 | X13: 3793.58 | Y13: 7118.43 | Z13: 1173.62
A14: P8020 | B14: Assistente social pleno | C14: mês | D14: 4433.12 | E14: 78.8 | F14: 3493.3 | G14: 17.52 | H14: 776.57 | I14: 0.6 | J14: 26.49 | K14: 0 | L14: 0 | M14: 0 | N14: 0 | O14: 0.1 | P14: 4.32 | Q14: 0 | R14: 0 | S14: 6.92 | T14: 306.84 | U14: 0.23 | V14: 9.98 | W14: 104.1591 | X14: 4617.5 | Y14: 9050.62 | Z14: 1124.2
A15: P8021 | B15: Assistente social sênior | C15: mês | D15: 7555.65 | E15: 78.8 | F15: 5953.86 | G15: 10.28 | H15: 776.57 | I15: 0.35 | J15: 26.49 | K15: 0 | L15: 0 | M15: 0 | N15: 0 | O15: 0.06 | P15: 4.32 | Q15: 0 | R15: 0 | S15: 4.06 | T15: 306.84 | U15: 0.13 | V15: 9.98 | W15: 93.6789 | X15: 7078.06 | Y15: 14633.71 | Z15: 1124.2
A16: P8025 | B16: Auxiliar | C16: mês | D16: 1706.03 | E16: 80.07 | F16: 1366.02 | G16: 45.52 | H16: 776.57 | I16: 1.89 | J16: 32.25 | K16: 0.1 | L16: 1.65 | M16: 8.59 | N16: 146.54 | O16: 0.27 | P16: 4.63 | Q16: 0 | R16: 0 | S16: 17.99 | T16: 306.84 | U16: 0.58 | V16: 9.98 | W16: 155.0075 | X16: 2644.47 | Y16: 4350.5 | Z16: 1278.45
A17: P8026 | B17: Auxiliar administrativo | C17: mês | D17: 1977.58 | E17: 78.95 | F17: 1561.3 | G17: 39.27 | H17: 776.57 | I17: 0 | J17: 0 | K17: 0 | L17: 0 | M17: 6.59 | N17: 130.25 | O17: 0.21 | P17: 4.16 | Q17: 0 | R17: 0 | S17: 15.52 | T17: 306.84 | U17: 0.5 | V17: 9.98 | W17: 141.0359 | X17: 2789.1 | Y17: 4766.67 | Z17: 1227.79
A18: P8027 | B18: Auxiliar de laboratório | C18: mês | D18: 1886.7 | E18: 79.02 | F18: 1490.87 | G18: 41.16 | H18: 776.57 | I18: 1.71 | J18: 32.25 | K18: 0.18 | L18: 3.41 | M18: 7.19 | N18: 135.7 | O18: 0.23 | P18: 4.42 | Q18: 0 | R18: 0 | S18: 16.26 | T18: 306.84 | U18: 0.53 | V18: 9.98 | W18: 146.289 | X18: 2760.03 | Y18: 4646.73 | Z18: 1269.16
A19: P8028 | B19: Auxiliar de topografia | C19: mês | D19: 1706.03 | E19: 79.13 | F19: 1349.98 | G19: 45.52 | H19: 776.57 | I19: 1.89 | J19: 32.25 | K19: 0.08 | L19: 1.44 | M19: 8.59 | N19: 146.54 | O19: 0.26 | P19: 4.41 | Q19: 0 | R19: 0 | S19: 17.99 | T19: 306.84 | U19: 0.58 | V19: 9.98 | W19: 154.0425 | X19: 2628.01 | Y19: 4334.04 | Z19: 1278.03
A20: P8032 | B20: Biólogo júnior | C20: mês | D20: 3235.9 | E20: 78.44 | F20: 2538.24 | G20: 24 | H20: 776.57 | I20: 0.82 | J20: 26.49 | K20: 0 | L20: 0 | M20: 1.69 | N20: 54.75 | O20: 0.1 | P20: 3.18 | Q20: 0 | R20: 0 | S20: 9.48 | T20: 306.84 | U20: 0.31 | V20: 9.98 | W20: 114.8381 | X20: 3716.04 | Y20: 6951.94 | Z20: 1177.8
A21: P8033 | B21: Biólogo pleno | C21: mês | D21: 4314.53 | E21: 78.44 | F21: 3384.32 | G21: 18 | H21: 776.57 | I21: 0.61 | J21: 26.49 | K21: 0 | L21: 0 | M21: 0 | N21: 0 | O21: 0.07 | P21: 3.18 | Q21: 0 | R21: 0 | S21: 7.11 | T21: 306.84 | U21: 0.23 | V21: 9.98 | W21: 104.4697 | X21: 4507.38 | Y21: 8821.9 | Z21: 1123.05
A22: P8034 | B22: Biólogo sênior | C22: mês | D22: 7874.56 | E22: 78.44 | F22: 6176.8 | G22: 9.86 | H22: 776.57 | I22: 0.34 | J22: 26.49 | K22: 0 | L22: 0 | M22: 0 | N22: 0 | O22: 0.04 | P22: 3.18 | Q22: 0 | R22: 0 | S22: 3.9 | T22: 306.84 | U22: 0.13 | V22: 9.98 | W22: 92.7019 | X22: 7299.86 | Y22: 15174.42 | Z22: 1123.06
A23: P8038 | B23: Chefe de escritório | C23: mês | D23: 3743.41 | E23: 78.05 | F23: 2921.73 | G23: 20.74 | H23: 776.57 | I23: 0 | J23: 0 | K23: 0 | L23: 0 | M23: 0.65 | N23: 24.3 | O23: 0.06 | P23: 2.19 | Q23: 0 | R23: 0 | S23: 8.2 | T23: 306.84 | U23: 0.27 | V23: 9.98 | W23: 107.966 | X23: 4041.6 | Y23: 7785.01 | Z23: 1119.87
A24: P8040 | B24: Contador júnior | C24: mês | D24: 4450.31 | E24: 78.12 | F24: 3476.58 | G24: 17.45 | H24: 776.57 | I24: 0 | J24: 0 | K24: 0 | L24: 0 | M24: 0 | N24: 0 | O24: 0.06 | P24: 2.48 | Q24: 0 | R24: 0 | S24: 6.89 | T24: 306.84 | U24: 0.22 | V24: 9.98 | W24: 102.7446 | X24: 4572.45 | Y24: 9022.76 | Z24: 1095.87
A25: P8041 | B25: Contador pleno | C25: mês | D25: 5933.75 | E25: 78.12 | F25: 4635.44 | G25: 13.09 | H25: 776.57 | I25: 0 | J25: 0 | K25: 0 | L25: 0 | M25: 0 | N25: 0 | O25: 0.04 | P25: 2.48 | Q25: 0 | R25: 0 | S25: 5.17 | T25: 306.84 | U25: 0.17 | V25: 9.98 | W25: 96.5884 | X25: 5731.31 | Y25: 11665.06 | Z25: 1095.87
A26: P8042 | B26: Contador sênior | C26: mês | D26: 11336.95 | E26: 78.12 | F26: 8856.43 | G26: 6.85 | H26: 776.57 | I26: 0 | J26: 0 | K26: 0 | L26: 0 | M26: 0 | N26: 0 | O26: 0.02 | P26: 2.48 | Q26: 0 | R26: 0 | S26: 2.71 | T26: 306.84 | U26: 0.09 | V26: 9.98 | W26: 87.7864 | X26: 9952.3 | Y26: 21289.25 | Z26: 1095.87
A27: P8044 | B27: Coordenador ambiental | C27: mês | D27: 19218.44 | E27: 78.6 | F27: 15105.7 | G27: 4.04 | H27: 776.57 | I27: 0.13 | J27: 24.19 | K27: 0 | L27: 0 | M27: 0 | N27: 0 | O27: 0.02 | P27: 3.79 | Q27: 0 | R27: 0 | S27: 1.6 | T27: 306.84 | U27: 0.05 | V27: 9.98 | W27: 84.4349 | X27: 16227.07 | Y27: 35445.51 | Z27: 1121.37
A28: P8045 | B28: Economista júnior | C28: mês | D28: 4787.47 | E28: 77.45 | F28: 3707.9 | G28: 16.22 | H28: 776.57 | I28: 0 | J28: 0 | K28: 0 | L28: 0 | M28: 0 | N28: 0 | O28: 0.04 | P28: 2.03 | Q28: 0 | R28: 0 | S28: 6.41 | T28: 306.84 | U28: 0.21 | V28: 9.98 | W28: 100.3309 | X28: 4803.31 | Y28: 9590.78 | Z28: 1095.41
A29: P8046 | B29: Economista pleno | C29: mês | D29: 6383.29 | E29: 77.45 | F29: 4943.86 | G29: 12.17 | H29: 776.57 | I29: 0 | J29: 0 | K29: 0 | L29: 0 | M29: 0 | N29: 0 | O29: 0.03 | P29: 2.03 | Q29: 0 | R29: 0 | S29: 4.81 | T29: 306.84 | U29: 0.16 | V29: 9.98 | W29: 94.6107 | X29: 6039.28 | Y29: 12422.57 | Z29: 1095.42
A30: P8047 | B30: Economista sênior | C30: mês | D30: 9385.69 | E30: 77.45 | F30: 7269.22 | G30: 8.27 | H30: 776.57 | I30: 0 | J30: 0 | K30: 0 | L30: 0 | M30: 0 | N30: 0 | O30: 0.02 | P30: 2.03 | Q30: 0 | R30: 0 | S30: 3.27 | T30: 306.84 | U30: 0.11 | V30: 9.98 | W30: 89.1211 | X30: 8364.64 | Y30: 17750.33 | Z30: 1095.42
A31: P8054 | B31: Engenheiro agrônomo júnior | C31: mês | D31: 12443.57 | E31: 78.05 | F31: 9712.21 | G31: 6.24 | H31: 776.57 | I31: 0.21 | J31: 26.49 | K31: 0 | L31: 0 | M31: 0 | N31: 0 | O31: 0.03 | P31: 3.15 | Q31: 0 | R31: 0 | S31: 2.47 | T31: 306.84 | U31: 0.08 | V31: 9.98 | W31: 87.075 | X31: 10835.24 | Y31: 23278.81 | Z31: 1123.03
A32: P8055 | B32: Engenheiro agrônomo pleno | C32: mês | D32: 13405.28 | E32: 78.05 | F32: 10462.82 | G32: 5.79 | H32: 776.57 | I32: 0.2 | J32: 26.49 | K32: 0 | L32: 0 | M32: 0 | N32: 0 | O32: 0.02 | P32: 3.15 | Q32: 0 | R32: 0 | S32: 2.29 | T32: 306.84 | U32: 0.07 | V32: 9.98 | W32: 86.4275 | X32: 11585.85 | Y32: 24991.14 | Z32: 1123.04
A33: P8056 | B33: Engenheiro agrônomo sênior | C33: mês | D33: 14367 | E33: 78.05 | F33: 11213.44 | G33: 5.41 | H33: 776.57 | I33: 0.18 | J33: 26.49 | K33: 0 | L33: 0 | M33: 0 | N33: 0 | O33: 0.02 | P33: 3.15 | Q33: 0 | R33: 0 | S33: 2.14 | T33: 306.84 | U33: 0.07 | V33: 9.98 | W33: 85.8667 | X33: 12336.47 | Y33: 26703.47 | Z33: 1123.03
A34: P8057 | B34: Engenheiro ambiental júnior | C34: mês | D34: 12443.57 | E34: 78.76 | F34: 9800.56 | G34: 6.24 | H34: 776.57 | I34: 0.21 | J34: 26.49 | K34: 0 | L34: 0 | M34: 0 | N34: 0 | O34: 0.03 | P34: 3.41 | Q34: 0 | R34: 0 | S34: 2.47 | T34: 306.84 | U34: 0.08 | V34: 9.98 | W34: 87.787 | X34: 10923.84 | Y34: 23367.41 | Z34: 1123.28
A35: P8058 | B35: Engenheiro ambiental pleno | C35: mês | D35: 14289.04 | E35: 78.76 | F35: 11254.05 | G35: 5.43 | H35: 776.57 | I35: 0.19 | J35: 26.49 | K35: 0 | L35: 0 | M35: 0 | N35: 0 | O35: 0.02 | P35: 3.41 | Q35: 0 | R35: 0 | S35: 2.15 | T35: 306.84 | U35: 0.07 | V35: 9.98 | W35: 86.6212 | X35: 12377.34 | Y35: 26666.38 | Z35: 1123.29
A36: P8059 | B36: Engenheiro ambiental sênior | C36: mês | D36: 16134.52 | E36: 78.76 | F36: 12707.55 | G36: 4.81 | H36: 776.57 | I36: 0.16 | J36: 26.49 | K36: 0 | L36: 0 | M36: 0 | N36: 0 | O36: 0.02 | P36: 3.41 | Q36: 0 | R36: 0 | S36: 1.9 | T36: 306.84 | U36: 0.06 | V36: 9.98 | W36: 85.722 | X36: 13830.83 | Y36: 29965.35 | Z36: 1123.28
A37: P8060 | B37: Engenheiro consultor especial | C37: mês | D37: 23254.78 | E37: 78.41 | F37: 18234.08 | G37: 3.34 | H37: 776.57 | I37: 0.1 | J37: 24.19 | K37: 0 | L37: 0 | M37: 0 | N37: 0 | O37: 0.01 | P37: 3.18 | Q37: 0 | R37: 0 | S37: 1.32 | T37: 306.84 | U37: 0.04 | V37: 9.98 | W37: 83.2295 | X37: 19354.84 | Y37: 42609.63 | Z37: 1120.77
A38: P8061 | B38: Engenheiro coordenador | C38: mês | D38: 19378.99 | E38: 78.41 | F38: 15195.06 | G38: 4.01 | H38: 776.57 | I38: 0.12 | J38: 24.19 | K38: 0 | L38: 0 | M38: 0 | N38: 0 | O38: 0.02 | P38: 3.18 | Q38: 0 | R38: 0 | S38: 1.58 | T38: 306.84 | U38: 0.05 | V38: 9.98 | W38: 84.1934 | X38: 16315.83 | Y38: 35694.82 | Z38: 1120.77
A39: P8062 | B39: Engenheiro de pesca júnior | C39: mês | D39: 12443.57 | E39: 78.9 | F39: 9817.98 | G39: 6.24 | H39: 776.57 | I39: 0.21 | J39: 26.49 | K39: 0 | L39: 0 | M39: 0 | N39: 0 | O39: 0.04 | P39: 4.59 | Q39: 0 | R39: 0 | S39: 2.47 | T39: 306.84 | U39: 0.08 | V39: 9.98 | W39: 87.9365 | X39: 10942.44 | Y39: 23386.01 | Z39: 1124.46
A40: P8063 | B40: Engenheiro de pesca pleno | C40: mês | D40: 14160.98 | E40: 78.9 | F40: 11173.01 | G40: 5.48 | H40: 776.57 | I40: 0.19 | J40: 26.49 | K40: 0 | L40: 0 | M40: 0 | N40: 0 | O40: 0.03 | P40: 4.59 | Q40: 0 | R40: 0 | S40: 2.17 | T40: 306.84 | U40: 0.07 | V40: 9.98 | W40: 86.8406 | X40: 12297.47 | Y40: 26458.45 | Z40: 1124.46
A41: P8064 | B41: Engenheiro de pesca sênior | C41: mês | D41: 15878.38 | E41: 78.9 | F41: 12528.04 | G41: 4.89 | H41: 776.57 | I41: 0.17 | J41: 26.49 | K41: 0 | L41: 0 | M41: 0 | N41: 0 | O41: 0.03 | P41: 4.59 | Q41: 0 | R41: 0 | S41: 1.93 | T41: 306.84 | U41: 0.06 | V41: 9.98 | W41: 85.9817 | X41: 13652.51 | Y41: 29530.89 | Z41: 1124.47
A42: P8065 | B42: Engenheiro de projetos júnior | C42: mês | D42: 12443.57 | E42: 78.41 | F42: 9757 | G42: 6.24 | H42: 776.57 | I42: 0.21 | J42: 26.49 | K42: 0 | L42: 0 | M42: 0 | N42: 0 | O42: 0.03 | P42: 3.18 | Q42: 0 | R42: 0 | S42: 2.47 | T42: 306.84 | U42: 0.08 | V42: 9.98 | W42: 87.4352 | X42: 10880.07 | Y42: 23323.64 | Z42: 1123.07
A43: P8066 | B43: Engenheiro de projetos pleno | C43: mês | D43: 14698.04 | E43: 78.41 | F43: 11524.73 | G43: 5.28 | H43: 776.57 | I43: 0.18 | J43: 26.49 | K43: 0 | L43: 0 | M43: 0 | N43: 0 | O43: 0.02 | P43: 3.18 | Q43: 0 | R43: 0 | S43: 2.09 | T43: 306.84 | U43: 0.07 | V43: 9.98 | W43: 86.0509 | X43: 12647.8 | Y43: 27345.84 | Z43: 1123.07
A44: P8067 | B44: Engenheiro de projetos sênior | C44: mês | D44: 16952.51 | E44: 78.41 | F44: 13292.46 | G44: 4.58 | H44: 776.57 | I44: 0.16 | J44: 26.49 | K44: 0 | L44: 0 | M44: 0 | N44: 0 | O44: 0.02 | P44: 3.18 | Q44: 0 | R44: 0 | S44: 1.81 | T44: 306.84 | U44: 0.06 | V44: 9.98 | W44: 85.0348 | X44: 14415.53 | Y44: 31368.04 | Z44: 1123.07
A45: P8068 | B45: Engenheiro florestal júnior | C45: mês | D45: 12443.57 | E45: 78.9 | F45: 9817.98 | G45: 6.24 | H45: 776.57 | I45: 0.21 | J45: 26.49 | K45: 0 | L45: 0 | M45: 0 | N45: 0 | O45: 0.04 | P45: 4.59 | Q45: 0 | R45: 0 | S45: 2.47 | T45: 306.84 | U45: 0.08 | V45: 9.98 | W45: 87.9365 | X45: 10942.44 | Y45: 23386.01 | Z45: 1124.46
A46: P8069 | B46: Engenheiro florestal pleno | C46: mês | D46: 14160.98 | E46: 78.9 | F46: 11173.01 | G46: 5.48 | H46: 776.57 | I46: 0.19 | J46: 26.49 | K46: 0 | L46: 0 | M46: 0 | N46: 0 | O46: 0.03 | P46: 4.59 | Q46: 0 | R46: 0 | S46: 2.17 | T46: 306.84 | U46: 0.07 | V46: 9.98 | W46: 86.8406 | X46: 12297.47 | Y46: 26458.45 | Z46: 1124.46
A47: P8070 | B47: Engenheiro florestal sênior | C47: mês | D47: 15878.38 | E47: 78.9 | F47: 12528.04 | G47: 4.89 | H47: 776.57 | I47: 0.17 | J47: 26.49 | K47: 0 | L47: 0 | M47: 0 | N47: 0 | O47: 0.03 | P47: 4.59 | Q47: 0 | R47: 0 | S47: 1.93 | T47: 306.84 | U47: 0.06 | V47: 9.98 | W47: 85.9817 | X47: 13652.51 | Y47: 29530.89 | Z47: 1124.47
A48: P8080 | B48: Geólogo júnior | C48: mês | D48: 11984.56 | E48: 78.93 | F48: 9459.41 | G48: 6.48 | H48: 776.57 | I48: 0.22 | J48: 26.49 | K48: 0 | L48: 0 | M48: 0 | N48: 0 | O48: 0.04 | P48: 4.54 | Q48: 0 | R48: 0 | S48: 2.56 | T48: 306.84 | U48: 0.08 | V48: 9.98 | W48: 88.3122 | X48: 10583.83 | Y48: 22568.39 | Z48: 1124.42
A49: P8081 | B49: Geólogo pleno | C49: mês | D49: 13378.55 | E49: 78.93 | F49: 10559.69 | G49: 5.8 | H49: 776.57 | I49: 0.2 | J49: 26.49 | K49: 0 | L49: 0 | M49: 0 | N49: 0 | O49: 0.03 | P49: 4.54 | Q49: 0 | R49: 0 | S49: 2.29 | T49: 306.84 | U49: 0.07 | V49: 9.98 | W49: 87.3347 | X49: 11684.11 | Y49: 25062.67 | Z49: 1124.43
A50: P8082 | B50: Geólogo sênior | C50: mês | D50: 14772.55 | E50: 78.93 | F50: 11659.97 | G50: 5.26 | H50: 776.57 | I50: 0.18 | J50: 26.49 | K50: 0 | L50: 0 | M50: 0 | N50: 0 | O50: 0.03 | P50: 4.54 | Q50: 0 | R50: 0 | S50: 2.08 | T50: 306.84 | U50: 0.07 | V50: 9.98 | W50: 86.5416 | X50: 12784.39 | Y50: 27556.94 | Z50: 1124.42
A51: P8092 | B51: Jornalista júnior | C51: mês | D51: 3346.55 | E51: 78.25 | F51: 2618.68 | G51: 23.21 | H51: 776.57 | I51: 0.79 | J51: 26.49 | K51: 0 | L51: 0 | M51: 1.44 | N51: 48.11 | O51: 0.09 | P51: 3.12 | Q51: 0 | R51: 0 | S51: 9.17 | T51: 306.84 | U51: 0.3 | V51: 9.98 | W51: 113.2443 | X51: 3789.78 | Y51: 7136.33 | Z51: 1171.1
A52: P8093 | B52: Jornalista pleno | C52: mês | D52: 4462.07 | E52: 78.25 | F52: 3491.57 | G52: 17.4 | H52: 776.57 | I52: 0.59 | J52: 26.49 | K52: 0 | L52: 0 | M52: 0 | N52: 0 | O52: 0.07 | P52: 3.12 | Q52: 0 | R52: 0 | S52: 6.88 | T52: 306.84 | U52: 0.22 | V52: 9.98 | W52: 103.4176 | X52: 4614.57 | Y52: 9076.64 | Z52: 1123
A53: P8094 | B53: Jornalista sênior | C53: mês | D53: 8425.07 | E53: 78.25 | F53: 6592.62 | G53: 9.22 | H53: 776.57 | I53: 0.31 | J53: 26.49 | K53: 0 | L53: 0 | M53: 0 | N53: 0 | O53: 0.04 | P53: 3.12 | Q53: 0 | R53: 0 | S53: 3.64 | T53: 306.84 | U53: 0.12 | V53: 9.98 | W53: 91.5792 | X53: 7715.62 | Y53: 16140.69 | Z53: 1123
A54: P8098 | B54: Laboratorista | C54: mês | D54: 2515.6 | E54: 79.02 | F54: 1987.82 | G54: 30.87 | H54: 776.57 | I54: 1.18 | J54: 29.7 | K54: 0 | L54: 0 | M54: 3.89 | N54: 97.96 | O54: 0.18 | P54: 4.42 | Q54: 0 | R54: 0 | S54: 12.2 | T54: 306.84 | U54: 0.4 | V54: 9.98 | W54: 127.7349 | X54: 3213.29 | Y54: 5728.89 | Z54: 1225.47
A55: P8102 | B55: Médico veterinário | C55: mês | D55: 12443.57 | E55: 77.82 | F55: 9683.59 | G55: 6.24 | H55: 776.57 | I55: 0.21 | J55: 26.49 | K55: 0 | L55: 0 | M55: 0 | N55: 0 | O55: 0.02 | P55: 2.32 | Q55: 0 | R55: 0 | S55: 2.47 | T55: 306.84 | U55: 0.08 | V55: 9.98 | W55: 86.8383 | X55: 10805.78 | Y55: 23249.35 | Z55: 1122.19
A56: P8106 | B56: Meteorologista júnior | C56: mês | D56: 5498.81 | E56: 78.35 | F56: 4308.32 | G56: 14.12 | H56: 776.57 | I56: 0.48 | J56: 26.49 | K56: 0 | L56: 0 | M56: 0 | N56: 0 | O56: 0.06 | P56: 3.04 | Q56: 0 | R56: 0 | S56: 5.58 | T56: 306.84 | U56: 0.18 | V56: 9.98 | W56: 98.771 | X56: 5431.24 | Y56: 10930.05 | Z56: 1122.92
A57: P8107 | B57: Meteorologista pleno | C57: mês | D57: 7331.75 | E57: 78.35 | F57: 5744.43 | G57: 10.59 | H57: 776.57 | I57: 0.36 | J57: 26.49 | K57: 0 | L57: 0 | M57: 0 | N57: 0 | O57: 0.04 | P57: 3.04 | Q57: 0 | R57: 0 | S57: 4.19 | T57: 306.84 | U57: 0.14 | V57: 9.98 | W57: 93.6658 | X57: 6867.34 | Y57: 14199.1 | Z57: 1122.92
A58: P8108 | B58: Meteorologista sênior | C58: mês | D58: 11957.48 | E58: 78.35 | F58: 9368.69 | G58: 6.49 | H58: 776.57 | I58: 0.22 | J58: 26.49 | K58: 0 | L58: 0 | M58: 0 | N58: 0 | O58: 0.03 | P58: 3.04 | Q58: 0 | R58: 0 | S58: 2.57 | T58: 306.84 | U58: 0.08 | V58: 9.98 | W58: 87.7409 | X58: 10491.6 | Y58: 22449.08 | Z58: 1122.91
A59: P8112 | B59: Motorista de caminhão | C59: mês | D59: 2541.29 | E59: 79.03 | F59: 2008.38 | G59: 28.99 | H59: 736.74 | I59: 1.27 | J59: 32.25 | K59: 0 | L59: 0 | M59: 3.79 | N59: 96.42 | O59: 0.13 | P59: 3.38 | Q59: 0 | R59: 0 | S59: 12.07 | T59: 306.84 | U59: 0.39 | V59: 9.98 | W59: 125.6841 | X59: 3193.99 | Y59: 5735.28 | Z59: 1185.61
A60: P8113 | B60: Motorista de veículo leve | C60: mês | D60: 2208.96 | E60: 78.63 | F60: 1736.91 | G60: 33.35 | H60: 736.74 | I60: 1.46 | J60: 32.25 | K60: 0 | L60: 0 | M60: 5.27 | N60: 116.36 | O60: 0.17 | P60: 3.81 | Q60: 0 | R60: 0 | S60: 13.89 | T60: 306.84 | U60: 0.45 | V60: 9.98 | W60: 133.2251 | X60: 2942.89 | Y60: 5151.86 | Z60: 1205.99
A61: P8117 | B61: Oceanógrafo júnior | C61: mês | D61: 4832.53 | E61: 81.59 | F61: 3942.86 | G61: 16.07 | H61: 776.57 | I61: 0.55 | J61: 26.49 | K61: 0 | L61: 0 | M61: 0 | N61: 0 | O61: 0.14 | P61: 6.8 | Q61: 0 | R61: 0 | S61: 6.35 | T61: 306.84 | U61: 0.21 | V61: 9.98 | W61: 104.9045 | X61: 5069.55 | Y61: 9902.08 | Z61: 1126.69
A62: P8118 | B62: Oceanógrafo pleno | C62: mês | D62: 6443.38 | E62: 81.59 | F62: 5257.15 | G62: 12.05 | H62: 776.57 | I62: 0.41 | J62: 26.49 | K62: 0 | L62: 0 | M62: 0 | N62: 0 | O62: 0.11 | P62: 6.8 | Q62: 0 | R62: 0 | S62: 4.76 | T62: 306.84 | U62: 0.15 | V62: 9.98 | W62: 99.0759 | X62: 6383.83 | Y62: 12827.21 | Z62: 1126.68
A63: P8119 | B63: Oceanógrafo sênior | C63: mês | D63: 11766.56 | E63: 81.59 | F63: 9600.33 | G63: 6.6 | H63: 776.57 | I63: 0.23 | J63: 26.49 | K63: 0 | L63: 0 | M63: 0 | N63: 0 | O63: 0.06 | P63: 6.8 | Q63: 0 | R63: 0 | S63: 2.61 | T63: 306.84 | U63: 0.08 | V63: 9.98 | W63: 91.1653 | X63: 10727.02 | Y63: 22493.57 | Z63: 1126.68
A64: P8129 | B64: Pedagogo júnior | C64: mês | D64: 2451.1 | E64: 87.56 | F64: 2146.18 | G64: 31.68 | H64: 776.57 | I64: 1.08 | J64: 26.49 | K64: 0 | L64: 0 | M64: 4.15 | N64: 101.83 | O64: 0.17 | P64: 4.14 | Q64: 0 | R64: 0 | S64: 12.52 | T64: 306.84 | U64: 0.41 | V64: 9.98 | W64: 137.5724 | X64: 3372.04 | Y64: 5823.13 | Z64: 1225.85
A65: P8130 | B65: Pedagogo pleno | C65: mês | D65: 3268.13 | E65: 87.56 | F65: 2861.58 | G65: 23.76 | H65: 776.57 | I65: 0.81 | J65: 26.49 | K65: 0 | L65: 0 | M65: 1.62 | N65: 52.81 | O65: 0.13 | P65: 4.14 | Q65: 0 | R65: 0 | S65: 9.39 | T65: 306.84 | U65: 0.31 | V65: 9.98 | W65: 123.5693 | X65: 4038.41 | Y65: 7306.54 | Z65: 1176.83
A66: P8131 | B66: Pedagogo sênior | C66: mês | D66: 4342.48 | E66: 87.56 | F66: 3802.28 | G66: 17.88 | H66: 776.57 | I66: 0.61 | J66: 26.49 | K66: 0 | L66: 0 | M66: 0 | N66: 0 | O66: 0.1 | P66: 4.14 | Q66: 0 | R66: 0 | S66: 7.07 | T66: 306.84 | U66: 0.23 | V66: 9.98 | W66: 113.4442 | X66: 4926.3 | Y66: 9268.78 | Z66: 1124.02
A67: P8135 | B67: Secretária | C67: mês | D67: 2903.48 | E67: 79.12 | F67: 2297.23 | G67: 26.75 | H67: 776.57 | I67: 0 | J67: 0 | K67: 0 | L67: 0 | M67: 2.57 | N67: 74.69 | O67: 0.16 | P67: 4.63 | Q67: 0 | R67: 0 | S67: 10.57 | T67: 306.84 | U67: 0.34 | V67: 9.98 | W67: 119.5097 | X67: 3469.94 | Y67: 6373.42 | Z67: 1172.71
A68: P8139 | B68: Sondador | C68: mês | D68: 2219.18 | E68: 78.71 | F68: 1746.71 | G68: 34.99 | H68: 776.57 | I68: 1.34 | J68: 29.7 | K68: 0 | L68: 0 | M68: 5.22 | N68: 115.75 | O68: 0.18 | P68: 4.01 | Q68: 0 | R68: 0 | S68: 13.83 | T68: 306.84 | U68: 0.45 | V68: 9.98 | W68: 134.715 | X68: 2989.56 | Y68: 5208.74 | Z68: 1242.85
A69: P8143 | B69: Técnico ambiental | C69: mês | D69: 3033.2 | E69: 79.23 | F69: 2403.2 | G69: 25.6 | H69: 776.57 | I69: 0.98 | J69: 29.7 | K69: 0 | L69: 0 | M69: 2.21 | N69: 66.91 | O69: 0.14 | P69: 4.12 | Q69: 0 | R69: 0 | S69: 10.12 | T69: 306.84 | U69: 0.33 | V69: 9.98 | W69: 118.5983 | X69: 3597.32 | Y69: 6630.52 | Z69: =Y69-D69-F69 -> 1194.12
A70: P8147 | B70: Técnico de obras | C70: mês | D70: 3323.33 | E70: 78.83 | F70: 2619.78 | G70: 23.37 | H70: 776.57 | I70: 0.89 | J70: 29.7 | K70: 0 | L70: 0 | M70: 1.49 | N70: 49.5 | O70: 0.1 | P70: 3.34 | Q70: 0 | R70: 0 | S70: 9.23 | T70: 306.84 | U70: 0.3 | V70: 9.98 | W70: 114.2139 | X70: 3795.7 | Y70: 7119.03 | Z70: 1175.92
A71: P8151 | B71: Técnico de segurança do trabalho | C71: mês | D71: 4601.83 | E71: 79.43 | F71: 3655.23 | G71: 16.01 | H71: 736.74 | I71: 0.65 | J71: 29.7 | K71: 0 | L71: 0 | M71: 0 | N71: 0 | O71: 0.08 | P71: 3.9 | Q71: 0 | R71: 0 | S71: 6.67 | T71: 306.84 | U71: 0.22 | V71: 9.98 | W71: 103.0545 | X71: 4742.4 | Y71: 9344.23 | Z71: 1087.17
A72: P8155 | B72: Técnico em geoprocessamento | C72: mês | D72: 2912.88 | E72: 78.24 | F72: 2279.04 | G72: 26.66 | H72: 776.57 | I72: 1.02 | J72: 29.7 | K72: 0 | L72: 0 | M72: 2.54 | N72: 74.13 | O72: 0.11 | P72: 3.09 | Q72: 0 | R72: 0 | S72: 10.53 | T72: 306.84 | U72: 0.34 | V72: 9.98 | W72: 119.4467 | X72: 3479.34 | Y72: 6392.22 | Z72: 1200.3
A73: P8163 | B73: Topógrafo | C73: mês | D73: 2627.36 | E73: 79.13 | F73: 2079.03 | G73: 29.56 | H73: 776.57 | I73: 1.13 | J73: 29.7 | K73: 0 | L73: 0 | M73: 3.47 | N73: 91.26 | O73: 0.17 | P73: 4.41 | Q73: 0 | R73: 0 | S73: 11.68 | T73: 306.84 | U73: 0.38 | V73: 9.98 | W73: 125.5172 | X73: 3297.79 | Y73: 5925.15 | Z73: 1218.76
A74: P8167 | B74: Arquivista júnior | C74: mês | D74: 2805.38 | E74: 78.78 | F74: 2210.08 | G74: 27.68 | H74: 776.57 | I74: 0 | J74: 0 | K74: 0 | L74: 0 | M74: 2.87 | N74: 80.58 | O74: 0.12 | P74: 3.35 | Q74: 0 | R74: 0 | S74: 10.94 | T74: 306.84 | U74: 0.36 | V74: 9.98 | W74: 120.7465 | X74: 3387.4 | Y74: 6192.78 | Z74: 1177.32
A75: P8168 | B75: Arquivista pleno | C75: mês | D75: 3740.51 | E75: 78.78 | F75: 2946.77 | G75: 20.76 | H75: 776.57 | I75: 0 | J75: 0 | K75: 0 | L75: 0 | M75: 0.65 | N75: 24.47 | O75: 0.09 | P75: 3.35 | Q75: 0 | R75: 0 | S75: 8.2 | T75: 306.84 | U75: 0.27 | V75: 9.98 | W75: 108.7549 | X75: 4067.98 | Y75: 7808.49 | Z75: 1121.21
A76: P8169 | B76: Arquivista sênior | C76: mês | D76: 6187.97 | E76: 78.78 | F76: 4874.88 | G76: 12.55 | H76: 776.57 | I76: 0 | J76: 0 | K76: 0 | L76: 0 | M76: 0 | N76: 0 | O76: 0.05 | P76: 3.35 | Q76: 0 | R76: 0 | S76: 4.96 | T76: 306.84 | U76: 0.16 | V76: 9.98 | W76: 96.5038 | X76: 5971.62 | Y76: 12159.59 | Z76: 1096.74
A77: P8173 | B77: Administrador júnior | C77: mês | D77: 3594.07 | E77: 78.38 | F77: 2817.03 | G77: 21.61 | H77: 776.57 | I77: 0 | J77: 0 | K77: 0 | L77: 0 | M77: 0.93 | N77: 33.26 | O77: 0.09 | P77: 3.09 | Q77: 0 | R77: 0 | S77: 8.54 | T77: 306.84 | U77: 0.28 | V77: 9.98 | W77: 109.8134 | X77: 3946.77 | Y77: 7540.84 | Z77: 1129.74
A78: P8174 | B78: Administrador pleno | C78: mês | D78: 4792.1 | E78: 78.38 | F78: 3756.05 | G78: 16.21 | H78: 776.57 | I78: 0 | J78: 0 | K78: 0 | L78: 0 | M78: 0 | N78: 0 | O78: 0.06 | P78: 3.09 | Q78: 0 | R78: 0 | S78: 6.4 | T78: 306.84 | U78: 0.21 | V78: 9.98 | W78: 101.2611 | X78: 4852.53 | Y78: 9644.62 | Z78: 1096.47
A79: P8175 | B79: Administrador sênior | C79: mês | D79: 8655.04 | E79: 78.38 | F79: 6783.82 | G79: 8.97 | H79: 776.57 | I79: 0 | J79: 0 | K79: 0 | L79: 0 | M79: 0 | N79: 0 | O79: 0.04 | P79: 3.09 | Q79: 0 | R79: 0 | S79: 3.55 | T79: 306.84 | U79: 0.12 | V79: 9.98 | W79: 91.0487 | X79: 7880.3 | Y79: 16535.34 | Z79: 1096.48
A80: P8180 | B80: Engenheiro agrimensor júnior | C80: mês | D80: 12443.57 | E80: 78.92 | F80: 9820.47 | G80: 6.24 | H80: 776.57 | I80: 0.21 | J80: 26.49 | K80: 0 | L80: 0 | M80: 0 | N80: 0 | O80: 0.04 | P80: 4.83 | Q80: 0 | R80: 0 | S80: 2.47 | T80: 306.84 | U80: 0.08 | V80: 9.98 | W80: 87.9585 | X80: 10945.18 | Y80: 23388.75 | Z80: 1124.71
A81: P8181 | B81: Engenheiro agrimensor pleno | C81: mês | D81: 13738.43 | E81: 78.92 | F81: 10842.37 | G81: 5.65 | H81: 776.57 | I81: 0.19 | J81: 26.49 | K81: 0 | L81: 0 | M81: 0 | N81: 0 | O81: 0.04 | P81: 4.83 | Q81: 0 | R81: 0 | S81: 2.23 | T81: 306.84 | U81: 0.07 | V81: 9.98 | W81: 87.1066 | X81: 11967.08 | Y81: 25705.5 | Z81: 1124.7
A82: P8182 | B82: Engenheiro agrimensor sênior | C82: mês | D82: 15033.28 | E82: 78.92 | F82: 11864.27 | G82: 5.17 | H82: 776.57 | I82: 0.18 | J82: 26.49 | K82: 0 | L82: 0 | M82: 0 | N82: 0 | O82: 0.03 | P82: 4.83 | Q82: 0 | R82: 0 | S82: 2.04 | T82: 306.84 | U82: 0.07 | V82: 9.98 | W82: 86.4015 | X82: 12988.98 | Y82: 28022.26 | Z82: 1124.71
A83: P8183 | B83: Geógrafo júnior | C83: mês | D83: 4160.02 | E83: 78.39 | F83: 3261.04 | G83: 18.67 | H83: 776.57 | I83: 0.64 | J83: 26.49 | K83: 0 | L83: 0 | M83: 0 | N83: 0 | O83: 0.07 | P83: 2.96 | Q83: 0 | R83: 0 | S83: 7.38 | T83: 306.84 | U83: 0.24 | V83: 9.98 | W83: 105.3812 | X83: 4383.88 | Y83: 8543.9 | Z83: 1122.84
A84: P8184 | B84: Geógrafo pleno | C84: mês | D84: 5546.69 | E84: 78.39 | F84: 4348.05 | G84: 14 | H84: 776.57 | I84: 0.48 | J84: 26.49 | K84: 0 | L84: 0 | M84: 0 | N84: 0 | O84: 0.05 | P84: 2.96 | Q84: 0 | R84: 0 | S84: 5.53 | T84: 306.84 | U84: 0.18 | V84: 9.98 | W84: 98.6334 | X84: 5470.9 | Y84: 11017.59 | Z84: 1122.85
A85: P8185 | B85: Geógrafo sênior | C85: mês | D85: 11068.85 | E85: 78.39 | F85: 8676.87 | G85: 7.02 | H85: 776.57 | I85: 0.24 | J85: 26.49 | K85: 0 | L85: 0 | M85: 0 | N85: 0 | O85: 0.03 | P85: 2.96 | Q85: 0 | R85: 0 | S85: 2.77 | T85: 306.84 | U85: 0.09 | V85: 9.98 | W85: 88.5342 | X85: 9799.72 | Y85: 20868.57 | Z85: 1122.85
A86: P8186 | B86: Antropólogo júnior | C86: mês | D86: 3557.77 | E86: 82.83 | F86: 2946.9 | G86: 21.83 | H86: 776.57 | I86: 0.74 | J86: 26.49 | K86: 0 | L86: 0 | M86: 1 | N86: 35.43 | O86: 0.13 | P86: 4.67 | Q86: 0 | R86: 0 | S86: 8.62 | T86: 306.84 | U86: 0.28 | V86: 9.98 | W86: 115.434 | X86: 4106.88 | Y86: 7664.65 | Z86: 1159.98
A87: P8187 | B87: Antropólogo pleno | C87: mês | D87: 4743.7 | E87: 82.83 | F87: 3929.2 | G87: 16.37 | H87: 776.57 | I87: 0.56 | J87: 26.49 | K87: 0 | L87: 0 | M87: 0 | N87: 0 | O87: 0.1 | P87: 4.67 | Q87: 0 | R87: 0 | S87: 6.47 | T87: 306.84 | U87: 0.21 | V87: 9.98 | W87: 106.5361 | X87: 5053.75 | Y87: 9797.44 | Z87: 1124.54
A88: P8188 | B88: Antropólogo sênior | C88: mês | D88: 7689.09 | E88: 82.83 | F88: 6368.87 | G88: 10.1 | H88: 776.57 | I88: 0.34 | J88: 26.49 | K88: 0 | L88: 0 | M88: 0 | N88: 0 | O88: 0.06 | P88: 4.67 | Q88: 0 | R88: 0 | S88: 3.99 | T88: 306.84 | U88: 0.13 | V88: 9.98 | W88: 97.4552 | X88: 7493.42 | Y88: 15182.5 | Z88: 1124.54
A89: P8189 | B89: Arqueólogo júnior | C89: mês | D89: 2959.7 | E89: 83.26 | F89: 2464.25 | G89: 26.24 | H89: 776.57 | I89: 0.9 | J89: 26.49 | K89: 0 | L89: 0 | M89: 2.41 | N89: 71.32 | O89: 0.27 | P89: 7.88 | Q89: 0 | R89: 0 | S89: 10.37 | T89: 306.84 | U89: 0.34 | V89: 9.98 | W89: 123.7735 | X89: 3663.32 | Y89: 6623.02 | Z89: 1199.07
A90: P8190 | B90: Arqueólogo pleno | C90: mês | D90: 3946.27 | E90: 83.26 | F90: 3285.66 | G90: 19.68 | H90: 776.57 | I90: 0.67 | J90: 26.49 | K90: 0 | L90: 0 | M90: 0.31 | N90: 12.12 | O90: 0.2 | P90: 7.88 | Q90: 0 | R90: 0 | S90: 7.78 | T90: 306.84 | U90: 0.25 | V90: 9.98 | W90: 112.1451 | X90: 4425.54 | Y90: 8371.81 | Z90: 1139.88
A91: P8191 | B91: Arqueólogo sênior | C91: mês | D91: 5796.23 | E91: 83.26 | F91: 4825.94 | G91: 13.4 | H91: 776.57 | I91: 0.46 | J91: 26.49 | K91: 0 | L91: 0 | M91: 0 | N91: 0 | O91: 0.14 | P91: 7.88 | Q91: 0 | R91: 0 | S91: 5.29 | T91: 306.84 | U91: 0.17 | V91: 9.98 | W91: 102.7168 | X91: 5953.7 | Y91: 11749.93 | Z91: 1127.76
A92: P8192 | B92: Historiador júnior | C92: mês | D92: 4184.91 | E92: 80.02 | F92: 3348.76 | G92: 18.56 | H92: 776.57 | I92: 0.63 | J92: 26.49 | K92: 0 | L92: 0 | M92: 0 | N92: 0 | O92: 0.09 | P92: 3.59 | Q92: 0 | R92: 0 | S92: 7.33 | T92: 306.84 | U92: 0.24 | V92: 9.98 | W92: 106.8658 | X92: 4472.24 | Y92: 8657.15 | Z92: 1123.48
A93: P8193 | B93: Historiador pleno | C93: mês | D93: 5579.88 | E93: 80.02 | F93: 4465.02 | G93: 13.92 | H93: 776.57 | I93: 0.47 | J93: 26.49 | K93: 0 | L93: 0 | M93: 0 | N93: 0 | O93: 0.06 | P93: 3.59 | Q93: 0 | R93: 0 | S93: 5.5 | T93: 306.84 | U93: 0.18 | V93: 9.98 | W93: 100.1543 | X93: 5588.49 | Y93: 11168.37 | Z93: 1123.47
A94: P8194 | B94: Historiador sênior | C94: mês | D94: 8835.48 | E94: 80.02 | F94: 7070.15 | G94: 8.79 | H94: 776.57 | I94: 0.3 | J94: 26.49 | K94: 0 | L94: 0 | M94: 0 | N94: 0 | O94: 0.04 | P94: 3.59 | Q94: 0 | R94: 0 | S94: 3.47 | T94: 306.84 | U94: 0.11 | V94: 9.98 | W94: 92.7355 | X94: 8193.62 | Y94: 17029.1 | Z94: 1123.47
A95: P8195 | B95: Paleontólogo júnior | C95: mês | D95: 3557.77 | E95: 82.83 | F95: 2946.9 | G95: 21.83 | H95: 776.57 | I95: 0.74 | J95: 26.49 | K95: 0 | L95: 0 | M95: 1 | N95: 35.43 | O95: 0.13 | P95: 4.67 | Q95: 0 | R95: 0 | S95: 8.62 | T95: 306.84 | U95: 0.28 | V95: 9.98 | W95: 115.434 | X95: 4106.88 | Y95: 7664.65 | Z95: 1159.98
A96: P8196 | B96: Paleontólogo pleno | C96: mês | D96: 4743.7 | E96: 82.83 | F96: 3929.2 | G96: 16.37 | H96: 776.57 | I96: 0.56 | J96: 26.49 | K96: 0 | L96: 0 | M96: 0 | N96: 0 | O96: 0.1 | P96: 4.67 | Q96: 0 | R96: 0 | S96: 6.47 | T96: 306.84 | U96: 0.21 | V96: 9.98 | W96: 106.5361 | X96: 5053.75 | Y96: 9797.44 | Z96: 1124.54
A97: P8197 | B97: Paleontólogo sênior | C97: mês | D97: 7689.09 | E97: 82.83 | F97: 6368.87 | G97: 10.1 | H97: 776.57 | I97: 0.34 | J97: 26.49 | K97: 0 | L97: 0 | M97: 0 | N97: 0 | O97: 0.06 | P97: 4.67 | Q97: 0 | R97: 0 | S97: 3.99 | T97: 306.84 | U97: 0.13 | V97: 9.98 | W97: 97.4552 | X97: 7493.42 | Y97: 15182.5 | Z97: 1124.54
A98: P8198 | B98: Sociólogo júnior | C98: mês | D98: 4306 | E98: 80.01 | F98: 3445.23 | G98: 18.03 | H98: 776.57 | I98: 0.62 | J98: 26.49 | K98: 0 | L98: 0 | M98: 0 | N98: 0 | O98: 0.08 | P98: 3.59 | Q98: 0 | R98: 0 | S98: 7.13 | T98: 306.84 | U98: 0.23 | V98: 9.98 | W98: 106.1009 | X98: 4568.7 | Y98: 8874.7 | Z98: 1123.47
A99: P8199 | B99: Sociólogo pleno | C99: mês | D99: 5741.33 | E99: 80.01 | F99: 4593.64 | G99: 13.53 | H99: 776.57 | I99: 0.46 | J99: 26.49 | K99: 0 | L99: 0 | M99: 0 | N99: 0 | O99: 0.06 | P99: 3.59 | Q99: 0 | R99: 0 | S99: 5.34 | T99: 306.84 | U99: 0.17 | V99: 9.98 | W99: 99.5781 | X99: 5717.11 | Y99: 11458.45 | Z99: 1123.48
A100: P8200 | B100: Sociólogo sênior | C100: mês | D100: 8890.55 | E100: 80.01 | F100: 7113.33 | G100: 8.73 | H100: 776.57 | I100: 0.3 | J100: 26.49 | K100: 0 | L100: 0 | M100: 0 | N100: 0 | O100: 0.04 | P100: 3.59 | Q100: 0 | R100: 0 | S100: 3.45 | T100: 306.84 | U100: 0.11 | V100: 9.98 | W100: 92.6467 | X100: 8236.8 | Y100: 17127.35 | Z100: 1123.47
A101: P8264 | B101: Motorista de veículo leve - horista | C101: h | D101: 10.04 | E101: 111.93 | F101: 11.24 | G101: 40.21 | H101: 4.04 | I101: 1.76 | J101: 0.18 | K101: 0 | L101: 0 | M101: 6.35 | N101: 0.64 | O101: 0.21 | P101: 0.02 | Q101: 0 | R101: 0 | S101: 16.75 | T101: 1.68 | U101: 0.54 | V101: 0.05 | W101: 177.7473 | X101: 17.85 | Y101: 27.89 | Z101: 6.61

Sheet DNIT Rel. Consolidação de C.G. (hidden)
A1: Tabela 1 - Custos de veículos
A2: Item | B2: Código | C2: Tipo | E2: Custo Produtivo (R$/h) | F2: Custo Improdutivo (R$/h)
A4: Veículos | B4: E8889 | C4: Veículo leve - 53 kW (sem motorista) | E4: 36.65 | F4: 6.69
B5: E8890 | C5: Veículo leve - 53 kW (com motorista) | E5: 64.54 | F5: 34.57
B6: E8891 | C6: Veículo leve picape 4 x 4 com capacidade de 1,10 t - 147 kW (sem motorista) | E6: 78.98 | F6: 23.64
B7: E8888 | C7: Veículo tipo van furgão com capacidade de 1,38 t - 100 kW (sem motorista) | E7: 54.56 | F7: 16.9
B8: E8887 | C8: Veículo tipo van furgão com capacidade de 1,38 t - 100 kW (com motorista) | E8: 82.44 | F8: 44.79
A10: Tabela 2 - Custos de imóveis, mobiliário, cestas de instalações e custos diversos
A11: Item | B11: Código | C11: Tipo | E11: Unidade | F11: Custo unitário (R$/un)
A12: Imóveis | B12: B8951 | C12: Comercial (2,55% do CMCC - SINAPI) | E12: m² x mês | F12: 50.23
B13: B8952 | C13: Residencial (2,45% do CMCC - SINAPI) | E13: m² x mês | F13: 48.26
A14: Mobiliário | B14: B8953 | C14: Escritório | E14: ocupante x mês | F14: 478.38
B15: B8954 | C15: Residência | E15: ocupante x mês | F15: 43.06
A16: Cesta das Instalações | B16: B8955 | C16: Laboratório de asfalto | E16: mês | F16: 5879.5
B17: B8956 | C17: Laboratório de concreto | E17: mês | F17: 4714.48
B18: B8957 | C18: Laboratório de solos | E18: mês | F18: 3597.39
B19: B8958 | C19: Topografia | E19: mês | F19: 5426.19
B20: B8961 | C20: Topografia por VANT | E20: mês | F20: 904.73
A21: Custos Diversos | B21: B8959 | C21: Escritório | E21: ocupante x mês | F21: 192.85
B22: B8960 | C22: Residência | E22: ocupante x mês | F22: 251.57

Sheet LISTA ORCAFASCIO (hidden)
A1: BASE | B1: CODIGO | C1: DESCRIÇÃO | D1: Unidade | E1: DATA | F1: INSUMO | G1: COMPOSICAO | H1: VALOR UN ONERADO
A2: COMPESA | B2: 01.07.05U | C2: Ensaio de determinação do teor de betume - cimento asfáltico | D2: un | E2: 2024-07-01 | F2: NÃO | G2: SIM | H2: 127.22
A3: COMPESA | B3: 01.07.15U | C3: Ensaio Marshall - Mistura betuminosa a quente | D3: un | E3: 2024-07-01 | F3: NÃO | G3: SIM | H3: 254.45
A4: SETOP | B4: ED-49547 | C4: Ensaio de resistência à tração por compressão diametral concreto | D4: un | E4: 2025-04-01 | F4: NÃO | G4: SIM | H4: 100.69
A5: SETOP | B5: ED-49546 | C5: Ensaio de resistência à compressão simples concreto | D5: un | E5: 2025-04-01 | F5: NÃO | G5: SIM | H5: 100.21
A6: EMOP | B6: 01.001.0300-0 | C6: Determinação da taxa de ligante (serviços de escritório, laboratório e campo) | D6: un | E6: 2025-08-01 | F6: NÃO | G6: SIM | H6: 417.32
A7: EMBASA | B7: 34.01.25 | C7: Ensaio de compactação - proctor normal (NBR - 07182) | D7: un | E7: 2025-06-01 | F7: NÃO | G7: SIM | H7: 300
A8: EMBASA | B8: 34.01.31 | C8: Ensaio de compactação - proctor modificado (NBR - 07182) | D8: un | E8: 2025-06-01 | F8: NÃO | G8: SIM | H8: 157.86
A9: EMBASA | B9: 34.01.28 | C9: Ensaio de compactação - proctor intermediário (NBR - 07182) | D9: un | E9: 2025-06-01 | F9: NÃO | G9: SIM | H9: 131.55
A10: EMOP | B10: 01.001.0060-0 | C10: Amostra de solo - preparação para ensaios de compactação e ensaios de caracterização (serviços de escritório, laboratório e campo) | D10: un | E10: 2025-08-01 | F10: NÃO | G10: SIM | H10: 632.24
A11: COMPESA | B11: 01.07.06U | C11: Ensaio de granulometria por peneiramento - solos | D11: un | E11: 2024-07-01 | F11: NÃO | G11: SIM | H11: 101.64
A12: EMBASA | B12: 34.97.04 | C12: Ensaio de caracterização do solo | D12: un | E12: 2025-06-01 | F12: NÃO | G12: SIM | H12: 333.81
A13: COMPESA | B13: 01.07.09U | C13: Ensaio de Limite de Liquidez - Solos | D13: un | E13: 2024-07-01 | F13: NÃO | G13: SIM | H13: 71.08
A14: COMPESA | B14: 01.07.08U | C14: Ensaio de Limite de Plasticidade - Solos | D14: un | E14: 2024-07-01 | F14: NÃO | G14: SIM | H14: 57.16
A15: EMOP | B15: 01.001.0052-0 | C15: Mini-CBR e expansão do solo compactado em equipamento miniatura (Serviços de escritório, Laboratório e Campo) | D15: un | E15: 2025-08-01 | F15: NÃO | G15: SIM | H15: 126.44
A16: COMPESA | B16: 01.07.O2U | C16: Ensaio de Viscosidade Saybolt-Furol - MATERIAL BETUMINIOSO | D16: un | E16: 2024-07-01 | F16: NÃO | G16: SIM | H16: 159.93
A17: COMPESA | B17: 01.07.13U | C17: Ensaio de Abrasão Los Angeles - Agregados | D17: un | E17: 2024-07-01 | F17: NÃO | G17: SIM | H17: 305.33
A18: EMOP | B18: 01.001.0123-0 | C18: Resistência à compressão de corpo de prova cilíndrico de 15 x 30cm, por corpo de prova (serviços de escritório, laboratório e campo) | D18: un | E18: 2025-08-01 | F18: NÃO | G18: SIM | H18: 52.51
